{"text_format":"1","workbook":"xlsx","n_sheets":12,"sheets":["Algemene richtlijnen","Generieke input","Parameters+keuzes","OLO-basis","1A-Infrastructuur met forfait","1B-Infra zonder forfait","Formulier 2","Bijlage investeringsoverzicht","Bijlage extra vergoedingen","Checklist overheidstussenkomst","Checklist_prijsaanvraag","Output"],"not_rendered":{"charts":0,"images":2,"macros":1,"external_links":1,"defined_names":318,"comments":0,"pivot_tables":0},"unopened":[],"bounds":{"document_bytes":16777216,"sheet_cells":100000,"rows_first":2000,"rows_last":500,"rows_between":2000,"halvings":0,"cell_chars":16384,"cell_head_chars":4096},"cells_cut":0,"cells_raw":0,"read":"whole","date_system":"1900"}

{"sheet":"Algemene richtlijnen","index":0,"n_rows":201,"n_cols":9,"rows_kept":201,"cut":false,"hidden":false,"merged":[[49,8,50,10],[52,4,54,6],[53,8,55,10],[46,4,48,4],[102,3,103,3],[104,3,105,3],[100,2,101,2],[102,2,103,2],[0,0,0,3],[49,2,52,2],[97,1,99,1],[100,1,101,1],[102,1,103,1],[104,1,105,1],[97,2,99,2],[104,2,105,2],[97,3,99,3],[100,3,101,3]]}
["Algemene richtlijnen"]
[]
["Algemeen:","De groene tabbladen laten invoer toe met impact op uw aanvraag."]
[null,"De rode tabbladen bevatten parameters die u niet kan wijzigen."]
[null,"De oranje tabbladen hebben louter een informatieve waarde."]
[]
["Stappen"]
[1,"Bepaal voor welke zorgvormen en voor welke aanleidingen u een prijsaanvraag wenst in te dienen"]
[]
[null,"De zorgvormen zijn:"]
[null,"- woonzorgcentrum inclusief kortverblijf;"]
[null,"- centrum voor dagverzorging en centrum voor dagopvang;"]
[null,"- groep van assistentiewoningen."]
[]
[null,"De mogelijke aanleidingen zijn:",null,null,null,null,"kosteninvoer via:"]
[null,"- infrastructuurforfait: eerste toekenning;",null,null,null,null,"1A"]
[null,"- drastische investeringen: geheel van investeringen waarvan minimaal 50% minimaal op twintig jaar wordt afgeschreven;",null,null,null,null,"1A indien infrastructuurforfait / 1B indien geen infrastructuurforfait"]
[null,"- niet-drastische investeringen: geheel van investeringen waarvan minder dan 50% minimaal op twintig jaar wordt afgeschreven;",null,null,null,null,"formulier 2"]
[null,"- marge-evolutie;",null,null,null,null,"formulier 2"]
[null,"- andere aanleidingen (zoals supplement in dagprijs of andere toeslagen).",null,null,null,null,"formulier 2"]
[]
[2,"Hou rekening met:  de mogelijkheden  qua combinaties, de fasering van de prijsaanvragen en interferentie met indexatie:"]
[]
[null,"Beperking combinatie zorgvormen:"]
[null,"Enkel voor WZC en kortverblijf samen kan 1 excel gebruikt worden."]
[null,"Voor een centrum voor dagverzorging (CDV)/centrum voor dagopvang of Groep Assistentiewoningen (GAW), dient telkens een aparte excel te worden gebruikt. Deze kunnen niet met elkaar of met het WZC/KV worden gecombineerd."]
[]
[null,"Restrictie combinatie formulieren en aanleidingen binnen formulieren"]
[null,"Voor dezelfde bewoners kunnen formulieren 1 en 2 niet gecombineerd worden. "]
[null,"Voor dezelfde bewoners is het niet mogelijk om tabbladen 1A en 1B te combineren."]
[null,"Binnen formulier 2 is er geen combinatie mogelijk van marge-evolutie met niet-drastische investeringen."]
[]
[null,"Fasering:"]
[null,"Er moeten ten opzichte van een vorige aanvraag minstens 365 dagen verstreken zijn vooraleer een nieuwe aanvraag kan worden ingediend."]
[null,"De nieuwe aanvraag moet betrekking hebben op andere bewoners dan die waarvoor de vorige aanvraag werd ingediend, tenzij er minimaal twee jaar is verstreken ten opzichte van de vorige aanvraag."]
[null,"Een aanvraag voor een prijsbepaling of prijsverhoging van extra vergoedingen kan voor alle bewoners wel al na 365 dagen worden ingediend."]
[]
[null,"Interferentie met indexatie:"]
[null,"Bij overschrijding van de spilindex , dan kan prijs (vóór eventuele aftrek van een infrastructuurforfait) worden geïndexeerd binnen de periode van 365 dagen."]
[null,"Die indexatie kan niet samenvallen met de prijsaanvraag. "]
[null,"Indien tijdens de behandelingstermijn van de prijsaanvraag de spilindex wordt overschreden, dan kan de voorziening daarentegen wel een aangepaste prijsaanvraag indienen."]
[]
[3,"De beslissingsboom ziet er als volgt uit:"]
[]
[]
[]
[null,null,null,null,"Tabblad 1A (a)"]
[]
[null,null,null,"JA"]
[null,null,"Eerste prijsaanvraag voor eerste toekenning infrastructuurforfait of nieuwe aanvraag m.b.t. drastische investeringen voor bewoners met reeds infrastructuurforfait?",null,null,null,null,null,"Tabblad 1B (c)"]
[null,null,null,null,null,null,null,"JA"]
[]
[null,null,null,"NEEN","Investeringsproject met min.50% van de investeringen, afschrijvingsduur minimaal 20 jaar? (b)"]
[null,null,null,null,null,null,null,null,"Formulier 2 (d): kies tussen:\n- marge-evolutie\n- andere aanleidingen"]
[null,null,null,null,null,null,null,"NEEN"]
[]
[]
[]
[]
[]
[4,"Stappenplan:"]
[]
[null,"Stap 1: U verdeelt de kosten over de verschillende zorgvormen en aanleidingen waarvoor u een prijsaanvraag wenst in te dienen."]
[]
[null,"Case A:"]
[null,"Een inrichtende macht heeft investeringen die toewijsbaar zijn aan een woonzorgcentrum en een groep van assistentiewoningen (GAW). "]
[null,"Van de investeringen toewijsbaar aan de GAW, wordt 60% op 25 jaar afgeschreven."]
[null,"Binnen het woonzorgcentrum zijn er enerzijds kamerinvesteringen om voor die betrokken bewoners het infrastructuurforfait te bekomen en anderzijds collectieve investeringen die alle bewoners ten goede komen."]
[null,"De collectieve investeringen die alle bewoners van het woonzorgcentrum ten goede komen, worden integraal op minder dan twintig jaar afgeschreven."]
[]
[null,"Welke zijn de zorgvormen en aanleidingen voor prijsaanvraag?"]
[null,"De zorgvormen zijn enerzijds het woonzorgcentrum en anderzijds de groep van assistentiewoningen. Per zorgvorm vult u dus een excel in en dus 2 excels in totaal voor dit voorbeeld."]
[null,"Binnen de excel voor het woonzorgcentrum zijn er 2 aanleidingen voor prijsaanvraag: (1) infrastructuurforfait en (2) investeringen voor bewoners zonder infrastructuurforfait"]
[null,"Binnen de excel voor de GAW is er maar 1 aanleiding, met name drastische investeringen."]
[]
[null,"Stap 2:  U doorloopt voor elke aanleiding de beslissingsboom om te bepalen in welk kostentabblad de kosten moeten ingevoerd worden:"]
[]
[null,"Case A (zelfde uitgangspunten als hiervoor):"]
[null,"Voor de GAW stelt zich direct de vraag of minimaal de helft van de investeringen op minimaal twintig jaar wordt afgeschreven (beslissingsboom, b). Gezien \"JA\" gebeurt de kosteninvoer dus in tabblad 1B (belissingsboom, c) van de excel voor de GAW."]
[null,"Voor het woonzorgcentrum dienen we voor elke aanleiding en dus 2 maal de beslissingsboom te doorlopen:"]
[]
[null,"- investeringen voor infrastructuurforfait: gezien prijsaanvraag om het infrastructuurforfait toegekend te krijgen, geldt de kosteninvoer in tabblad 1A (a). Het toerekenbare deel van de collectieve investeringen wordt hierin mee opgenomen."]
[null,"- investeringen voor niet-infrastructuurforfaitgerechtigde bewoners: gezien deze investeringen op minder dan twintig jaar worden afgeschreven, is het antwoord op vraag (b) \"NEEN\" en geldt dus formulier 2 (=d uit de beslissingsboom)."]
[]
[null,"Binnen dezelfde excel voor het woonzorgcentrum gebeurt dus invoer in \"1A-Infrastructuur met forfait\" voor de bewoners met infrastructuurforfait en in \"Formulier 2\" voor de bewoners zonder infrastructuurforfait"]
[]
[null,"Case B: 3 jaar later"]
[null,"Het woonzorgcentrum maakt 3 jaar later verlies. De zorgvorm is het woonzorgcentrum waarvoor dus 1 excel wordt ingediend."]
[null,"De aanleiding van de prijsaanvraag is marge-evolutie. Het woonzorgcentrum hanteert het formulier 2 voor alle bewoners. Voor de eerder forfaitgerechtigde bewoners wordt voor de huidige dagprijs uitgegaan van de dagprijs na aftrek van het infrastructuurforfait."]
[]
[null,"Case C: 3 jaar later"]
[null,"Het woonzorgcentrum besluit voor de bewoners waarvoor 3 jaar terug al een infrastructuurforfait was bekomen, een keuken te bouwen. De keuken wordt afgeschreven op 25 jaar."]
[null,"Gezien het een drastische investering betreft voor bewoners met reeds infrastructuurforfait (hoofdvraag beslissingsboom), zal opnieuw formulier 1A moeten ingevuld worden."]
[]
["Technische uitwerking: praktische kosteninvoer:"]
[]
[null,null,"wat?","link"]
[null,"1) Vul  het tabblad \"generieke input\" in","dit tabblad bevat de identificatie en de capaciteitsgegevens waarvoor voor 1 of meerdere aanleidingen een prijsaanvraag wordt ingediend","generieke input"]
[]
[]
[null,"2) Vul de kosten in de verschillende kostentabbladen in","op basis van de gekozen situaties zal u 1 of meerdere kosten-tabbladen dienen in te vullen","klik op de links in generieke input \n(rubriek 3.1)"]
[]
[null,"3) Controleer het tabblad \"Checklist\"","dit tabblad somt de voorgekomen fouten en vereiste documenten op: pas aan waar nodig","controles"]
[]
[null,"4) Print het outputtabblad uit en laat dit ondertekenen door de gemachtigden",null,"output"]
[]
[]
[]
[]
[]
[]
[]
[]
[]
[]
[]
[]
[]
[]
[]
[]
[]
[]
[]
[]
[]
[]
[]
[]
[]
[]
[]
[]
[]
[]
[]
[]
[]
[]
[]
[]
[]
[]
[]
[]
[]
[]
[]
[]
[]
[]
[]
[]
[]
[]
[]
[]
[]
[]
[]
[]
[]
[]
[]
[]
[]
[]
[]
[]
[]
[]
[]
[]
[]
[]
[]
[]
[]
[]
[]
[]
[]
[]
[]
[]
[]
[]
[]
[]
[]
[]
[]
[]
[]
[]
[]
[]
[]
[]
[]
["999999999999999"]

{"sheet":"Generieke input","index":1,"n_rows":56,"n_cols":27,"rows_kept":56,"cut":false,"hidden":false,"merged":[[0,0,1,15],[17,1,17,4],[17,5,17,12],[8,1,8,4],[8,5,8,12],[15,1,15,4],[15,5,15,12],[16,1,16,4],[16,5,16,12],[12,1,12,4],[12,5,12,12],[13,1,13,4],[13,5,13,12],[7,1,7,4],[9,5,9,12],[10,1,10,4],[14,1,14,4],[14,5,14,12],[7,5,7,12],[10,5,10,12],[11,1,11,4],[11,5,11,12],[9,1,9,4],[29,5,29,6],[29,4,30,4],[29,2,30,2],[23,1,26,12],[29,3,30,3],[28,5,28,8],[28,2,28,3],[29,7,30,7],[29,8,30,8]]}
["Dagprijsaanvraag: generieke input"]
[]
["Enkel de blauw aangeduide cellen kunnen (indien nodig) worden ingevuld",null,null,null,"Belangrijk: doorloop alle rubrieken. Vergeet niet om ook het jaar van aanvangsbevel in te vullen, tenzij het louter een aanvraag voor marge-evolutie betreft."]
["1. Datum aanvraag",null,"2025-06-19","vul hier de datum van aanvraag in"]
[]
["2. Identificatie"]
[]
[null,"Naam inrichtende macht :",null,null,null,"Naam inrichtende macht",null,null,null,null,null,null,null,"in te vullen",null,null,null,null,null,null,null,{"$f":"IF(F8<>\"\",1,0)","v":1}]
[null,"Rechtsvorm",null,null,null,"rechtsvorm:",null,null,null,null,null,null,null,"gelieve te selecteren in het  uitklapveld",null,null,null,null,null,null,null,{"$f":"IF(F9<>\"\",1,0)","v":1}]
[null,"Indien andere rechtsvorm:",null,null,null,null,null,null,null,null,null,null,null,"andere rechtsvorm in te vullen indien in de vorige cel \"andere\" werd geselecteerd",null,null,null,null,null,null,null,0]
[null,"Adres inrichtende macht:",null,null,null,"straat +nr, postcode + gemeente",null,null,null,null,null,null,null,"in te vullen: straat met huisnr, postcode met gemeente",null,null,null,null,null,null,null,1]
[null,"Naam voorziening:",null,null,null,"naam voorziening",null,null,null,null,null,null,null,"in te vullen",null,null,null,null,null,null,null,1]
[null,"Adres voorziening:",null,null,null,{"$f":"F11","v":"straat +nr, postcode + gemeente"},null,null,null,null,null,null,null,"in te vullen: straat met huisnr, postcode met gemeente",null,null,null,null,null,null,null,1]
[null,"Telefoonummer :",null,null,null,"xxxx/xx xx xx",null,null,null,null,null,null,null,"in te vullen",null,null,null,null,null,null,null,1]
[null,"Email:",null,null,null,"naam@extensie.be",null,null,null,null,null,null,null,"in te vullen",null,null,null,null,null,null,null,1]
[null,"Dossiernummer bij Zorg en Gezondheid (6 cijfers, in het midden gescheiden door .):",null,null,null,"gelieve hier uw dossiernummer bij Zorg en Gezondheid in te vullen",null,null,null,null,null,null,null,"in te vullen",null,null,null,null,null,null,null,1]
[null,"Ondernemingsnummer (zonder punten en met voorloopnul):",null,null,null,"geliever hier  uw ondernemingsnummer in te vullen",null,null,null,null,null,null,null,"in te vullen",null,null,null,null,null,null,null,1]
[null,"Contactpersoon:",null,null,null,"voornaam + naam",null,null,null,null,null,null,null,"in te vullen",null,null,null,null,null,null,null,1]
[null,null,null,null,null,null,null,null,null,null,null,null,null,null,null,null,null,null,null,null,null,{"$f":"SUM(V8:V18)","v":10},{"$f":"11-V19","v":1}]
["3. Aanleidingen prijsaanvraag en formulieren en kostentabbladen"]
[]
["3.1 Capaciteiten  volgens aanleiding prijsaanvraag"]
[]
[null,"Vul hieronder voor de zorgvorm(en) waarvoor u momenteel een prijsaanvraag wenst in te dienen het volgende in: de totale capaciteit van de zorgvorm alsook de capaciteit waarvoor de prijsaanvraag wordt ingediend.\nEnkel het woonzorgcentrum en kortverblijf kunnen worden gecombineerd in 1 excel. Indien u naast een prijsaanvraag voor woonzorgcentrum en kortverblijf, ook nog een prijsaanvraag voor GAW en/of centrum voor dagverzorging/centrum voor dagopvang wenst in te dienen, dan dient u voor GAW en/of het centrum voor dagverzorging/centrum voor dagopvang een apart excelformulier te gebruiken. U dient dan meerdere excels in.\nVul vervolgens de datum van het aanvangsbevel in rubriek 4 in. Daarna kan u door op de hyperlinks de groene zone te klikken (gebied F31:H31) naar de passende tabbladen navigeren om de kosten in te voeren."]
[]
[]
[]
[null,null,null,null,null,"in te vullen","in te vullen","in te vullen","niet in te vullen"]
[null,null,"kolommen C-D: niet in te vullen",null,"in te vullen","Capaciteiten voor prijsaanvraag"]
[null,null,"Zorgvorm","Capaciteitseenheid","Erkende  capaciteit","Formulier 1: Infrastructuur",null,"Formulier 2","Totaal waarvoor\nprijsaanvraag",null,null,null,null,null,null,null,null,null,null,null,"check"]
[null,null,null,null,null,"A: Met forfait","B: Zonder forfait",null,null,null,null,null,null,null,null,null,null,null,null,null,"check aanw cap","code","cap ok?","bezettingspercentage"]
[null,null,"WZC","bewoners",100,0,0,0,{"$f":"SUM(F32:H32)","v":0},null,null,null,null,null,null,null,null,null,null,null,{"$f":"SUM(F32:H32)","v":0},{"$f":"IF(U32>0,1,0)","v":0},{"$f":"SUM(F32:H32)<=E32","v":true}]
[null,null,"CVK",{"$f":"D32","v":"bewoners"},0,0,0,0,0,null,null,null,null,null,null,null,null,null,null,null,{"$f":"SUM(F33:H33)","v":0},{"$f":"IF(U33>0,2,0)","v":0},{"$f":"SUM(F33:H33)<=E33","v":true},0.9,{"$f":"IF(U33>0,X33,0%)","v":0}]
[null,null,"CDV/CDO","gebruikers",0,0,0,0,0,null,null,null,null,null,null,null,null,null,null,null,{"$f":"SUM(F34:H34)","v":0},{"$f":"IF(U34>0,4,0)","v":0},{"$f":"SUM(F34:H34)<=E34","v":true},1,{"$f":"IF(U34>0,X34,0%)","v":0}]
[null,null,"GAW","bewoners",0,0,0,0,0,null,null,null,null,null,null,null,null,null,null,null,{"$f":"SUM(F35:H35)","v":0},{"$f":"IF(U35>0,8,0)","v":0},{"$f":"SUM(F35:H35)<=E35","v":true},0.95,0]
[null,null,null,null,"totaal:",{"$f":"SUM(F32:F35)","v":0},{"$f":"SUM(G32:G35)","v":0},{"$f":"SUM(H32:H35)","v":0},0,null,null,null,null,null,null,null,null,null,null,null,null,{"$f":"SUM(V32:V35)","v":0},null,null,{"$f":"SUM(Y33:Y35)","v":0}]
[]
[null,null,"Checks (geen input):"]
[null,null,"De capaciteit in de prijsaanvraag/aanvragen  ligt niet hoger dan de totale capaciteit?",null,null,null,null,{"$f":"IF(AND(W32,W33,W34,W35),\"OK\", \"NIET OK\")","v":"OK"}]
[]
[null,null,"Indien keuze voor CDV of GAW, dan wordt dit niet gecombineerd met een andere zorgvorm?",null,null,null,null,{"$f":"IF(OR(V36=0,V36=1,V36=2,V36=3,V36=4,V36=8),\"OK\",\"NIET OK\")","v":"OK"},"Reden: CDV en GAW hebben elk een aparte erkenning, waarvoor dan een apart formulier moet worden ingediend. "]
[null,null,null,null,null,null,null,null,"Ze kunnen dus noch met elkaar, noch met het WZC/KV gecombineerd worden voor de prijsaanvraag."]
[]
[]
["3.2 Bezettingsgraad (zoals berekend voor basistegemoetkoming zorg)"]
[]
[null,null,{"$f":"IF(OR(V36=1,V36=3), \"U vraagt de prijs aan met betrekking tot woongelegenheden in een woonzorgcentrum. Hiervoor wordt de sectoriële bezettingsgraad gehanteerd:\", IF(V36=4,\"U doet een prijsaanvraag voor het CDV. De bezettingsgraad bedraagt dan 100%\",IF((V36=2), \"U vraagt de prijs aan louter met betrekking tot het kortverblijf.De bezettingsgraad bedraagt dan 90%\",IF(V36=8,\"U vraagt de prijs aan louter voor GAW's.De bezettingsgraad bedraagt dan 95%.\",\"\"))))","v":""},null,null,null,null,null,null,null,{"$f":"'Parameters+keuzes'!C22","v":0.93969999999999998},null,null,null,null,null,null,null,null,null,null,null,"Bezettingsgraad voor formulieren:",null,null,null,{"$f":"MIN(IF(OR(V36=1,V36=3),K47,Y36),100%)","v":0}]
[null,null,null,null,null,null,null,null,null,null,null,null,null,null,null,null,null,null,null,null,null,null,"Indien formulier 2, aanvraag voor:",null,null,null,{"$f":"IF(H32>0,C32,IF(H33>0,C33,IF(H34>0,C34,IF(H35>0,C35,\"\"))))","v":""}]
[]
[]
[]
[]
["4. Jaar aanvangsbevel werken en intrestvoet"]
[]
[null,null,"jaar aanvangsbevel",2023,"in te vullen, tenzij louter marge-evolutie"]
[null,null,"OLO + 200 bp",{"$f":"VLOOKUP(D55,'Parameters+keuzes'!A12:C17,3,0)","v":4.7E-2}]

{"sheet":"Parameters+keuzes","index":2,"n_rows":48,"n_cols":16,"rows_kept":48,"cut":false,"hidden":false,"merged":[[2,0,4,4]]}
["Parameters",null,null,null,null,null,"Toelichting:",null,null,null,null,null,null,null,null,"Keuzes"]
[]
["De parameters zoals hieronder vermeld, worden verder in 1 of meerdere prijsaanvragen gebruikt. Belangrijk is dat de parameters maar 1 maal per jaar worden geactualiseerd en dan voor een volledig jaar gelden. De informatie hierna is enkel ter consultatie. "]
[]
[]
[]
["Parameters voor het jaar:",2025]
[]
["1) OLO",null,null,null,null,null,null,null,null,null,null,null,null,null,null,"JA"]
[null,null,null,null,null,null,null,null,null,null,null,null,null,null,null,"NEEN"]
["jaar aanvangsbevel","OLO (min. 1%)","OLO+200bp","meting",null,null,null,null,null,null,null,null,null,null,null,"niet van toepassing"]
[2021,{"$f":"MAX(ROUND(AVERAGE('OLO-basis'!E234:E255)/100,4),1%)","v":0.01},{"$f":"2%+B12","v":0.03},"2020-12-31",null,null,"bron:","Yield of Belgian loans on the secondary market (nbb.be)",null,null,null,null,null,null,null,"rechtsvorm:"]
[2022,{"$f":"MAX(ROUND(AVERAGE('OLO-basis'!E485:E507)/100,4),1%)","v":0.01},{"$f":"2%+B13","v":0.03},"2021-12-31",null,null,"berekeningswijze","rekenkundig gemiddelde van de OLO (obligation linéaire, lineaire obligatie) op 10 jaar op basis van de waarnemingen in de maand december van het jaar voorafgaand aan het aanvangsbevel",null,null,null,null,null,null,null,"OCMW"]
[2023,{"$f":"MAX(ROUND(AVERAGE('OLO-basis'!E737:E757)/100,4),1%)","v":2.7E-2},4.7E-2,"2022-12-31",null,null,null,"bodembewaking: OLO bedraagt minimaal 1%",null,null,null,null,null,null,null,"AGB"]
[2024,{"$f":"MAX(ROUND(AVERAGE('OLO-basis'!E989:E1007)/100,4),1%)","v":2.7E-2},4.7E-2,"2023-12-31",null,null,"voorbeeld:","OLO voor aanvangsbevel in  2021 = gemiddelde maand december 2020",null,null,null,null,null,null,null,"BV"]
[2025,{"$f":"MAX(ROUND(AVERAGE('OLO-basis'!D1022:D1060)/100,4),1%)","v":2.8000000000000001E-2},4.8000000000000001E-2,"2024-12-31",null,null,"doel:","bepaling financieringskost",null,null,null,null,null,null,null,"Commanditaire"]
[2026,null,0.02,"2025-12-31",null,null,null,null,null,null,null,null,null,null,null,"Natuurlijke persoon"]
[null,null,null,null,null,null,null,null,null,null,null,null,null,null,null,"NV"]
["2) sectorale bezettingscijfers ",null,null,null,null,null,null,null,null,null,null,null,null,null,null,"Provincie"]
[null,null,null,null,null,null,null,null,null,null,null,null,null,null,null,"VZW"]
["beschikbaar op","van toepassing op",null,null,null,null,"bron:","bezettingsgraad conform methodologie van het infrastructuurforfait",null,null,null,null,null,null,null,"Andere"]
["2023-12-31",2024,0.93969999999999998,null,null,null,"berekeningswijze","meest actuele referentieperiode van:",null,null,null,"1/7/2022-30/6/2023"]
[null,null,null,null,null,null,"doel:","doorrekening van de kosten gebeurt op basis van de bezettingsgraad"]
[]
["3) forfait"]
[null,"cijfer","tekst"]
[null,6.29,{"$f":"TEXT(forfait,\"#,00\")","v":"6,29"},null,null,null,"bron:","Infrastructuurforfait (zorg-en-gezondheid.be)"]
[]
["4) gewogen gemiddelde dagprijs private sector"]
["berekend op basis van:","van toepassing op:","WZC","GAW",null,null,"bron:","WZC:","dagprijsbevraging = prijs na aftrek van het infrastructuurforfait"]
[2022,2023,65,40,null,null,null,"GAW","vaste prijs: 40 euro + 25% = 50 euro"]
[2023,2024,71.599999999999994,40,null,null,"berekeningswijze:","jaarljkse bevraging van mei voorgaand jaar"]
[null,null,null,null,null,null,"doel:","beperking dagprijsstijging voor voorzieningen met bovengemiddelde dagprijs"]
[]
[]
["5) afgevlakte gezondheidheidsindex"]
["december:",null,null,null,null,null,"bron:","be.STAT (fgov.be)"]
[2017,103.72,null,null,null,null,"doel: ","toetsing woonzorgcentra met bovengemiddelde dagprijs"]
[2018,106.01]
[2019,106.76]
[2020,107.72]
[2021,111.97]
[2022,124.5]
[2023,125.91]
[2024,130.41999999999999]
["6) geïndexeerde opstappen",null,null,null,null,null,"berekeningswijze: enkel bij overschrijden van een veelvoud van 0,5 euro worden deze opstappen aangepast aan de afgevlakte gezondheidsindex"]
[]
[2024,6,3]

{"sheet":"OLO-basis","index":3,"n_rows":1060,"n_cols":8,"rows_kept":1060,"cut":false,"hidden":false,"merged":[[1,0,1,2],[1,3,1,4],[2,3,2,4],[3,0,1018,0]]}
["Dataset: Long term yield of the reference loans 11am"]
["Frequency",null,null,"Daily",null,null,null,"Yield of Belgian loans on the secondary market (nbb.be)"]
["Country","Time","",""]
["Belgium","2020-01-02","","",0.09]
[null,"2020-01-03","","",-0.01]
[null,"2020-01-06","","",-0.01]
[null,"2020-01-07","","",0]
[null,"2020-01-08","","",0]
[null,"2020-01-09","","",0.03]
[null,"2020-01-10","","",0.03]
[null,"2020-01-13","","",0.05]
[null,"2020-01-14","","",0.05]
[null,"2020-01-15","","",0.02]
[null,"2020-01-16","","",0.01]
[null,"2020-01-17","","",0.01]
[null,"2020-01-20","","",0.03]
[null,"2020-01-21","","",0.01]
[null,"2020-01-22","","",-0.01]
[null,"2020-01-23","","",-0.05]
[null,"2020-01-24","","",-7.0000000000000007E-2]
[null,"2020-01-27","","",-0.12]
[null,"2020-01-28","","",-0.16]
[null,"2020-01-29","","",-0.14000000000000001]
[null,"2020-01-30","","",-0.16]
[null,"2020-01-31","","",-0.16]
[null,"2020-02-03","","",-0.19]
[null,"2020-02-04","","",-0.16]
[null,"2020-02-05","","",-0.04]
[null,"2020-02-06","","",-0.03]
[null,"2020-02-07","","",-7.0000000000000007E-2]
[null,"2020-02-10","","",-0.08]
[null,"2020-02-11","","",-0.08]
[null,"2020-02-12","","",-0.06]
[null,"2020-02-13","","",-0.11]
[null,"2020-02-14","","",-0.1]
[null,"2020-02-17","","",-0.11]
[null,"2020-02-18","","",-0.12]
[null,"2020-02-19","","",-0.12]
[null,"2020-02-20","","",-0.12]
[null,"2020-02-21","","",-0.16]
[null,"2020-02-24","","",-0.19]
[null,"2020-02-25","","",-0.18]
[null,"2020-02-26","","",-0.18]
[null,"2020-02-27","","",-0.18]
[null,"2020-02-28","","",-0.25]
[null,"2020-03-02","","",-0.25]
[null,"2020-03-03","","",-0.2]
[null,"2020-03-04","","",-0.27]
[null,"2020-03-05","","",-0.25]
[null,"2020-03-06","","",-0.27]
[null,"2020-03-09","","",-0.33]
[null,"2020-03-10","","",-0.24]
[null,"2020-03-11","","",-0.21]
[null,"2020-03-12","","",-0.27]
[null,"2020-03-13","","",0.01]
[null,"2020-03-16","","",0.11]
[null,"2020-03-17","","",0.34]
[null,"2020-03-18","","",0.54]
[null,"2020-03-19","","",0.19]
[null,"2020-03-20","","",0.2]
[null,"2020-03-23","","",0.14000000000000001]
[null,"2020-03-24","","",0.18]
[null,"2020-03-25","","",0.25]
[null,"2020-03-26","","",0.21]
[null,"2020-03-27","","",0]
[null,"2020-03-30","","",-0.28999999999999998]
[null,"2020-03-31","","",0.02]
[null,"2020-04-01","","",0.05]
[null,"2020-04-02","","",0.13]
[null,"2020-04-03","","",0.1]
[null,"2020-04-06","","",0.14000000000000001]
[null,"2020-04-07","","",0.18]
[null,"2020-04-08","","",0.22]
[null,"2020-04-09","","",0.23]
[null,"2020-04-14","","",0.2]
[null,"2020-04-15","","",0.16]
[null,"2020-04-16","","",0.14000000000000001]
[null,"2020-04-17","","",0.11]
[null,"2020-04-20","","",0.12]
[null,"2020-04-21","","",0.14000000000000001]
[null,"2020-04-22","","",0.19]
[null,"2020-04-23","","",0.2]
[null,"2020-04-24","","",0.18]
[null,"2020-04-27","","",0.12]
[null,"2020-04-28","","",0.12]
[null,"2020-04-29","","",7.0000000000000007E-2]
[null,"2020-04-30","","",0.04]
[null,"2020-05-04","","",0]
[null,"2020-05-05","","",0.04]
[null,"2020-05-06","","",0.03]
[null,"2020-05-07","","",0.09]
[null,"2020-05-08","","",0.02]
[null,"2020-05-11","","",0.06]
[null,"2020-05-12","","",0.06]
[null,"2020-05-13","","",0.04]
[null,"2020-05-14","","",0.02]
[null,"2020-05-15","","",0.03]
[null,"2020-05-18","","",0.03]
[null,"2020-05-19","","",0.05]
[null,"2020-05-20","","",0.06]
[null,"2020-05-25","","",0.03]
[null,"2020-05-26","","",0.06]
[null,"2020-05-27","","",0.04]
[null,"2020-05-28","","",0.03]
[null,"2020-05-29","","",-0.01]
[null,"2020-06-02","","",0.01]
[null,"2020-06-03","","",0.03]
[null,"2020-06-04","","",7.0000000000000007E-2]
[null,"2020-06-05","","",0.05]
[null,"2020-06-08","","",0.06]
[null,"2020-06-09","","",0.02]
[null,"2020-06-10","","",0.05]
[null,"2020-06-11","","",0.01]
[null,"2020-06-12","","",-0.03]
[null,"2020-06-15","","",-7.0000000000000007E-2]
[null,"2020-06-16","","",-0.05]
[null,"2020-06-17","","",-0.03]
[null,"2020-06-18","","",-0.06]
[null,"2020-06-19","","",-0.08]
[null,"2020-06-22","","",-0.1]
[null,"2020-06-23","","",-0.12]
[null,"2020-06-24","","",-0.11]
[null,"2020-06-25","","",-0.13]
[null,"2020-06-26","","",-0.15]
[null,"2020-06-29","","",-0.14000000000000001]
[null,"2020-06-30","","",-0.15]
[null,"2020-07-01","","",-0.12]
[null,"2020-07-02","","",-0.09]
[null,"2020-07-03","","",-0.14000000000000001]
[null,"2020-07-06","","",-0.13]
[null,"2020-07-07","","",-0.15]
[null,"2020-07-08","","",-0.16]
[null,"2020-07-09","","",-0.14000000000000001]
[null,"2020-07-10","","",-0.17]
[null,"2020-07-13","","",-0.15]
[null,"2020-07-14","","",-0.14000000000000001]
[null,"2020-07-15","","",-0.17]
[null,"2020-07-16","","",-0.16]
[null,"2020-07-17","","",-0.17]
[null,"2020-07-20","","",-0.16]
[null,"2020-07-22","","",-0.18]
[null,"2020-07-23","","",-0.21]
[null,"2020-07-24","","",-0.18]
[null,"2020-07-27","","",-0.18]
[null,"2020-07-28","","",-0.21]
[null,"2020-07-29","","",-0.22]
[null,"2020-07-30","","",-0.23]
[null,"2020-07-31","","",-0.24]
[null,"2020-08-03","","",-0.22]
[null,"2020-08-04","","",-0.25]
[null,"2020-08-05","","",-0.25]
[null,"2020-08-06","","",-0.24]
[null,"2020-08-07","","",-0.26]
[null,"2020-08-10","","",-0.25]
[null,"2020-08-11","","",-0.26]
[null,"2020-08-12","","",-0.21]
[null,"2020-08-13","","",-0.21]
[null,"2020-08-14","","",-0.14000000000000001]
[null,"2020-08-17","","",-0.16]
[null,"2020-08-18","","",-0.19]
[null,"2020-08-19","","",-0.22]
[null,"2020-08-20","","",-0.22]
[null,"2020-08-21","","",-0.24]
[null,"2020-08-24","","",-0.22]
[null,"2020-08-25","","",-0.19]
[null,"2020-08-26","","",-0.16]
[null,"2020-08-27","","",-0.19]
[null,"2020-08-28","","",-0.13]
[null,"2020-08-31","","",-0.13]
[null,"2020-09-01","","",-0.13]
[null,"2020-09-02","","",-0.2]
[null,"2020-09-03","","",-0.21]
[null,"2020-09-04","","",-0.22]
[null,"2020-09-07","","",-0.2]
[null,"2020-09-08","","",-0.21]
[null,"2020-09-09","","",-0.24]
[null,"2020-09-10","","",-0.2]
[null,"2020-09-11","","",-0.21]
[null,"2020-09-14","","",-0.24]
[null,"2020-09-15","","",-0.23]
[null,"2020-09-16","","",-0.25]
[null,"2020-09-17","","",-0.24]
[null,"2020-09-18","","",-0.26]
[null,"2020-09-21","","",-0.28000000000000003]
[null,"2020-09-22","","",-0.3]
[null,"2020-09-23","","",-0.28999999999999998]
[null,"2020-09-24","","",-0.3]
[null,"2020-09-25","","",-0.28000000000000003]
[null,"2020-09-28","","",-0.28999999999999998]
[null,"2020-09-29","","",-0.31]
[null,"2020-09-30","","",-0.33]
[null,"2020-10-01","","",-0.28999999999999998]
[null,"2020-10-02","","",-0.31]
[null,"2020-10-05","","",-0.31]
[null,"2020-10-06","","",-0.3]
[null,"2020-10-07","","",-0.3]
[null,"2020-10-08","","",-0.3]
[null,"2020-10-09","","",-0.33]
[null,"2020-10-12","","",-0.33]
[null,"2020-10-13","","",-0.34]
[null,"2020-10-14","","",-0.36]
[null,"2020-10-15","","",-0.38]
[null,"2020-10-16","","",-0.38]
[null,"2020-10-19","","",-0.39]
[null,"2020-10-20","","",-0.38]
[null,"2020-10-21","","",-0.35]
[null,"2020-10-22","","",-0.34]
[null,"2020-10-23","","",-0.33]
[null,"2020-10-26","","",-0.35]
[null,"2020-10-27","","",-0.36]
[null,"2020-10-28","","",-0.38]
[null,"2020-10-29","","",-0.38]
[null,"2020-10-30","","",-0.39]
[null,"2020-11-02","","",-0.38]
[null,"2020-11-03","","",-0.38]
[null,"2020-11-04","","",-0.42]
[null,"2020-11-05","","",-0.42]
[null,"2020-11-06","","",-0.42]
[null,"2020-11-09","","",-0.43]
[null,"2020-11-10","","",-0.3]
[null,"2020-11-12","","",-0.31]
[null,"2020-11-13","","",-0.35]
[null,"2020-11-16","","",-0.37]
[null,"2020-11-17","","",-0.37]
[null,"2020-11-18","","",-0.38]
[null,"2020-11-19","","",-0.39]
[null,"2020-11-20","","",-0.39]
[null,"2020-11-23","","",-0.39]
[null,"2020-11-24","","",-0.39]
[null,"2020-11-25","","",-0.39]
[null,"2020-11-26","","",-0.39]
[null,"2020-11-27","","",-0.4]
[null,"2020-11-30","","",-0.39]
[null,"2020-12-01","","",-0.35]
[null,"2020-12-02","","",-0.33]
[null,"2020-12-03","","",-0.35]
[null,"2020-12-04","","",-0.36]
[null,"2020-12-07","","",-0.38]
[null,"2020-12-08","","",-0.39]
[null,"2020-12-09","","",-0.4]
[null,"2020-12-10","","",-0.42]
[null,"2020-12-11","","",-0.44]
[null,"2020-12-14","","",-0.43]
[null,"2020-12-15","","",-0.42]
[null,"2020-12-16","","",-0.4]
[null,"2020-12-17","","",-0.39]
[null,"2020-12-18","","",-0.37]
[null,"2020-12-21","","",-0.42]
[null,"2020-12-22","","",-0.39]
[null,"2020-12-23","","",-0.41]
[null,"2020-12-24","","",-0.36]
[null,"2020-12-28","","",-0.36]
[null,"2020-12-29","","",-0.4]
[null,"2020-12-30","","",-0.38]
[null,"2020-12-31","","",-0.39]
[null,"2021-01-04","","",-0.42]
[null,"2021-01-05","","",-0.41]
[null,"2021-01-06","","",-0.36]
[null,"2021-01-07","","",-0.36]
[null,"2021-01-08","","",-0.37]
[null,"2021-01-11","","",-0.37]
[null,"2021-01-12","","",-0.32]
[null,"2021-01-13","","",-0.33]
[null,"2021-01-14","","",-0.37]
[null,"2021-01-15","","",-0.37]
[null,"2021-01-18","","",-0.36]
[null,"2021-01-19","","",-0.34]
[null,"2021-01-20","","",-0.35]
[null,"2021-01-21","","",-0.35]
[null,"2021-01-22","","",-0.32]
[null,"2021-01-25","","",-0.35]
[null,"2021-01-26","","",-0.36]
[null,"2021-01-27","","",-0.35]
[null,"2021-01-28","","",-0.37]
[null,"2021-01-29","","",-0.33]
[null,"2021-02-01","","",-0.34]
[null,"2021-02-02","","",-0.32]
[null,"2021-02-03","","",-0.3]
[null,"2021-02-04","","",-0.3]
[null,"2021-02-05","","",-0.28999999999999998]
[null,"2021-02-08","","",-0.26]
[null,"2021-02-09","","",-0.28000000000000003]
[null,"2021-02-10","","",-0.27]
[null,"2021-02-11","","",-0.28999999999999998]
[null,"2021-02-12","","",-0.28000000000000003]
[null,"2021-02-15","","",-0.21]
[null,"2021-02-16","","",-0.21]
[null,"2021-02-17","","",-0.16]
[null,"2021-02-18","","",-0.17]
[null,"2021-02-19","","",-0.12]
[null,"2021-02-22","","",-0.11]
[null,"2021-02-23","","",-0.11]
[null,"2021-02-24","","",-0.11]
[null,"2021-02-25","","",-0.06]
[null,"2021-02-26","","",-0.05]
[null,"2021-03-01","","",-0.12]
[null,"2021-03-02","","",-0.14000000000000001]
[null,"2021-03-03","","",-0.14000000000000001]
[null,"2021-03-04","","",-0.12]
[null,"2021-03-05","","",-0.1]
[null,"2021-03-08","","",0]
[null,"2021-03-09","","",-0.02]
[null,"2021-03-10","","",0]
[null,"2021-03-11","","",-0.02]
[null,"2021-03-12","","",-0.01]
[null,"2021-03-15","","",-0.01]
[null,"2021-03-16","","",-0.04]
[null,"2021-03-17","","",-0.01]
[null,"2021-03-18","","",0.04]
[null,"2021-03-19","","",0]
[null,"2021-03-22","","",0]
[null,"2021-03-23","","",-0.02]
[null,"2021-03-24","","",-0.05]
[null,"2021-03-25","","",-0.05]
[null,"2021-03-26","","",-0.05]
[null,"2021-03-29","","",-0.03]
[null,"2021-03-30","","",0.04]
[null,"2021-03-31","","",0.03]
[null,"2021-04-01","","",0]
[null,"2021-04-06","","",0.01]
[null,"2021-04-07","","",-0.01]
[null,"2021-04-08","","",-0.01]
[null,"2021-04-09","","",0.01]
[null,"2021-04-12","","",0]
[null,"2021-04-13","","",0.05]
[null,"2021-04-14","","",0.03]
[null,"2021-04-15","","",0.05]
[null,"2021-04-16","","",0.05]
[null,"2021-04-19","","",0.04]
[null,"2021-04-20","","",0.08]
[null,"2021-04-21","","",0.06]
[null,"2021-04-22","","",0.04]
[null,"2021-04-23","","",0.04]
[null,"2021-04-26","","",0.05]
[null,"2021-04-27","","",0.06]
[null,"2021-04-28","","",0.09]
[null,"2021-04-29","","",0.1]
[null,"2021-04-30","","",0.13]
[null,"2021-05-03","","",0.17]
[null,"2021-05-04","","",0.13]
[null,"2021-05-05","","",0.12]
[null,"2021-05-06","","",0.1]
[null,"2021-05-07","","",0.14000000000000001]
[null,"2021-05-10","","",0.15]
[null,"2021-05-11","","",0.18]
[null,"2021-05-12","","",0.18]
[null,"2021-05-17","","",0.24]
[null,"2021-05-18","","",0.26]
[null,"2021-05-19","","",0.28999999999999998]
[null,"2021-05-20","","",0.27]
[null,"2021-05-21","","",0.22]
[null,"2021-05-25","","",0.19]
[null,"2021-05-26","","",0.14000000000000001]
[null,"2021-05-27","","",0.13]
[null,"2021-05-28","","",0.16]
[null,"2021-05-31","","",0.16]
[null,"2021-06-01","","",0.13]
[null,"2021-06-02","","",0.14000000000000001]
[null,"2021-06-03","","",0.14000000000000001]
[null,"2021-06-04","","",0.15]
[null,"2021-06-07","","",0.14000000000000001]
[null,"2021-06-08","","",0.14000000000000001]
[null,"2021-06-09","","",0.1]
[null,"2021-06-10","","",0.1]
[null,"2021-06-11","","",0.05]
[null,"2021-06-14","","",7.0000000000000007E-2]
[null,"2021-06-15","","",0.08]
[null,"2021-06-16","","",0.11]
[null,"2021-06-17","","",0.14000000000000001]
[null,"2021-06-18","","",0.12]
[null,"2021-06-21","","",0.12]
[null,"2021-06-22","","",0.15]
[null,"2021-06-23","","",0.14000000000000001]
[null,"2021-06-24","","",0.13]
[null,"2021-06-25","","",0.13]
[null,"2021-06-28","","",0.15]
[null,"2021-06-29","","",0.13]
[null,"2021-06-30","","",0.12]
[null,"2021-07-01","","",0.11]
[null,"2021-07-02","","",0.08]
[null,"2021-07-05","","",0.08]
[null,"2021-07-06","","",0.08]
[null,"2021-07-07","","",0.02]
[null,"2021-07-08","","",-0.03]
[null,"2021-07-09","","",0]
[null,"2021-07-12","","",0]
[null,"2021-07-13","","",0.01]
[null,"2021-07-14","","",0.01]
[null,"2021-07-15","","",-0.03]
[null,"2021-07-16","","",-0.03]
[null,"2021-07-19","","",-0.06]
[null,"2021-07-20","","",-0.09]
[null,"2021-07-22","","",-7.0000000000000007E-2]
[null,"2021-07-23","","",-0.09]
[null,"2021-07-26","","",-0.12]
[null,"2021-07-27","","",-0.12]
[null,"2021-07-28","","",-0.11]
[null,"2021-07-29","","",-0.11]
[null,"2021-07-30","","",-0.11]
[null,"2021-08-02","","",-0.11]
[null,"2021-08-03","","",-0.13]
[null,"2021-08-04","","",-0.15]
[null,"2021-08-05","","",-0.17]
[null,"2021-08-06","","",-0.17]
[null,"2021-08-09","","",-0.14000000000000001]
[null,"2021-08-10","","",-0.14000000000000001]
[null,"2021-08-11","","",-0.12]
[null,"2021-08-12","","",-0.14000000000000001]
[null,"2021-08-13","","",-0.14000000000000001]
[null,"2021-08-16","","",-0.14000000000000001]
[null,"2021-08-17","","",-0.16]
[null,"2021-08-18","","",-0.15]
[null,"2021-08-19","","",-0.16]
[null,"2021-08-20","","",-0.16]
[null,"2021-08-23","","",-0.15]
[null,"2021-08-24","","",-0.16]
[null,"2021-08-25","","",-0.14000000000000001]
[null,"2021-08-26","","",-0.08]
[null,"2021-08-27","","",-7.0000000000000007E-2]
[null,"2021-08-30","","",-0.09]
[null,"2021-08-31","","",-0.1]
[null,"2021-09-01","","",-0.04]
[null,"2021-09-02","","",-0.06]
[null,"2021-09-03","","",-0.06]
[null,"2021-09-06","","",-0.04]
[null,"2021-09-07","","",-0.02]
[null,"2021-09-08","","",-0.02]
[null,"2021-09-09","","",-0.01]
[null,"2021-09-10","","",-0.04]
[null,"2021-09-13","","",-0.02]
[null,"2021-09-14","","",-0.01]
[null,"2021-09-15","","",-0.03]
[null,"2021-09-16","","",0.01]
[null,"2021-09-17","","",0.02]
[null,"2021-09-20","","",0]
[null,"2021-09-21","","",0]
[null,"2021-09-22","","",-0.01]
[null,"2021-09-23","","",0]
[null,"2021-09-24","","",0.08]
[null,"2021-09-27","","",0.1]
[null,"2021-09-28","","",0.12]
[null,"2021-09-29","","",0.1]
[null,"2021-09-30","","",0.1]
[null,"2021-10-01","","",0.1]
[null,"2021-10-04","","",0.11]
[null,"2021-10-05","","",0.09]
[null,"2021-10-06","","",0.15]
[null,"2021-10-07","","",0.13]
[null,"2021-10-08","","",0.16]
[null,"2021-10-11","","",0.17]
[null,"2021-10-12","","",0.18]
[null,"2021-10-13","","",0.18]
[null,"2021-10-14","","",0.16]
[null,"2021-10-15","","",0.13]
[null,"2021-10-18","","",0.17]
[null,"2021-10-19","","",0.16]
[null,"2021-10-20","","",0.18]
[null,"2021-10-21","","",0.18]
[null,"2021-10-22","","",0.23]
[null,"2021-10-25","","",0.21]
[null,"2021-10-26","","",0.17]
[null,"2021-10-27","","",0.16]
[null,"2021-10-28","","",0.15]
[null,"2021-10-29","","",0.23]
[null,"2021-11-02","","",0.18]
[null,"2021-11-03","","",0.12]
[null,"2021-11-04","","",0.13]
[null,"2021-11-05","","",7.0000000000000007E-2]
[null,"2021-11-08","","",0.04]
[null,"2021-11-09","","",0.05]
[null,"2021-11-10","","",0.04]
[null,"2021-11-12","","",0.09]
[null,"2021-11-15","","",0.04]
[null,"2021-11-16","","",0.09]
[null,"2021-11-17","","",0.08]
[null,"2021-11-18","","",0.08]
[null,"2021-11-19","","",0.02]
[null,"2021-11-22","","",0]
[null,"2021-11-23","","",0.08]
[null,"2021-11-24","","",0.11]
[null,"2021-11-25","","",0.1]
[null,"2021-11-26","","",0.03]
[null,"2021-11-29","","",0.04]
[null,"2021-11-30","","",0.01]
[null,"2021-12-01","","",0.03]
[null,"2021-12-02","","",0]
[null,"2021-12-03","","",-0.02]
[null,"2021-12-06","","",-0.03]
[null,"2021-12-07","","",-0.03]
[null,"2021-12-08","","",-0.03]
[null,"2021-12-09","","",0]
[null,"2021-12-10","","",-0.01]
[null,"2021-12-13","","",-0.04]
[null,"2021-12-14","","",-0.04]
[null,"2021-12-15","","",-0.04]
[null,"2021-12-16","","",-0.02]
[null,"2021-12-17","","",-0.01]
[null,"2021-12-20","","",-0.05]
[null,"2021-12-21","","",-0.02]
[null,"2021-12-22","","",0.08]
[null,"2021-12-23","","",0.09]
[null,"2021-12-24","","",0.11]
[null,"2021-12-27","","",0.13]
[null,"2021-12-28","","",0.13]
[null,"2021-12-29","","",0.13]
[null,"2021-12-30","","",0.15]
[null,"2021-12-31","","",0.18]
[null,"2022-01-03","","",0.18]
[null,"2022-01-04","","",0.21]
[null,"2022-01-05","","",0.22]
[null,"2022-01-06","","",0.24]
[null,"2022-01-07","","",0.26]
[null,"2022-01-10","","",0.28999999999999998]
[null,"2022-01-11","","",0.27]
[null,"2022-01-12","","",0.27]
[null,"2022-01-13","","",0.26]
[null,"2022-01-14","","",0.24]
[null,"2022-01-17","","",0.28000000000000003]
[null,"2022-01-18","","",0.3]
[null,"2022-01-19","","",0.31]
[null,"2022-01-20","","",0.28000000000000003]
[null,"2022-01-21","","",0.25]
[null,"2022-01-24","","",0.23]
[null,"2022-01-25","","",0.26]
[null,"2022-01-26","","",0.25]
[null,"2022-01-27","","",0.28999999999999998]
[null,"2022-01-28","","",0.28999999999999998]
[null,"2022-01-31","","",0.31]
[null,"2022-02-01","","",0.32]
[null,"2022-02-02","","",0.35]
[null,"2022-02-03","","",0.38]
[null,"2022-02-04","","",0.53]
[null,"2022-02-07","","",0.61]
[null,"2022-02-08","","",0.6]
[null,"2022-02-09","","",0.59]
[null,"2022-02-10","","",0.63]
[null,"2022-02-11","","",0.68]
[null,"2022-02-14","","",0.62]
[null,"2022-02-15","","",0.7]
[null,"2022-02-16","","",0.72]
[null,"2022-02-17","","",0.69]
[null,"2022-02-18","","",0.63]
[null,"2022-02-21","","",0.65]
[null,"2022-02-22","","",0.64]
[null,"2022-02-23","","",0.68]
[null,"2022-02-24","","",0.6]
[null,"2022-02-25","","",0.6]
[null,"2022-02-28","","",0.61]
[null,"2022-03-01","","",0.45]
[null,"2022-03-02","","",0.37]
[null,"2022-03-03","","",0.49]
[null,"2022-03-04","","",0.44]
[null,"2022-03-07","","",0.42]
[null,"2022-03-08","","",0.48]
[null,"2022-03-09","","",0.56999999999999995]
[null,"2022-03-10","","",0.68]
[null,"2022-03-11","","",0.81]
[null,"2022-03-14","","",0.88]
[null,"2022-03-15","","",0.88]
[null,"2022-03-16","","",0.88]
[null,"2022-03-17","","",0.88]
[null,"2022-03-18","","",0.87]
[null,"2022-03-21","","",0.91]
[null,"2022-03-22","","",0.98]
[null,"2022-03-23","","",0.95]
[null,"2022-03-24","","",1]
[null,"2022-03-25","","",0.97]
[null,"2022-03-28","","",1.07]
[null,"2022-03-29","","",1.08]
[null,"2022-03-30","","",1.1100000000000001]
[null,"2022-03-31","","",1.08]
[null,"2022-04-01","","",1.0900000000000001]
[null,"2022-04-04","","",1.01]
[null,"2022-04-05","","",1.07]
[null,"2022-04-06","","",1.21]
[null,"2022-04-07","","",1.17]
[null,"2022-04-08","","",1.24]
[null,"2022-04-11","","",1.28]
[null,"2022-04-12","","",1.36]
[null,"2022-04-13","","",1.34]
[null,"2022-04-14","","",1.3]
[null,"2022-04-19","","",1.41]
[null,"2022-04-20","","",1.37]
[null,"2022-04-21","","",1.43]
[null,"2022-04-22","","",1.43]
[null,"2022-04-25","","",1.43]
[null,"2022-04-26","","",1.37]
[null,"2022-04-27","","",1.36]
[null,"2022-04-28","","",1.37]
[null,"2022-04-29","","",1.46]
[null,"2022-05-02","","",1.49]
[null,"2022-05-03","","",1.56]
[null,"2022-05-04","","",1.56]
[null,"2022-05-05","","",1.58]
[null,"2022-05-06","","",1.64]
[null,"2022-05-09","","",1.73]
[null,"2022-05-10","","",1.65]
[null,"2022-05-11","","",1.55]
[null,"2022-05-12","","",1.47]
[null,"2022-05-13","","",1.47]
[null,"2022-05-16","","",1.57]
[null,"2022-05-17","","",1.56]
[null,"2022-05-18","","",1.61]
[null,"2022-05-19","","",1.55]
[null,"2022-05-20","","",1.56]
[null,"2022-05-23","","",1.57]
[null,"2022-05-24","","",1.58]
[null,"2022-05-25","","",1.55]
[null,"2022-05-30","","",1.65]
[null,"2022-05-31","","",1.65]
[null,"2022-06-01","","",1.72]
[null,"2022-06-02","","",1.8]
[null,"2022-06-03","","",1.85]
[null,"2022-06-07","","",1.9]
[null,"2022-06-08","","",1.93]
[null,"2022-06-09","","",1.95]
[null,"2022-06-10","","",2.04]
[null,"2022-06-13","","",2.23]
[null,"2022-06-14","","",2.33]
[null,"2022-06-15","","",2.41]
[null,"2022-06-16","","",2.44]
[null,"2022-06-17","","",2.29]
[null,"2022-06-20","","",2.2999999999999998]
[null,"2022-06-21","","",2.36]
[null,"2022-06-22","","",2.33]
[null,"2022-06-23","","",2.08]
[null,"2022-06-24","","",2.0699999999999998]
[null,"2022-06-27","","",2.1]
[null,"2022-06-28","","",2.2200000000000002]
[null,"2022-06-29","","",2.2200000000000002]
[null,"2022-06-30","","",2.1]
[null,"2022-07-01","","",2.06]
[null,"2022-07-04","","",1.95]
[null,"2022-07-05","","",1.97]
[null,"2022-07-06","","",1.89]
[null,"2022-07-07","","",1.95]
[null,"2022-07-08","","",1.91]
[null,"2022-07-11","","",1.93]
[null,"2022-07-12","","",1.77]
[null,"2022-07-13","","",1.78]
[null,"2022-07-14","","",1.87]
[null,"2022-07-15","","",1.74]
[null,"2022-07-18","","",1.83]
[null,"2022-07-19","","",1.86]
[null,"2022-07-20","","",1.82]
[null,"2022-07-22","","",1.68]
[null,"2022-07-25","","",1.7]
[null,"2022-07-26","","",1.6]
[null,"2022-07-27","","",1.57]
[null,"2022-07-28","","",1.61]
[null,"2022-07-29","","",1.52]
[null,"2022-08-01","","",1.47]
[null,"2022-08-02","","",1.32]
[null,"2022-08-03","","",1.46]
[null,"2022-08-04","","",1.47]
[null,"2022-08-05","","",1.4]
[null,"2022-08-08","","",1.47]
[null,"2022-08-09","","",1.51]
[null,"2022-08-10","","",1.49]
[null,"2022-08-11","","",1.51]
[null,"2022-08-12","","",1.59]
[null,"2022-08-16","","",1.52]
[null,"2022-08-17","","",1.69]
[null,"2022-08-18","","",1.72]
[null,"2022-08-19","","",1.8]
[null,"2022-08-22","","",1.86]
[null,"2022-08-23","","",1.94]
[null,"2022-08-24","","",1.95]
[null,"2022-08-25","","",1.97]
[null,"2022-08-26","","",1.98]
[null,"2022-08-29","","",2.16]
[null,"2022-08-30","","",2.12]
[null,"2022-08-31","","",2.1800000000000002]
[null,"2022-09-01","","",2.25]
[null,"2022-09-02","","",2.23]
[null,"2022-09-05","","",2.2599999999999998]
[null,"2022-09-06","","",2.21]
[null,"2022-09-07","","",2.21]
[null,"2022-09-08","","",2.21]
[null,"2022-09-09","","",2.37]
[null,"2022-09-12","","",2.35]
[null,"2022-09-13","","",2.31]
[null,"2022-09-14","","",2.34]
[null,"2022-09-15","","",2.33]
[null,"2022-09-16","","",2.37]
[null,"2022-09-19","","",2.38]
[null,"2022-09-20","","",2.46]
[null,"2022-09-21","","",2.4500000000000002]
[null,"2022-09-22","","",2.44]
[null,"2022-09-23","","",2.56]
[null,"2022-09-26","","",2.72]
[null,"2022-09-27","","",2.75]
[null,"2022-09-28","","",2.93]
[null,"2022-09-29","","",2.92]
[null,"2022-09-30","","",2.78]
[null,"2022-10-03","","",2.77]
[null,"2022-10-04","","",2.46]
[null,"2022-10-05","","",2.6]
[null,"2022-10-06","","",2.66]
[null,"2022-10-07","","",2.78]
[null,"2022-10-10","","",2.83]
[null,"2022-10-11","","",2.93]
[null,"2022-10-12","","",2.96]
[null,"2022-10-13","","",2.96]
[null,"2022-10-14","","",2.85]
[null,"2022-10-17","","",2.9]
[null,"2022-10-18","","",2.96]
[null,"2022-10-19","","",2.99]
[null,"2022-10-20","","",3.08]
[null,"2022-10-21","","",3.09]
[null,"2022-10-24","","",3.02]
[null,"2022-10-25","","",2.84]
[null,"2022-10-26","","",2.76]
[null,"2022-10-27","","",2.78]
[null,"2022-10-28","","",2.62]
[null,"2022-10-31","","",2.74]
[null,"2022-11-02","","",2.74]
[null,"2022-11-03","","",2.83]
[null,"2022-11-04","","",2.83]
[null,"2022-11-07","","",2.86]
[null,"2022-11-08","","",2.89]
[null,"2022-11-09","","",2.83]
[null,"2022-11-10","","",2.77]
[null,"2022-11-14","","",2.72]
[null,"2022-11-15","","",2.67]
[null,"2022-11-16","","",2.65]
[null,"2022-11-17","","",2.5299999999999998]
[null,"2022-11-18","","",2.62]
[null,"2022-11-21","","",2.57]
[null,"2022-11-22","","",2.5499999999999998]
[null,"2022-11-23","","",2.5299999999999998]
[null,"2022-11-24","","",2.38]
[null,"2022-11-25","","",2.4700000000000002]
[null,"2022-11-28","","",2.5499999999999998]
[null,"2022-11-29","","",2.48]
[null,"2022-11-30","","",2.4900000000000002]
[null,"2022-12-01","","",2.4]
[null,"2022-12-02","","",2.33]
[null,"2022-12-05","","",2.41]
[null,"2022-12-06","","",2.4300000000000002]
[null,"2022-12-07","","",2.38]
[null,"2022-12-08","","",2.33]
[null,"2022-12-09","","",2.4300000000000002]
[null,"2022-12-12","","",2.5099999999999998]
[null,"2022-12-13","","",2.52]
[null,"2022-12-14","","",2.5299999999999998]
[null,"2022-12-15","","",2.5099999999999998]
[null,"2022-12-16","","",2.83]
[null,"2022-12-19","","",2.84]
[null,"2022-12-20","","",2.92]
[null,"2022-12-21","","",2.91]
[null,"2022-12-22","","",2.94]
[null,"2022-12-23","","",3.03]
[null,"2022-12-27","","",3.13]
[null,"2022-12-28","","",3.12]
[null,"2022-12-29","","",3.12]
[null,"2022-12-30","","",3.15]
[null,"2023-01-02","","",3.12]
[null,"2023-01-03","","",2.97]
[null,"2023-01-04","","",2.93]
[null,"2023-01-05","","",2.91]
[null,"2023-01-06","","",2.94]
[null,"2023-01-09","","",2.89]
[null,"2023-01-10","","",2.88]
[null,"2023-01-11","","",2.79]
[null,"2023-01-12","","",2.73]
[null,"2023-01-13","","",2.63]
[null,"2023-01-16","","",2.75]
[null,"2023-01-17","","",2.74]
[null,"2023-01-18","","",2.62]
[null,"2023-01-19","","",2.5299999999999998]
[null,"2023-01-20","","",2.64]
[null,"2023-01-23","","",2.71]
[null,"2023-01-24","","",2.73]
[null,"2023-01-25","","",2.65]
[null,"2023-01-26","","",2.73]
[null,"2023-01-27","","",2.83]
[null,"2023-01-30","","",2.86]
[null,"2023-01-31","","",2.87]
[null,"2023-02-01","","",2.82]
[null,"2023-02-02","","",2.81]
[null,"2023-02-03","","",2.68]
[null,"2023-02-06","","",2.82]
[null,"2023-02-07","","",2.84]
[null,"2023-02-08","","",2.91]
[null,"2023-02-09","","",2.84]
[null,"2023-02-10","","",2.9]
[null,"2023-02-13","","",2.9]
[null,"2023-02-14","","",2.9]
[null,"2023-02-15","","",2.96]
[null,"2023-02-16","","",3.02]
[null,"2023-02-17","","",3.1]
[null,"2023-02-20","","",3.01]
[null,"2023-02-21","","",3.06]
[null,"2023-02-22","","",3.14]
[null,"2023-02-23","","",3.12]
[null,"2023-02-24","","",3.05]
[null,"2023-02-27","","",3.16]
[null,"2023-02-28","","",3.24]
[null,"2023-03-01","","",3.29]
[null,"2023-03-02","","",3.33]
[null,"2023-03-03","","",3.28]
[null,"2023-03-06","","",3.24]
[null,"2023-03-07","","",3.26]
[null,"2023-03-08","","",3.29]
[null,"2023-03-09","","",3.29]
[null,"2023-03-10","","",3.15]
[null,"2023-03-13","","",2.89]
[null,"2023-03-14","","",3.01]
[null,"2023-03-15","","",3]
[null,"2023-03-16","","",2.93]
[null,"2023-03-17","","",2.91]
[null,"2023-03-20","","",2.7]
[null,"2023-03-21","","",2.83]
[null,"2023-03-22","","",3.02]
[null,"2023-03-23","","",2.93]
[null,"2023-03-24","","",2.75]
[null,"2023-03-27","","",2.86]
[null,"2023-03-28","","",3]
[null,"2023-03-29","","",2.98]
[null,"2023-03-30","","",2.97]
[null,"2023-03-31","","",3.07]
[null,"2023-04-03","","",3.01]
[null,"2023-04-04","","",2.96]
[null,"2023-04-05","","",2.97]
[null,"2023-04-06","","",2.82]
[null,"2023-04-07","","",2.87]
[null,"2023-04-11","","",2.92]
[null,"2023-04-12","","",3]
[null,"2023-04-13","","",3.07]
[null,"2023-04-14","","",3.06]
[null,"2023-04-17","","",3.11]
[null,"2023-04-18","","",3.16]
[null,"2023-04-19","","",3.19]
[null,"2023-04-20","","",3.16]
[null,"2023-04-21","","",3.12]
[null,"2023-04-24","","",3.15]
[null,"2023-04-25","","",3.12]
[null,"2023-04-26","","",3.03]
[null,"2023-04-27","","",3.12]
[null,"2023-04-28","","",3.04]
[null,"2023-05-02","","",3.06]
[null,"2023-05-03","","",2.94]
[null,"2023-05-04","","",2.94]
[null,"2023-05-05","","",2.97]
[null,"2023-05-08","","",3.02]
[null,"2023-05-09","","",3.03]
[null,"2023-05-10","","",3.06]
[null,"2023-05-11","","",3]
[null,"2023-05-12","","",2.94]
[null,"2023-05-15","","",2.99]
[null,"2023-05-16","","",2.98]
[null,"2023-05-17","","",3.03]
[null,"2023-05-22","","",3.1]
[null,"2023-05-23","","",3.17]
[null,"2023-05-24","","",3.16]
[null,"2023-05-25","","",3.17]
[null,"2023-05-26","","",3.23]
[null,"2023-05-30","","",3.1]
[null,"2023-05-31","","",2.95]
[null,"2023-06-01","","",2.98]
[null,"2023-06-02","","",2.97]
[null,"2023-06-05","","",3.04]
[null,"2023-06-06","","",3]
[null,"2023-06-07","","",3.04]
[null,"2023-06-08","","",3.13]
[null,"2023-06-09","","",3.09]
[null,"2023-06-12","","",3.05]
[null,"2023-06-13","","",3.03]
[null,"2023-06-14","","",3.1]
[null,"2023-06-15","","",3.14]
[null,"2023-06-16","","",3.14]
[null,"2023-06-19","","",3.12]
[null,"2023-06-20","","",3.12]
[null,"2023-06-21","","",3.06]
[null,"2023-06-22","","",3.11]
[null,"2023-06-23","","",3.02]
[null,"2023-06-26","","",2.95]
[null,"2023-06-27","","",2.97]
[null,"2023-06-28","","",3]
[null,"2023-06-29","","",3.01]
[null,"2023-06-30","","",3.11]
[null,"2023-07-03","","",3.04]
[null,"2023-07-04","","",3.12]
[null,"2023-07-05","","",3.1]
[null,"2023-07-06","","",3.19]
[null,"2023-07-07","","",3.29]
[null,"2023-07-10","","",3.32]
[null,"2023-07-11","","",3.28]
[null,"2023-07-12","","",3.28]
[null,"2023-07-13","","",3.13]
[null,"2023-07-14","","",3.13]
[null,"2023-07-17","","",3.13]
[null,"2023-07-18","","",3.06]
[null,"2023-07-19","","",2.98]
[null,"2023-07-20","","",3.08]
[null,"2023-07-24","","",3.05]
[null,"2023-07-25","","",3.09]
[null,"2023-07-26","","",3.09]
[null,"2023-07-27","","",3.14]
[null,"2023-07-28","","",3.16]
[null,"2023-07-31","","",3.16]
[null,"2023-08-01","","",3.15]
[null,"2023-08-02","","",3.17]
[null,"2023-08-03","","",3.22]
[null,"2023-08-04","","",3.26]
[null,"2023-08-07","","",3.23]
[null,"2023-08-08","","",3.15]
[null,"2023-08-09","","",3.11]
[null,"2023-08-10","","",3.19]
[null,"2023-08-11","","",3.21]
[null,"2023-08-14","","",3.26]
[null,"2023-08-16","","",3.32]
[null,"2023-08-17","","",3.35]
[null,"2023-08-18","","",3.29]
[null,"2023-08-21","","",3.3]
[null,"2023-08-22","","",3.32]
[null,"2023-08-23","","",3.18]
[null,"2023-08-24","","",3.12]
[null,"2023-08-25","","",3.18]
[null,"2023-08-28","","",3.21]
[null,"2023-08-29","","",3.19]
[null,"2023-08-30","","",3.18]
[null,"2023-08-31","","",3.15]
[null,"2023-09-01","","",3.1]
[null,"2023-09-04","","",3.18]
[null,"2023-09-05","","",3.2]
[null,"2023-09-06","","",3.24]
[null,"2023-09-07","","",3.27]
[null,"2023-09-08","","",3.24]
[null,"2023-09-11","","",3.26]
[null,"2023-09-12","","",3.26]
[null,"2023-09-13","","",3.32]
[null,"2023-09-14","","",3.28]
[null,"2023-09-15","","",3.28]
[null,"2023-09-18","","",3.31]
[null,"2023-09-19","","",3.33]
[null,"2023-09-20","","",3.36]
[null,"2023-09-21","","",3.37]
[null,"2023-09-22","","",3.36]
[null,"2023-09-25","","",3.42]
[null,"2023-09-26","","",3.44]
[null,"2023-09-27","","",3.43]
[null,"2023-09-28","","",3.58]
[null,"2023-09-29","","",3.51]
[null,"2023-10-02","","",3.54]
[null,"2023-10-03","","",3.57]
[null,"2023-10-04","","",3.64]
[null,"2023-10-05","","",3.62]
[null,"2023-10-06","","",3.59]
[null,"2023-10-09","","",3.54]
[null,"2023-10-10","","",3.46]
[null,"2023-10-11","","",3.38]
[null,"2023-10-12","","",3.37]
[null,"2023-10-13","","",3.41]
[null,"2023-10-16","","",3.45]
[null,"2023-10-17","","",3.48]
[null,"2023-10-18","","",3.58]
[null,"2023-10-19","","",3.63]
[null,"2023-10-20","","",3.59]
[null,"2023-10-23","","",3.6]
[null,"2023-10-24","","",3.45]
[null,"2023-10-25","","",3.51]
[null,"2023-10-26","","",3.56]
[null,"2023-10-27","","",3.5]
[null,"2023-10-30","","",3.45]
[null,"2023-10-31","","",3.43]
[null,"2023-11-02","","",3.35]
[null,"2023-11-03","","",3.36]
[null,"2023-11-06","","",3.33]
[null,"2023-11-07","","",3.34]
[null,"2023-11-08","","",3.28]
[null,"2023-11-09","","",3.28]
[null,"2023-11-10","","",3.35]
[null,"2023-11-13","","",3.31]
[null,"2023-11-14","","",3.31]
[null,"2023-11-15","","",3.18]
[null,"2023-11-16","","",3.22]
[null,"2023-11-17","","",3.13]
[null,"2023-11-20","","",3.19]
[null,"2023-11-21","","",3.19]
[null,"2023-11-22","","",3.18]
[null,"2023-11-23","","",3.18]
[null,"2023-11-24","","",3.25]
[null,"2023-11-27","","",3.25]
[null,"2023-11-28","","",3.15]
[null,"2023-11-29","","",3.06]
[null,"2023-11-30","","",3.03]
[null,"2023-12-01","","",3.03]
[null,"2023-12-04","","",2.97]
[null,"2023-12-05","","",2.9]
[null,"2023-12-06","","",2.85]
[null,"2023-12-07","","",2.76]
[null,"2023-12-08","","",2.82]
[null,"2023-12-11","","",2.85]
[null,"2023-12-12","","",2.82]
[null,"2023-12-13","","",2.79]
[null,"2023-12-14","","",2.62]
[null,"2023-12-15","","",2.61]
[null,"2023-12-18","","",2.59]
[null,"2023-12-19","","",2.6]
[null,"2023-12-20","","",2.5499999999999998]
[null,"2023-12-21","","",2.52]
[null,"2023-12-22","","",2.52]
[null,"2023-12-27","","",2.4900000000000002]
[null,"2023-12-28","","",2.4900000000000002]
[null,"2023-12-29","","",2.58]
[null,"2024-01-02","","",2.66]
[null,"2024-01-03","","",2.64]
[null,"2024-01-04","","",2.64]
[null,"2024-01-05","","",2.73]
[null,"2024-01-08","","",2.73]
[null,"2024-01-09","","",2.77]
[null,"2024-01-10","","",2.73]
[null,"2024-01-11","","",2.75]
[null,"2024-01-12","","",2.73]
[null,"2024-01-15","","",2.73]
[null,"2024-01-16","","",2.75]
[null,"2024-01-17","","",2.9]
["Data extracted on 17 Jan 2024 16:47 UTC (GMT) from NBB.Stat"]
[null,"2024-12-02","",""]
[null,null,null,2.67]
[null,"2024-12-03","",""]
[null,null,null,2.67]
[null,"2024-12-04","",""]
[null,null,null,2.67]
[null,"2024-12-05","",""]
[null,null,null,2.65]
[null,"2024-12-06","",""]
[null,null,null,2.64]
[null,"2024-12-09","",""]
[null,null,null,2.64]
[null,"2024-12-10","",""]
[null,null,null,2.64]
[null,"2024-12-11","",""]
[null,null,null,2.68]
[null,"2024-12-12","",""]
[null,null,null,2.72]
[null,"2024-12-13","",""]
[null,null,null,2.8]
[null,"2024-12-16","",""]
[null,null,null,2.84]
[null,"2024-12-17","",""]
[null,null,null,2.83]
[null,"2024-12-18","",""]
[null,null,null,2.85]
[null,"2024-12-19","",""]
[null,null,null,2.89]
[null,"2024-12-20","",""]
[null,null,null,2.91]
[null,"2024-12-23","",""]
[null,null,null,2.92]
[null,"2024-12-24","",""]
[null,null,null,2.94]
[null,"2024-12-27","",""]
[null,null,null,3.01]
[null,"2024-12-30","",""]
[null,null,null,3]
[null,"2024-12-31","",""]
[null,null,null,2.97]

{"sheet":"1A-Infrastructuur met forfait","index":4,"n_rows":197,"n_cols":28,"rows_kept":197,"cut":false,"hidden":true,"merged":[[3,1,6,16],[195,1,195,3],[195,4,195,8],[196,4,196,8],[0,0,0,16],[8,0,8,16],[9,0,69,0],[12,1,12,16],[14,1,15,16],[19,4,19,6],[19,7,19,9],[20,1,20,3],[20,4,20,6],[20,7,20,9],[23,1,23,3],[23,4,23,6],[23,7,23,9],[24,1,24,3],[24,4,24,6],[24,7,24,9],[21,1,21,3],[21,4,21,6],[21,7,21,9],[172,9,173,9],[22,1,22,3],[22,4,22,6],[22,7,22,9],[25,1,25,3],[25,4,25,6],[25,7,25,9],[28,10,28,17],[29,1,29,3],[29,4,29,6],[29,7,29,9],[29,10,29,16],[26,1,26,3],[26,7,26,9],[26,4,26,6],[30,1,30,3],[30,4,30,6],[30,7,30,9],[27,1,27,3],[27,4,27,6],[27,7,27,9],[28,1,28,3],[28,4,28,6],[28,7,28,9],[31,1,31,3],[31,4,31,6],[31,7,31,9],[32,1,32,3],[32,4,32,6],[32,7,32,9],[34,1,34,9],[39,1,39,5],[39,6,39,16],[40,1,40,16],[42,1,42,4],[42,5,42,16],[44,1,44,16],[36,1,36,5],[36,6,36,8],[37,1,37,5],[37,6,37,8],[38,1,38,5],[38,6,38,8],[46,1,47,16],[49,4,49,5],[49,6,49,8],[49,9,49,11],[49,12,49,16],[50,4,50,5],[50,6,50,8],[50,9,50,11],[50,12,50,16],[53,4,53,5],[53,6,53,8],[53,9,53,11],[53,12,53,16],[54,4,54,5],[54,6,54,8],[54,9,54,11],[54,12,54,16],[51,4,51,5],[51,6,51,8],[51,9,51,11],[51,12,51,16],[52,4,52,5],[52,6,52,8],[52,9,52,11],[52,12,52,16],[57,4,57,5],[57,6,57,8],[57,9,57,11],[57,12,57,16],[58,4,58,5],[58,6,58,8],[58,9,58,11],[58,12,58,16],[55,4,55,5],[55,6,55,8],[55,9,55,11],[55,12,55,16],[56,4,56,5],[56,6,56,8],[56,9,56,11],[56,12,56,16],[61,4,61,5],[61,6,61,8],[61,9,61,11],[61,12,61,16],[62,4,62,5],[62,6,62,8],[62,9,62,11],[62,12,62,16],[59,4,59,5],[59,6,59,8],[59,9,59,11],[59,12,59,16],[60,4,60,5],[60,6,60,8],[60,9,60,11],[60,12,60,16],[68,1,68,4],[68,5,68,16],[71,1,71,16],[73,1,74,12],[77,1,77,3],[63,1,63,16],[64,1,64,5],[64,6,64,8],[65,1,65,5],[65,6,65,16],[66,1,66,16],[87,1,87,16],[89,1,89,16],[91,1,91,3],[92,6,92,12],[95,7,95,16],[97,7,97,12],[78,1,78,3],[84,1,84,5],[84,6,84,8],[85,1,85,5],[85,6,85,16],[132,5,132,7],[134,1,134,16],[136,1,139,16],[141,1,142,3],[141,4,142,4],[141,5,142,5],[141,6,142,6],[141,7,141,10],[122,1,122,3],[125,1,125,5],[125,6,125,8],[126,1,126,5],[126,6,126,16],[130,0,130,16],[140,1,140,3],[147,1,147,3],[147,7,147,11],[148,1,148,3],[149,1,149,3],[150,1,150,3],[143,1,143,3],[143,7,143,9],[144,1,144,3],[144,7,144,12],[145,1,145,3],[145,7,146,11],[146,1,146,3],[156,1,156,3],[157,1,157,3],[158,1,158,3],[159,1,159,3],[160,1,160,3],[161,1,161,3],[151,1,151,3],[152,1,152,3],[152,7,154,9],[153,1,153,3],[154,1,154,3],[155,1,155,3],[176,1,176,3],[177,1,177,3],[162,1,162,3],[164,1,164,16],[166,1,169,16],[172,1,173,3],[172,4,173,4],[172,6,173,6],[172,7,173,7],[172,8,173,8],[172,10,173,14],[174,10,174,14],[175,10,175,14],[176,10,176,14],[177,10,177,14],[172,5,173,5],[171,1,171,3],[193,1,193,3],[187,1,187,3],[188,1,188,3],[189,1,189,3],[190,1,190,3],[191,1,191,3],[192,1,192,3],[187,10,187,14],[188,10,188,14],[189,10,189,14],[190,10,190,14],[191,10,191,14],[192,10,192,14],[193,10,193,14],[103,6,103,11],[182,1,182,3],[183,1,183,3],[183,16,185,19],[184,1,184,3],[185,1,185,3],[186,1,186,3],[178,1,178,3],[178,16,178,21],[179,1,179,3],[180,1,180,3],[181,1,181,3],[178,10,178,14],[179,10,179,14],[180,10,180,14],[181,10,181,14],[182,10,182,14],[183,10,183,14],[184,10,184,14],[185,10,185,14],[186,10,186,14],[174,1,174,3],[174,16,174,21],[175,1,175,3]]}
["Prijsaanvraag infrastructuur met infrastructuurforfait"]
[null,"Klik hier indien terug naar generieke input"]
[null,"Enkel de lichtblauw gekleurde velden dienen te worden ingevuld"]
[null,"Dit kostentabblad '1A' wordt ingevuld naar aanleiding van de investeringen die u uitvoert om  het infrastructuurforfait te kunnen bekomen. Dit formulier wordt ook gebruikt voor drastische investeringen voor bewoners met een reeds lopend infrastructuurforfait (i.e. waarvoor in het verleden reeds de prijsaanvraag en het infrastructuurforfait werden goedgekeurd). Indien u voor bewoners met een lopend infrastructuurforfait voor een andere aanleiding dan drastische investeringen een prijsaanvraag wenst in te dienen, dan hanteert u het formulier 2."]
[]
[]
[]
[]
["1. Verantwoording van de gevraagde gemiddelde dagprijs"]
[]
[null,"Totaal verantwoorde dagprijs met aftrek forfait",null,null,{"$f":"IFERROR(G39+G65+G85+G126,0)","v":0},"niet invullen, wordt automatisch berekend"]
[]
[null,"1.1 Kamerinvesteringen"]
[]
[null,"Hierna neemt u de kost van de infrastructuurinvesteringen op, voor het deel dat betrekking heeft op de infrastructuurforfaitgerechtigde capaciteit.  Die infrastructuurkost kan zowel betrekking hebben op een gebouw in eigendom  of via een huurovereenkomst. In geval van huur dient de investeringskost van de verhuurder te worden verrekend. De financieringskost wordt automatisch berekend op basis van de OLO + 200 bp, zoals bepaald in het tabblad 'generieke input'.\nBELANGRIJK: voor de bouw- en aankoopkost onder 1.1 en de investeringskost onder 1.2, dient steeds ter verantwoording een excel met een kostenoverzicht te worden toegevoegd. Dit overzicht vermeldt per kostencategorie minimaal het bedrag, het verantwoordingsstuk en de referentie voor het verantwoordingsstuk. U kan daarvoor ook het tabblad \"Bijlage investeringsoverzicht\" gebruiken en op de rij 21 de link leggen naar de kostentotalen vermeld in hetzij tabel 3a of hetzij 3b. Het kostenoverzicht  laat toe om steekproefgewijs verantwoordingsstukken op te vragen. In volgorde van verantwoordingswaarde zijn dit : facturen, gunningsbeslissingen, offertes, raming van architect of afschrijvingstabel. Deze verantwoordingsstukken mogen niet ouder zijn dan twee jaar, tenzij zij behoren tot een groter geheel van verantwoordingsstukken waarbij de afsluitende factuur/vorderingsstaat niet ouder is dan 2 jaar.\n"]
[]
[]
[null,"totaalbedragen in euro over economische levensduur investering"]
[]
[null,null,null,null,"Gebouw",null,null,"Meubilair"]
[null,"bouw/aankoopkost van forfaitgerechtigde capaciteit",null,null,0,null,null,0,null,null,"vermeld bedragen inclusief aankoopkosten, registratierechten, voor investering forfaitgerechtigde capaciteit"]
[null,"kapitaalsubsidie uitbetaald over bouwperiode",null,null,null,null,null,null,null,null,"vermeld subsidies die tijdens de bouwperiode worden uitbetaald"]
[null,"totale BTW-recuperatie",null,null,null,null,null,null,null,null,"vermeld de BTW die kan teruggevorderd worden"]
[null,"te financieren bouwkost",null,null,{"$f":"E21-E22-E23","v":0},null,null,{"$f":"H21-H22-H23","v":0},null,null,"wordt automatisch berekend"]
[null,"financieringskost",null,null,{"$f":"IF(bouwkost_werken>0,25*-PMT('Generieke input'!D56,25,bouwkost_netto_werken)-bouwkost_netto_werken,0)","v":0},null,null,{"$f":"10*-PMT('Generieke input'!D56,10,bouwkost_werken_meubilair)-bouwkost_werken_meubilair","v":0},null,null,"wordt automatisch berekend"]
[null,"bouwkost incl. financieringskost",null,null,{"$f":"E24+E25","v":0},null,null,{"$f":"H24+H25","v":0},null,null,"wordt automatisch berekend"]
[null,"onroerende voorheffing/belasting",null,null,0,null,null,0,null,null,"vermeld indien voorkomend, totaalbedrag van onroerende voorheffing (ongeïndexeerd) over economische levensduur"]
[null,"netto bouw- en financieringskost",null,null,{"$f":"E26+onroerende_voorheffing","v":0},null,null,{"$f":"H26+onroerende_voorheffing","v":0},null,null,"wordt automatisch berekend"]
[null,"aantal plaatsen onder forfait en waarop investeringskost van toepassing",null,null,{"$f":"'Generieke input'!F36","v":0},null,null,{"$f":"erkende_plaatsen1","v":0},null,null,"dit stemt overeen met de capaciteit v/h forfait zoals bepaald in het tabblad \"Generieke input\", rubriek 3.1"]
[null,"afschrijvingsduur (in jaren)",null,null,25,null,null,10,null,null,"ligt standaard vast"]
[null,"aantal dagen ",null,null,365,null,null,365,null,null,"ligt vast"]
[null,"bezettingsgraad",null,null,{"$f":"'Generieke input'!AA47","v":0},null,null,{"$f":"bezettingsgraad_werken","v":0},null,null,"is functie van de zorgvorm zoals bepaald in het tabblad \"Generieke input\", rubriek 3.2"]
[null,"infrastructuurkost in dagprijs",null,null,{"$f":"IFERROR(E28/E30/E31/E29/E32,0)","v":0},null,null,{"$f":"IFERROR(H28/H30/H31/H29/H32,0)","v":0}]
[]
[]
[null,null,null,null,null,null,null,null,null,null,null,"  "]
[null,"Infrastructuurcomponent in dagprijs incl. gederfd forfait",null,null,null,null,{"$f":"IFERROR((nettobouwkost_werken/afschrijvingsduur_nieuwbouw+nettobouwkost_meubilair/afschrijvingsduur_meubilair)/(erkende_plaatsen1*365*bezettingsgraad_werken),0)","v":0},null,null,"wordt berekend"]
[null,"- forfait",null,null,null,null,{"$f":"forfait","v":6.29},null,null,"zie tabblad \"Parameters + keuzes\""]
[null,"infrastructuurcomponent in dagprijs na aftrek forfait",null,null,null,null,{"$f":"MAX(infrastructuurcomponent_dagprijs-G38,0)","v":0},null,null,"wordt berekend"]
[null,"Motivatie:",null,null,null,null,"voor de bouwkost werd gekozen voor hetzij (verwijder wat niet van toepassing is): eindafrekening / samenvattende vorderingsstaat/ geattesteerde afschrijvingstabel/  facturen/ gunningsbeslissing/ andere: ... \nLet op: de verantwoordingsstukken mogen niet ouder dan twee jaar zijn\n"]
[null,"in geval van een investering derde partij:  huurcontract, erfpachtovereenkomst, opstalovereenkomst, letter of intent waarin de bouwkost kan teruggevonden worden."]
[]
[null,"Toe te voegen bijlagen:",null,null,null,"zowel in geval van een bouw onder eigen regie of in geval van huur bezorgt u:\n- exceloverzicht van alle bouwkosten met vermelding van het bedrag, het verantwoordingsstuk en daarnaast de referentie voor het verantwoordingsstuk. U kan ook het tabblad hiernaast \"bijlage investeringsoverzicht\" aanpassen\nen vanuit deze excel linken naar dit tabblad\n- vervolgens zullen de verantwoordingsstukken steekproefgewijs worden opgevraagd. In volgorde van belang zijn dit : facturen, gunningsbeslissingen, offertes, raming van architect, afschrijvingstabel, andere (extract uit boekhouding)..."]
[]
[null,"1.2  Andere investeringen"]
[]
[null,"Vermeld hierna de andere, niet-infrastructuurinvesteringen, voor het deel dat betrekking heeft op/kan toegerekend worden aan de bewoners met infrastructuurforfait. In de blauwe hoofding past u de omschrijving van de investeringssoort aan. Het betreft investeringen die samenhangen met de infrastructuurinvesteringen. Als financieringskost wordt  opnieuw de OLO op  10 jaar +200 bp genomen, zoals bepaald in het tabblad 'Generieke input'."]
[]
[null,null,null,null,null,null,null,null,null,null,null,null,null,null,null,null,null,{"$f":"SUM(E51:Q51,E21:J21)","v":0}]
[null,null,null,null,"Investering1",null,"Investering2",null,null,"Investering3",null,null,"Investering4",null,null,null,null,"vrij te wijzigen"]
[null,"Eenmalige investeringskost (eventueel bij verhuurder)",null,null,0,null,{"$f":"'Bijlage investeringsoverzicht'!C243","v":0},null,null,{"$f":"'Bijlage investeringsoverzicht'!D216","v":0},null,null,{"$f":"'Bijlage investeringsoverzicht'!C239","v":0},null,null,null,null,"in te vullen"]
[null,"kapitaalsubsidie uitbetaald gedurende bouwperiode",null,null,null,null,null,null,null,null,null,null,null,null,null,null,null,"in te vullen"]
[null,"totale BTW-recuperatie",null,null,null,null,null,null,null,null,null,null,null,null,null,null,null,"in te vullen"]
[null,"Totale netto investeringskost",null,null,{"$f":"E51-ABS(E52)-ABS(E53)","v":0},null,{"$f":"G51-ABS(G52)-ABS(G53)","v":0},null,null,{"$f":"J51-ABS(J52)-ABS(J53)","v":0},null,null,{"$f":"M51-ABS(M52)-ABS(M53)","v":0},null,null,null,null,"wordt automatisch berekend"]
[null,"financieringskost",null,null,{"$f":"IFERROR(-PMT('Generieke input'!D56,E59,E54)*E59-E54,0)","v":0},null,{"$f":"IFERROR(-PMT('Generieke input'!D56,G59,G54)*G59-G54,0)","v":0},null,null,{"$f":"IFERROR(-PMT('Generieke input'!D56,J59,J54)*J59-J54,0)","v":0},null,null,{"$f":"IFERROR(-PMT('Generieke input'!D56,M59,M54)*M59-M54,0)","v":0},null,null,null,null,"wordt automatisch berekend"]
[null,"Investeringskost inclusief financieringskost",null,null,{"$f":"E54+E55","v":0},null,{"$f":"G54+G55","v":0},null,null,{"$f":"J54+J55","v":0},null,null,{"$f":"M54+M55","v":0},null,null,null,null,"wordt automatisch berekend"]
[null,"gespreide subsidie",null,null,0,null,0,null,null,0,null,null,0,null,null,null,null,"in te vullen"]
[null,"Netto investerings- en financieringskost",null,null,{"$f":"E56-E57","v":0},null,{"$f":"G56-G57","v":0},null,null,{"$f":"J56-J57","v":0},null,null,{"$f":"M56-M57","v":0},null,null,null,null,"wordt berekend"]
[null,"Afschrijvingsduur investeringkost (in jaren)",null,null,{"$f":"'Bijlage investeringsoverzicht'!A240","v":5},null,{"$f":"'Bijlage investeringsoverzicht'!A243","v":20},null,null,{"$f":"'Bijlage investeringsoverzicht'!B216","v":10},null,null,{"$f":"'Bijlage investeringsoverzicht'!A239","v":3},null,null,null,null,"vermeld de economische levensduur, hier kan u wel een afwijkende afschrijvingsduur invullen, maar deze dient wel gebaseerd te zijn op aanvaarde waarderingsregels"]
[null,{"$f":"B29","v":"aantal plaatsen onder forfait en waarop investeringskost van toepassing"},null,null,{"$f":"erkende_plaatsen1","v":0},null,{"$f":"E60","v":0},null,null,{"$f":"G60","v":0},null,null,{"$f":"J60","v":0},null,null,null,null,{"$f":"K29","v":"dit stemt overeen met de capaciteit v/h forfait zoals bepaald in het tabblad \"Generieke input\", rubriek 3.1"}]
[null,"Aantal dagen",null,null,365,null,365,null,null,365,null,null,365,null,null,null,null,{"$f":"K31","v":"ligt vast"}]
[null,"bezettingsgraad",null,null,{"$f":"bezettingsgraad_werken","v":0},null,{"$f":"E62","v":0},null,null,{"$f":"G62","v":0},null,null,{"$f":"J62","v":0},null,null,null,null,{"$f":"K32","v":"is functie van de zorgvorm zoals bepaald in het tabblad \"Generieke input\", rubriek 3.2"}]
[null,"investeringskost/periodieke vergoeding in dagprijs",null,null,{"$f":"IFERROR(ROUND(E58/E59/E61/E60/E62,2),0)","v":0},null,{"$f":"IFERROR(ROUND(G58/G59/G61/G60/G62,2),0)","v":0},null,null,{"$f":"IFERROR(ROUND(J58/J59/J61/J60/J62,2),0)","v":0},null,null,{"$f":"IFERROR(ROUND(M58/M59/M61/M60/M62,2),0)","v":0},null,null,null,null,"wordt berekend"]
[]
[null,"Overige investeringskosten in dagprijs:",null,null,null,null,{"$f":"E63+G63+J63+M63","v":0},null,null,"wordt berekend"]
[]
[]
[]
[null,"Toe te voegen bijlagen:",null,null,null,"analoog met de bijlagen vermeld bij 1.1"]
[]
[]
[null,"1.3  Kosten van personeel in dienstverband na verrekening van de overheidstussenkomsten"]
[]
[null,"Deze rubriek heeft betrekking op alle personeel, inclusief het zelfstandige zorgpersoneel en uitzendpersoneel. Enkel de bestuurders worden aan de diensten en diverse leveringen toegerekend. \nEnkel het personeel voor de infrastructuurforfaitgerechtigde capaciteit mag hier worden ingevuld. In geval van uitbreiding van capaciteit zijn de VTE's, personeelskosten en bepaalde overheidstussenkomsten op kruissnelheid wanneer de volledige uitgebreide capaciteit wordt bereikt. Hierbij mag echter geen rekening gehouden worden met de toekomstige inflatie gedurende het groeipad naar die volledige capaciteit, gezien die achteraf bekomen wordt via de indexering van de dagprijs.\n\nVul hier per personeelscategorie op jaarbasis in: het aantal  VTE, personeelskost en overheidstussenkomst (=voor de laatste 2 is dit het totaalbedrag, niet het bedrag per verblijfsdag).\n\nPersoneelscategorieën:\n- zorgpersoneel = verpleegkundigen, zorgkundigen (verzorgenden), kinesitherapeuten, logopedisten, ergotherapeuten, personeel voor reactivatie;\n- administratief (inclusief directie), logistiek, technisch, poets- en keukenpersoneel: al het overige personeel dat niet tot de voorgaande categorie behoort\n\nPersoneelskost: is brutoloonkost inclusief werkgeversbijdrage. Verzekeringen en andere overheadkosten worden hier niet vermeld, maar onder rubriek 1.4.\n\nOverheidstussenkomsten:\nVul hier steeds het totaalbedrag en niet het bedrag per verblijfsdag in.\nDe basistegemoetkoming voor zorg die in mindering wordt gebracht, heeft ook betrekking op de tussenkomst voor niet-personeelskosten (de basistegemoetkoming voor zorg mag echter integraal in mindering gebracht worden op de personeelskosten, zodat dit niet meer moet versleuteld worden naar rubriek 1.4). \n\nOverheidstussenkomsten (zoals elementen sociale akkoorden) die betrekking hebben op verschillende personeelscategorieën probeert u toe te wijzen volgens de detailberekening of, indien niet mogelijk, via een logische verdeelsleutel. U dient uiteraard enkel de overheidstussenkomst in te vullen voor de personeelscategorieën waarop die betrekking heeft.\n\nBelangrijk is dat alle componenten van de overheidstussenkomst worden opgenomen: voor een checklist zie tabblad \"checklist overheidstussenkomst\""]
[]
[]
[null,null,null,null,"Aantal VTE","Personeelkost","Basistegemoetkoming zorg (*)","Eindeloopbaan (*)","Fondsen maribel (*)","Aanvullende\nfinanciering (*) ","IFIC","Andere (vb. OCVK, \nnomenclatuur, \njongdementie *)","Nettokost"]
[null,"Zorgpersoneel",null,null,0,0,0,0,0,0,0,0,{"$f":"F78-SUM(G78:L78)","v":0},"in te vullen, behalve in kolom M"]
[null,"Administratief, Logistiek, technisch,  poets- en keukenpersoneel",null,null,0,0,0,0,0,0,0,0,{"$f":"F79-SUM(G79:L79)","v":0},"in te vullen, behalve in kolom M"]
[null,"Totaal",null,null,null,null,null,null,null,null,null,null,{"$f":"SUM(M78:N79)","v":0},"in te vullen, behalve in kolom M"]
[null,"(*) Voor een opsomming van de componenten van de basistegemoetkoming voor zorg en de overige overheidstussenkomsten, volg deze link:",null,null,null,null,null,null,"checklist overheidstussenkomst"]
[null,"Totale netto-personeelskost",null,null,{"$f":"M80","v":0},"wordt berekend"]
[null,"Aantal verblijfsdagen",null,null,{"$f":"IFERROR(erkende_plaatsen1*365*bezettingsgraad_werken,0)","v":0},"wordt berekend"]
[]
[null,"Personeelskosten na overheidstussenkomst in dagprijs:",null,null,null,null,{"$f":"IFERROR(E82/E83,0)","v":0},null,null,"wordt berekend"]
[null,"Motivatie/bewijsstukken:",null,null,null,null,"eventuele toelichting sociale balans, extract resultatenrekening of businessplan"]
[]
[null,"1.4  Producten en diensten en diverse leveringen te verrekenen in dagprijs "]
[]
[null,"Vul hierna in kolom E de andere kosten voor producten en diensten en diverse leveringen in met betrekking tot de forfaitgerechtigde infrastructuur. Hiervoor worden enkel die kosten opgenomen die niet eerder in de vorige rubrieken werden aangerekend.\nU vult daartoe in kolom E, waar van toepassing, de kosten op detailniveau in. Indien dit niet kan, mag u zich beperken tot de zwart omrande cellen/kaders. In sommige gevallen betekent dit dat u een automatisch berekend totaal zal overschrijven.\nHet totaal van de andere kosten voor producten en diensten en diverse leveringen wordt slechts verrekend in de dagprijs na aftrek van het deel dat reeds via een supplement werd doorgerekend. \nNaast \"supplementen en voorschotten\" vult u in kolom E het totaalbedrag aan supplementen en voorschotten in dat reeds door de bewoners wordt betaald en dus niet dient verrekend te worden in de dagprijs.\nIn kolom F wordt vervolgens de gemiddelde kost per verblijfsdag berekend"]
[]
[null,"Producten:",null,null,"Totaal (in te vullen volgens instructies in kolom G)","Kost per verblijfsdag (wordt berekend)"]
[null,null,"Totaal",null,{"$f":"SUM(E94:E101)","v":0},{"$f":"IFERROR(E93/$E$124,0)","v":0},"wordt berekend of wordt, indien voorkomend, ingevuld indien cellen met detailinformatie met groene commentaar niet worden ingevuld"]
[null,null,null,"Aankopen voeding",0,0,"facultatief in te vullen"]
[null,null,null,"Aankopen medisch, verzorgingsmateriaal",0,0,"facultatief in te vullen"]
[null,null,null,"Klein materiaal voor onderhoud",0,0,"facultatief in te vullen","in zoverre geen groot, eigenaarsonderhoud. Kost van vervanging van bv. lift, zit in economische afschrijving van de infrastructuur"]
[null,null,null,"Socioculturele activiteiten en ontspanning",0,0,"facultatief in te vullen"]
[null,null,null,"Bureel en  informatica",0,0,"facultatief in te vullen","software wordt hier opgenomen in zoverre niet opgenomen onder 1.2, klein kantoormaterieel (perforator, mappen, nietjesmachine)"]
[null,null,null,"Textiel en wasproducten",0,0,"facultatief in te vullen"]
[null,null,null,"Toilet en opschik",0,0,"facultatief in te vullen"]
[null,null,null,"Andere",0,0,"facultatief in te vullen"]
[]
[null,"Diensten en diverse leveringen:"]
[null,null,"Externe diensten",null,{"$f":"SUM(E105:E112)","v":0},{"$f":"IFERROR(E104/E124,0)","v":0},"wordt berekend of wordt, indien voorkomend, ingevuld indien cellen met detailinformatie met groene commentaar niet worden ingevuld"]
[null,null,null,"Sociaal secretariaat",0,{"$f":"IFERROR(E105/$E$124,0)","v":0},"facultatief in te vullen"]
[null,null,null,"Boekhouding/adm/zorgtoepassing",0,0,"facultatief in te vullen","externe accountant, bedrijfsrevisor, boekhouder in loondienst zit onder 1.3"]
[null,null,null,"Informatieverwerking",0,0,"facultatief in te vullen","informatieverwerking door derden, bvb. met betrekking tot sectoranalyses door derden, berekeningen personeelsinzet,…"]
[null,null,null,"Keuken",0,0,"facultatief in te vullen","externe keuken, interne keuken zit voor de invsteringen onder 1.3 andere investeringen en voor de personeelskosten onder 1.3"]
[null,null,null,"Was en linnen",0,0,"facultatief in te vullen"]
[null,null,null,"Onderhoud en schoonmaak",0,0,"facultatief in te vullen","enkel gebruikersonderhoud, geen groot onderhoud/verbouwing gezien gedekt door afschrijvingen"]
[null,null,null,"Vergoedingen en erelonen",0,0,"facultatief in te vullen","vergoedingen/erelonen advocaten, notarissen"]
[null,null,null,"Andere",0,0,"facultatief in te vullen"]
[null,null,"Onderhoud en herstellingen",null,0,0,"indien voorkomend, in te vullen"]
[null,null,"Verzekeringen",null,0,0,"indien voorkomend, in te vullen"]
[null,null,"Administratie",null,0,0,"indien voorkomend, in te vullen"]
[null,null,"Externe medische verzorging",null,0,0,"indien voorkomend, in te vullen"]
[null,null,"Bezoldiging bestuurders",null,0,0,"indien voorkomend, in te vullen"]
[null,null,"Aankopen energie",null,0,0,"indien voorkomend, in te vullen"]
[]
[]
[null,"Supplementen en voorschotten ten gunste van derden",null,null,0,{"$f":"IFERROR(E121/E124,0)","v":0},"gelieve het bedrag van supplementen en voorschotten in te vullen met betrekking tot voorgaande kostencategorieën"]
[null,null,null,null,null,null,"gelieve in bijlage het detail van de supplementen toe te lichten:",null,null,null,"bijlage supplement"]
[null,"Totale nettokosten diensten en diverse leveringen (na aftrek suppelementen en voorschotten)",null,null,{"$f":"E93+E104+SUM(E113:E118)-ABS(E121)","v":0},"wordt berekend"]
[null,"Aantal verblijfsdagen",null,null,{"$f":"E83","v":0},"wordt berekend"]
[]
[null,"Producten en diensten en diverse leveringen in dagprijs:",null,null,null,null,{"$f":"IFERROR(E123/E124,0)","v":0},null,null,"wordt berekend"]
[null,"Motivatie:",null,null,null,null,"voor bepaalde posten zullen bijkomende verantwoordingsstukken worden opgevraagd"]
[]
[]
[]
["2. Evaluatie dagprijzen"]
[]
[null,"Verantwoorde prijs na aftrek forfait",null,null,{"$f":"ROUND(E11,2)","v":0},"wordt berekend: som van 1.1 - 1.4"]
[]
[null,"2.1 Aangevraagde dagprijzen voor nieuwe bewoners"]
[]
[null,"Vermeld hier voor de kamers in de vernieuwde infrastructuur waarop het forfait van toepassing is,  de dagprijzen na aftrek van het forfait die u zou willen hanteren indien die forfaitgerechtigde capaciteit volledig bewoond zou zijn door nieuwe bewoners. \nVermeld per kamertype de forfaitgerechtigde capaciteit (kolom E) en de nettodagprijs (=prijs na aftrek van het forfait, kolom F). In de kolom G,  \"Brutodagprijs\" wordt de dagprijs zonder aftrek van het forfait berekend.\nHet totaal van de forfaitgerechtigde capaciteit moet overeenstemmen met wat in de \"Generieke Input\" werd vermeld in cel F36.\nHet deel van de verantwoorde kosten met betrekking tot de niet-forfaitgerechtigde capaciteit dient hetzij via 1B (indien geheel van toewijsbare investeringen drastische investeringen zijn) of via formulier 2 (indien geen drastische investeringen) te\nworden verrekend.\nDe gevraagde dagprijzen na aftrek forfait worden slechts aanvaard indien het gemiddelde hiervan niet hoger ligt dan de \"verantwoorde prijs na aftrek forfait\" (cel E133)."]
[]
[]
[]
[null,"in te vullen",null,null,"in te vullen","in te vullen","wordt berekend, niet in te vullen"]
[null,"Kamertype/woon/verblijfseenheid in nieuwe infrastructuur",null,null,"Forfaitgerechtigde capaciteit","Aangevraagde dagprijs in nieuwe infrastructuur na aftrek forfait =Nettodagprijs","Aangevraagde brutodagprijs in nieuwe infrastructuur vóór aftrek forfait = netto + forfait","kolom G wordt berekend, niet overschrijven"]
[]
[null,null,null,null,null,0,{"$f":"IF(F144>0,F144+forfait,0)","v":0},"Eventuele foutmeldingen:",null,null,null,"alle kolommen in te vullen, behalve kolom G die wordt berekend"]
[null,null,null,null,null,0,0,{"$f":"IF(E163<>erkende_plaatsen1,\"De totale forfaitgerechtigde capaciteit voor de vermelde dagprijzen stemt niet overeen met de capaciteit in de tabel 'generieke input.', cel F36\",\"\")","v":""}]
[null,null,null,null,null,0,0,{"$f":"IFERROR(IF(F163>E133, \"De gemiddelde prijs na aftrek forfait ligt hoger dan de verantwoorde prijs na aftrek forfait.Pas de prijs van 1 of meerdere kamertypes aan.\",\"\"),\"\")","v":""}]
[null,null,null,null,null,0,0]
[null,null,null,null,null,null,0]
[null,null,null,null,null,null,0]
[null,null,null,null,null,null,0]
[null,null,null,null,null,null,0]
[null,null,null,null,null,null,0]
[null,null,null,null,null,null,0,"brutodagprijs (kolom G)\n- forfait 6,29 euro\n= nettodagprijs (= prijs na aftrek forfait, kolom F)"]
[null,null,null,null,null,null,0]
[null,null,null,null,null,null,0]
[null,null,null,null,null,null,0]
[null,null,null,null,null,null,0]
[null,null,null,null,null,null,0]
[null,null,null,null,null,null,0]
[null,null,null,null,null,null,0]
[null,null,null,null,null,null,0]
[null,null,null,null,null,null,0]
[null,"Gewogen gemiddelde",null,null,{"$f":"SUM(E144:E162)","v":0},{"$f":"SUM(E144:E162*F144:F162)/IF(E163>0,E163,1)","v":0}]
[]
[null,"2.2 Aangevraagde dagprijzen voor bestaande bewoners "]
[]
[null,"Vermeld hier per kamertype voor de bestaande bewoners in de infrastructuurforfaitgerechtigde capaciteit: \n- de  capaciteit (kolom E)\n- de eventuele maximumprijs bij kennisname in de opnameoverenkomst en dit vóór aftrek van het forfait (kolom F, vermeld hier 0 euro indien die maximumprijs niet werd opgenomen). Deze maximumprijs kan in tussentijd nog geïndexeerd worden indien de spilindex wordt overschreden sinds het moment van opname in de opnameovereenkomst.\n- de gevraagde prijs in de nieuwe infrastructuur na aftrek van het forfait (in kolom H).\nIndien er effectief bewoners kennis genomen hebben van de maximale prijs, dan dient  het bewijs van de start van de werken (via brief van de voorziening aan de aannemer) te worden toegevoegd. Via de ondertekening van het outputtabblad verklaren de gemachtigden naar eer en geweten dat het aantal bewoners met plafondprijs in de opnameovereenkomst effectief correct is.\nHet formulier toetst de prijzen dan automatisch af aan de evt. opgenomen prijs in de overeenkomst en geeft ook de aangepaste richtlijnen i.v.m. de evolutie van de stappen."]
[]
[]
[]
[null,null,null,null,null,null,null,null,"berekend","berekend"]
[null,"in te vullen",null,null,"in te vullen","in te vullen","berekend","in te vullen","Kolommen G, I-K worden berekend: niet overschrijven"]
[null,"Kamertype/woon/verblijfseenheid in oude infrastructuur voor bestaande bewoners",null,null,"Forfaitgerechtigde capaciteit","initiële brutoprijs uit de opnameovereenkomst= prijs vóór aftrek forfait (indien geen prijs in overeenkomst =0 euro, indien wel = neem prijs uit overeenkomst, evt. aangepast aan afgevlakte gezondheidsindex)","nettoprijs = initiële brutoprijs in de overeenkomst na aftrek van het huidige forfait (indien zo'n maximumprijs werd voorzien in de overeenkomst)",{"$f":"F142","v":"Aangevraagde dagprijs in nieuwe infrastructuur na aftrek forfait =Nettodagprijs"},"Aangevraagde nettodagprijs na aftrek forfait, na bescherming bestaande bewoners",{"$f":"G142","v":"Aangevraagde brutodagprijs in nieuwe infrastructuur vóór aftrek forfait = netto + forfait"},"Evolutie opstappen"]
[]
[null,null,null,null,null,0,{"$f":"IF(F175=0,0,F175-forfait)","v":0},0,{"$f":"IF(G175=0,H175,MIN(G175:H175))","v":0},{"$f":"IF(I175>0,I175+forfait,0)","v":0},{"$f":"IF(H175>0,IF(G175=0,\"De nettodagprijs na aftrek van het forfait stijgt niet in het eerste jaar en kan daarna elke 6 maand met max. \"& 'Parameters+keuzes'!$C$48 &\" euro worden verhoogd tot de goedgekeurde nettoprijs na aftrek van het forfait bereikt is.\", \"De nettodagprijs na aftrek van het forfait  kan  bij ingebruikname met max. \"& 'Parameters+keuzes'!$B$48&\" euro stijgen en kan daarna ten vroegste elke 6 maand met maximaal \"&  'Parameters+keuzes'!$B$48 & \" euro worden verhoogd tot de goedgekeurde nettoprijs na aftrek van het forfait bereikt is.\"),\"\")","v":""},null,null,null,null,null,"Eventuele foutmeldingen:"]
[null,null,null,null,null,0,0,0,0,0,{"$f":"IF(H176>0,IF(G176=0,\"De nettodagprijs na aftrek van het forfait stijgt niet in het eerste jaar en kan daarna elke 6 maand met max. \"& 'Parameters+keuzes'!$C$48 &\" euro worden verhoogd tot de goedgekeurde nettoprijs na aftrek van het forfait bereikt is.\", \"De nettodagprijs na aftrek van het forfait  kan  bij ingebruikname met max. \"& 'Parameters+keuzes'!$B$48&\" euro stijgen en kan daarna ten vroegste elke 6 maand met maximaal \"&  'Parameters+keuzes'!$B$48 & \" euro worden verhoogd tot de goedgekeurde nettoprijs na aftrek van het forfait bereikt is.\"),\"\")","v":""},null,null,null,null,null,{"$f":"IF(E194>'Generieke input'!F36,\"De capaciteit van de bestaande bewoners kan niet hoger zijn dan de capaciteit voor het forfait zoals vermeld in de generieke input.\",\"\")","v":""}]
[null,null,null,null,null,0,0,0,0,0,{"$f":"IF(H177>0,IF(G177=0,\"De nettodagprijs na aftrek van het forfait stijgt niet in het eerste jaar en kan daarna elke 6 maand met max. \"& 'Parameters+keuzes'!$C$48 &\" euro worden verhoogd tot de goedgekeurde nettoprijs na aftrek van het forfait bereikt is.\", \"De nettodagprijs na aftrek van het forfait  kan  bij ingebruikname met max. \"& 'Parameters+keuzes'!$B$48&\" euro stijgen en kan daarna ten vroegste elke 6 maand met maximaal \"&  'Parameters+keuzes'!$B$48 & \" euro worden verhoogd tot de goedgekeurde nettoprijs na aftrek van het forfait bereikt is.\"),\"\")","v":""},null,null,null,null,null,{"$f":"IFERROR(IF(I194>E133, \"De gemiddelde goedgekeurde prijs na aftrek forfait ligt hoger dan de verantwoorde dagprijs na aftrek van het forfait.Pas de prijs van 1 of meerdere kamertypes aan.\",\"\"),\"\")","v":""},null,null,null,null,null,null,null,null,null,null,"ja"]
[null,null,null,null,null,0,0,0,0,0,{"$f":"IF(H178>0,IF(G178=0,\"De nettodagprijs na aftrek van het forfait stijgt niet in het eerste jaar en kan daarna elke 6 maand met max. \"& 'Parameters+keuzes'!$C$48 &\" euro worden verhoogd tot de goedgekeurde nettoprijs na aftrek van het forfait bereikt is.\", \"De nettodagprijs na aftrek van het forfait  kan  bij ingebruikname met max. \"& 'Parameters+keuzes'!$B$48&\" euro stijgen en kan daarna ten vroegste elke 6 maand met maximaal \"&  'Parameters+keuzes'!$B$48 & \" euro worden verhoogd tot de goedgekeurde nettoprijs na aftrek van het forfait bereikt is.\"),\"\")","v":""},null,null,null,null,null,null,null,null,null,null,null,null,null,null,null,null,"nee"]
[null,null,null,null,null,0,0,0,0,0,{"$f":"IF(H179>0,IF(G179=0,\"De nettodagprijs na aftrek van het forfait stijgt niet in het eerste jaar en kan daarna elke 6 maand met max. \"& 'Parameters+keuzes'!$C$48 &\" euro worden verhoogd tot de goedgekeurde nettoprijs na aftrek van het forfait bereikt is.\", \"De nettodagprijs na aftrek van het forfait  kan  bij ingebruikname met max. \"& 'Parameters+keuzes'!$B$48&\" euro stijgen en kan daarna ten vroegste elke 6 maand met maximaal \"&  'Parameters+keuzes'!$B$48 & \" euro worden verhoogd tot de goedgekeurde nettoprijs na aftrek van het forfait bereikt is.\"),\"\")","v":""},null,null,null,null,null,"Aandachtspunten voor betaling en facturatie:"]
[null,null,null,null,null,0,0,0,0,0,{"$f":"IF(H180>0,IF(G180=0,\"De nettodagprijs na aftrek van het forfait stijgt niet in het eerste jaar en kan daarna elke 6 maand met max. \"& 'Parameters+keuzes'!$C$48 &\" euro worden verhoogd tot de goedgekeurde nettoprijs na aftrek van het forfait bereikt is.\", \"De nettodagprijs na aftrek van het forfait  kan  bij ingebruikname met max. \"& 'Parameters+keuzes'!$B$48&\" euro stijgen en kan daarna ten vroegste elke 6 maand met maximaal \"&  'Parameters+keuzes'!$B$48 & \" euro worden verhoogd tot de goedgekeurde nettoprijs na aftrek van het forfait bereikt is.\"),\"\")","v":""}]
[null,null,null,null,null,0,0,0,0,0,{"$f":"IF(H181>0,IF(G181=0,\"De nettodagprijs na aftrek van het forfait stijgt niet in het eerste jaar en kan daarna elke 6 maand met max. \"& 'Parameters+keuzes'!$C$48 &\" euro worden verhoogd tot de goedgekeurde nettoprijs na aftrek van het forfait bereikt is.\", \"De nettodagprijs na aftrek van het forfait  kan  bij ingebruikname met max. \"& 'Parameters+keuzes'!$B$48&\" euro stijgen en kan daarna ten vroegste elke 6 maand met maximaal \"&  'Parameters+keuzes'!$B$48 & \" euro worden verhoogd tot de goedgekeurde nettoprijs na aftrek van het forfait bereikt is.\"),\"\")","v":""}]
[null,null,null,null,null,0,0,0,0,0,{"$f":"IF(H182>0,IF(G182=0,\"De nettodagprijs na aftrek van het forfait stijgt niet in het eerste jaar en kan daarna elke 6 maand met max. \"& 'Parameters+keuzes'!$C$48 &\" euro worden verhoogd tot de goedgekeurde nettoprijs na aftrek van het forfait bereikt is.\", \"De nettodagprijs na aftrek van het forfait  kan  bij ingebruikname met max. \"& 'Parameters+keuzes'!$B$48&\" euro stijgen en kan daarna ten vroegste elke 6 maand met maximaal \"&  'Parameters+keuzes'!$B$48 & \" euro worden verhoogd tot de goedgekeurde nettoprijs na aftrek van het forfait bereikt is.\"),\"\")","v":""}]
[null,null,null,null,null,0,0,0,0,0,{"$f":"IF(H183>0,IF(G183=0,\"De nettodagprijs na aftrek van het forfait stijgt niet in het eerste jaar en kan daarna elke 6 maand met max. \"& 'Parameters+keuzes'!$C$48 &\" euro worden verhoogd tot de goedgekeurde nettoprijs na aftrek van het forfait bereikt is.\", \"De nettodagprijs na aftrek van het forfait  kan  bij ingebruikname met max. \"& 'Parameters+keuzes'!$B$48&\" euro stijgen en kan daarna ten vroegste elke 6 maand met maximaal \"&  'Parameters+keuzes'!$B$48 & \" euro worden verhoogd tot de goedgekeurde nettoprijs na aftrek van het forfait bereikt is.\"),\"\")","v":""},null,null,null,null,null,{"$f":" \"De factuur vermeldt:\"","v":"De factuur vermeldt:"}]
[null,null,null,null,null,0,0,0,0,0,{"$f":"IF(H184>0,IF(G184=0,\"De nettodagprijs na aftrek van het forfait stijgt niet in het eerste jaar en kan daarna elke 6 maand met max. \"& 'Parameters+keuzes'!$C$48 &\" euro worden verhoogd tot de goedgekeurde nettoprijs na aftrek van het forfait bereikt is.\", \"De nettodagprijs na aftrek van het forfait  kan  bij ingebruikname met max. \"& 'Parameters+keuzes'!$B$48&\" euro stijgen en kan daarna ten vroegste elke 6 maand met maximaal \"&  'Parameters+keuzes'!$B$48 & \" euro worden verhoogd tot de goedgekeurde nettoprijs na aftrek van het forfait bereikt is.\"),\"\")","v":""},null,null,null,null,null,{"$f":"\"Brutoprijs\" &\n\" (kolom J)\n- forfait 6,29 euro\n= Nettodagprijs na bescherming (kolom I)\"","v":"Brutoprijs (kolom J)\n- forfait 6,29 euro\n= Nettodagprijs na bescherming (kolom I)"}]
[null,null,null,null,null,0,0,0,0,0,{"$f":"IF(H185>0,IF(G185=0,\"De nettodagprijs na aftrek van het forfait stijgt niet in het eerste jaar en kan daarna elke 6 maand met max. \"& 'Parameters+keuzes'!$C$48 &\" euro worden verhoogd tot de goedgekeurde nettoprijs na aftrek van het forfait bereikt is.\", \"De nettodagprijs na aftrek van het forfait  kan  bij ingebruikname met max. \"& 'Parameters+keuzes'!$B$48&\" euro stijgen en kan daarna ten vroegste elke 6 maand met maximaal \"&  'Parameters+keuzes'!$B$48 & \" euro worden verhoogd tot de goedgekeurde nettoprijs na aftrek van het forfait bereikt is.\"),\"\")","v":""}]
[null,null,null,null,null,0,0,0,0,0,{"$f":"IF(H186>0,IF(G186=0,\"De nettodagprijs na aftrek van het forfait stijgt niet in het eerste jaar en kan daarna elke 6 maand met max. \"& 'Parameters+keuzes'!$C$48 &\" euro worden verhoogd tot de goedgekeurde nettoprijs na aftrek van het forfait bereikt is.\", \"De nettodagprijs na aftrek van het forfait  kan  bij ingebruikname met max. \"& 'Parameters+keuzes'!$B$48&\" euro stijgen en kan daarna ten vroegste elke 6 maand met maximaal \"&  'Parameters+keuzes'!$B$48 & \" euro worden verhoogd tot de goedgekeurde nettoprijs na aftrek van het forfait bereikt is.\"),\"\")","v":""}]
[null,null,null,null,null,0,0,0,0,0,{"$f":"IF(H187>0,IF(G187=0,\"De nettodagprijs na aftrek van het forfait stijgt niet in het eerste jaar en kan daarna elke 6 maand met max. \"& 'Parameters+keuzes'!$C$48 &\" euro worden verhoogd tot de goedgekeurde nettoprijs na aftrek van het forfait bereikt is.\", \"De nettodagprijs na aftrek van het forfait  kan  bij ingebruikname met max. \"& 'Parameters+keuzes'!$B$48&\" euro stijgen en kan daarna ten vroegste elke 6 maand met maximaal \"&  'Parameters+keuzes'!$B$48 & \" euro worden verhoogd tot de goedgekeurde nettoprijs na aftrek van het forfait bereikt is.\"),\"\")","v":""}]
[null,null,null,null,null,0,0,0,0,0,{"$f":"IF(H188>0,IF(G188=0,\"De nettodagprijs na aftrek van het forfait stijgt niet in het eerste jaar en kan daarna elke 6 maand met max. \"& 'Parameters+keuzes'!$C$48 &\" euro worden verhoogd tot de goedgekeurde nettoprijs na aftrek van het forfait bereikt is.\", \"De nettodagprijs na aftrek van het forfait  kan  bij ingebruikname met max. \"& 'Parameters+keuzes'!$B$48&\" euro stijgen en kan daarna ten vroegste elke 6 maand met maximaal \"&  'Parameters+keuzes'!$B$48 & \" euro worden verhoogd tot de goedgekeurde nettoprijs na aftrek van het forfait bereikt is.\"),\"\")","v":""}]
[null,null,null,null,null,0,0,0,0,0,{"$f":"IF(H189>0,IF(G189=0,\"De nettodagprijs na aftrek van het forfait stijgt niet in het eerste jaar en kan daarna elke 6 maand met max. \"& 'Parameters+keuzes'!$C$48 &\" euro worden verhoogd tot de goedgekeurde nettoprijs na aftrek van het forfait bereikt is.\", \"De nettodagprijs na aftrek van het forfait  kan  bij ingebruikname met max. \"& 'Parameters+keuzes'!$B$48&\" euro stijgen en kan daarna ten vroegste elke 6 maand met maximaal \"&  'Parameters+keuzes'!$B$48 & \" euro worden verhoogd tot de goedgekeurde nettoprijs na aftrek van het forfait bereikt is.\"),\"\")","v":""}]
[null,null,null,null,null,0,0,0,0,0,{"$f":"IF(H190>0,IF(G190=0,\"De nettodagprijs na aftrek van het forfait stijgt niet in het eerste jaar en kan daarna elke 6 maand met max. \"& 'Parameters+keuzes'!$C$48 &\" euro worden verhoogd tot de goedgekeurde nettoprijs na aftrek van het forfait bereikt is.\", \"De nettodagprijs na aftrek van het forfait  kan  bij ingebruikname met max. \"& 'Parameters+keuzes'!$B$48&\" euro stijgen en kan daarna ten vroegste elke 6 maand met maximaal \"&  'Parameters+keuzes'!$B$48 & \" euro worden verhoogd tot de goedgekeurde nettoprijs na aftrek van het forfait bereikt is.\"),\"\")","v":""}]
[null,null,null,null,null,0,0,0,0,0,{"$f":"IF(H191>0,IF(G191=0,\"De nettodagprijs na aftrek van het forfait stijgt niet in het eerste jaar en kan daarna elke 6 maand met max. \"& 'Parameters+keuzes'!$C$48 &\" euro worden verhoogd tot de goedgekeurde nettoprijs na aftrek van het forfait bereikt is.\", \"De nettodagprijs na aftrek van het forfait  kan  bij ingebruikname met max. \"& 'Parameters+keuzes'!$B$48&\" euro stijgen en kan daarna ten vroegste elke 6 maand met maximaal \"&  'Parameters+keuzes'!$B$48 & \" euro worden verhoogd tot de goedgekeurde nettoprijs na aftrek van het forfait bereikt is.\"),\"\")","v":""}]
[null,null,null,null,null,0,0,0,0,0,{"$f":"IF(H192>0,IF(G192=0,\"De nettodagprijs na aftrek van het forfait stijgt niet in het eerste jaar en kan daarna elke 6 maand met max. \"& 'Parameters+keuzes'!$C$48 &\" euro worden verhoogd tot de goedgekeurde nettoprijs na aftrek van het forfait bereikt is.\", \"De nettodagprijs na aftrek van het forfait  kan  bij ingebruikname met max. \"& 'Parameters+keuzes'!$B$48&\" euro stijgen en kan daarna ten vroegste elke 6 maand met maximaal \"&  'Parameters+keuzes'!$B$48 & \" euro worden verhoogd tot de goedgekeurde nettoprijs na aftrek van het forfait bereikt is.\"),\"\")","v":""}]
[null,null,null,null,null,0,0,0,0,0,{"$f":"IF(H193>0,IF(G193=0,\"De nettodagprijs na aftrek van het forfait stijgt niet in het eerste jaar en kan daarna elke 6 maand met max. \"& 'Parameters+keuzes'!$C$48 &\" euro worden verhoogd tot de goedgekeurde nettoprijs na aftrek van het forfait bereikt is.\", \"De nettodagprijs na aftrek van het forfait  kan  bij ingebruikname met max. \"& 'Parameters+keuzes'!$B$48&\" euro stijgen en kan daarna ten vroegste elke 6 maand met maximaal \"&  'Parameters+keuzes'!$B$48 & \" euro worden verhoogd tot de goedgekeurde nettoprijs na aftrek van het forfait bereikt is.\"),\"\")","v":""}]
[null,"Gewogen gemiddelde",null,null,{"$f":"SUM(E175:E193)","v":0},null,null,{"$f":"SUM(E175:E193*H175:H193)/IF(E194>0,E194,1)","v":0},{"$f":"SUM(E175:E193*I175:I193)/IF($E$194>0,$E$194,1)","v":0},{"$f":"I194+forfait","v":6.29}]
[]
[null,"Motivatie opname prijs in overeenkomst via:",null,null,"door ondertekening van het outputtabblad wordt naar eer en geweten verklaard dat het aantal vermelde bewoners met opnameovereenkomst correct is"]
[null,null,null,null,"bewijs van de datum van de start van de werken aan de  hand van een aanvangsbevel van de werken (brief voorziening aan de aannemer)"]

{"sheet":"1B-Infra zonder forfait","index":5,"n_rows":188,"n_cols":26,"rows_kept":188,"cut":false,"hidden":true,"merged":[[131,1,131,3],[162,1,162,3],[3,1,6,16],[56,1,56,5],[186,1,186,3],[162,7,162,10],[0,0,0,16],[173,8,173,13],[174,8,174,13],[175,8,175,13],[176,8,176,13],[177,8,177,13],[178,8,178,13],[179,8,179,13],[163,8,164,13],[165,8,165,13],[166,8,166,13],[167,8,167,13],[168,8,168,13],[169,8,169,13],[170,8,170,13],[171,8,171,13],[20,1,20,3],[20,4,20,6],[22,1,22,3],[22,4,22,6],[8,0,8,16],[9,0,59,0],[12,1,12,16],[14,1,15,16],[18,4,18,6],[19,1,19,3],[19,4,19,6],[25,1,25,3],[25,4,25,6],[26,1,26,3],[26,4,26,6],[23,7,23,14],[24,1,24,3],[24,4,24,6],[23,1,23,3],[23,4,23,6],[21,1,21,3],[21,4,21,6],[49,1,49,16],[50,1,50,5],[50,6,50,8],[51,1,51,5],[51,6,51,16],[52,1,52,16],[32,1,33,16],[28,1,28,4],[28,5,28,16],[30,1,30,16],[76,1,76,5],[76,6,76,8],[77,1,77,5],[77,6,77,16],[79,1,79,16],[81,1,81,16],[54,1,54,4],[54,5,54,16],[63,1,63,16],[65,1,66,12],[69,1,69,3],[70,1,70,3],[118,1,118,5],[118,6,118,16],[121,0,121,16],[123,5,123,7],[125,1,125,16],[127,1,130,16],[83,1,83,3],[84,6,84,12],[87,7,87,16],[89,7,89,12],[114,1,114,3],[117,1,117,5],[117,6,117,8],[135,1,135,3],[135,6,135,11],[136,1,136,3],[136,6,137,10],[137,1,137,3],[138,1,138,3],[138,6,138,10],[132,1,133,3],[132,4,133,4],[132,5,133,5],[132,6,132,9],[134,1,134,3],[134,6,134,8],[146,1,146,3],[147,1,147,3],[148,1,148,3],[149,1,149,3],[150,1,150,3],[151,1,151,3],[139,1,139,3],[140,1,140,3],[140,6,141,11],[141,1,141,3],[142,1,142,3],[143,1,143,3],[143,6,145,8],[144,1,144,3],[145,1,145,3],[165,1,165,3],[165,14,165,19],[166,1,166,3],[152,1,152,3],[153,1,153,3],[155,1,155,16],[157,1,160,16],[163,1,164,3],[163,4,164,4],[163,5,164,5],[163,6,164,6],[163,7,164,7],[173,1,173,3],[174,1,174,3],[174,14,176,17],[175,1,175,3],[176,1,176,3],[177,1,177,3],[167,1,167,3],[168,1,168,3],[169,1,169,3],[169,14,169,19],[170,1,170,3],[171,1,171,3],[171,14,172,20],[172,1,172,3],[172,8,172,13],[186,4,186,10],[187,4,187,10],[184,1,184,3],[178,1,178,3],[179,1,179,3],[180,1,180,3],[181,1,181,3],[182,1,182,3],[183,1,183,3],[180,8,180,13],[181,8,181,13],[182,8,182,13],[183,8,183,13],[184,8,184,13]]}
["Prijsaanvraag infrastructuur zonder infrastructuurforfait"]
[null,"Klik hier indien terug naar generieke input"]
[null,"Enkel de lichtblauw gekleurde velden dienen te worden ingevuld"]
[null,"Dit onderdeel wordt ingevuld voor de bewoners zonder infrastructuurforfait waarvoor drastische investeringen worden gerealiseerd waarvan minimaal de helft wordt afgeschreven over een looptijd van minimaal twintig jaar. Indien de investeringen hieraan niet voldoen, dient u het formulier 2 te hanteren. Voor dezelfde bewoners kan u formulier 1 voor investeringen en formulier 2 voor marge-evolutie niet simultaan gebruiken. U zal een keuze moeten maken welk formulier eerst gehanteerd wordt en een volgende aanvraag voor de andere aanleiding kan maar na twee jaar."]
[]
[]
[]
[]
["1. Verantwoording van de gevraagde gemiddelde dagprijs"]
[]
[null,"Totaal verantwoorde dagprijs ",null,null,{"$f":"IFERROR(infrakost_verblijfsdag_werken+G51+G77+G118,0)","v":0},"wordt automatisch berekend"]
[]
[null,"1.1 lopende infrastructuurkost in dagprijs"]
[]
[null,"Geef hier de lopende infrastructuurkosten op onder de vorm van afschrijvingen, huur- en intrestkosten. Die dienen dan gestaafd te worden op basis van een extract uit de analytische boekhouding m.b.t. de betrokken voorziening en eenheden.\nIndien u slechts een dagprijsverhoging wenst voor een bepaald deel van de erkende capaciteit, dan kan slechts het deel van de lopende infrastructuurkosten worden verrekend dat betrekking heeft op dat deel van de capaciteit. Er is dan bijgevolg een pro ratering van de infrastructuurkosten vereist."]
[]
[]
[]
[null,null,null,null,"Bedragen in euro:"]
[null,"afschrijvingen lopende infrastructuur",null,null,0,null,null,"vermeld hier de lopende afschrijvingen/jaar",null,null,"te verantwoorden via de boekhouding"]
[null,"huur/erfpacht lopende infrastructuur",null,null,null,null,null,"vermeld hier de lopende erfpachtvergoeding",null,null,"te verantwoorden via de boekhouding"]
[null,"lopende intrestkosten",null,null,null,null,null,"vermeld hier de lopende intrestkosten",null,null,"te verantwoorden via de boekhouding"]
[null,"totale lopende infrastructuurkost",null,null,{"$f":"E20+E21+E22","v":0},null,null,"niet in te vullen, wordt berekend"]
[null,"aantal plaatsen prijsaanvraag",null,null,{"$f":"'Generieke input'!G36","v":0},null,null,"niet in te vullen, dit stemt overeen met de capaciteit vermeld in het tabblad \"Generieke input\", cel G36"]
[null,"aantal dagen ",null,null,{"$f":"IF('Generieke input'!V36=4,250,365)","v":365},null,null,"is 365 voor alle zorgvormen behalve CDV = 250 dagen"]
[null,"bezettingsgraad",null,null,{"$f":"'Generieke input'!AA47","v":0},null,null,"Bepaald in tabblad \"generieke input\", onder rubriek 3.2"]
[null,"lopende infrastructuurkost in dagprijs:",null,null,{"$f":"E23/PRODUCT(E24:G26)","v":{"$error":"#DIV/0!"}}]
[]
[null,"Toe te voegen bijlagen:",null,null,null,"U bezorgt een extract uit de analytische boekhouding voor de betrokken componenten. Indien de prijsaanvraag slechts betrekking heeft op een deel van de totale capaciteit, dan versleutelt u de de kosten volgens het aandeel in de totale capaciteit.\nIndien de analytische opdeling op niveau van de zorgvorm ontbreekt, kan vertrokken worden van het hogere beschikbare niveau, waarop dan vervolgens opnieuw een verdeelsleutel wordt toegepast die rekening houdt met het aandeel van de zorgvorm en de betrokken capaciteit waarvoor de prijsaanvraag wordt ingediend.\n"]
[]
[null,"1.2  Nieuwe investeringen in dagprijs"]
[]
[null,"Vermeld hierna de nieuwe investeringen indien hiervan minimaal 50% op minimaal twintig jaar wordt afgeschreven. De kamerinfrastructuur en het meubilair dienen volgens vaste termijnen van respectievelijk 25 en 10 jaar te worden afgeschreven.\n\n  Van deze investeringen mag enkel het deel opgenomen worden dat kan toegerekend worden aan de niet-infrastructuurforfaitgerechtigde bewoners. In geval van een gecombineerd investeringsproject voor infrastructuurforfaitgerechtigde en niet-infrastructuurforfaitgerechtigde bewoners gaat u dus als volgt te werk:\n- bepaal eerst het deel van de nieuwe investeringen dat betrekking heeft op de niet-infrastructuurforfaitgerechtigde bewoners\n- ga vervolgens na of van het voornoemde deel minimaal 50% een afschrijvingsduur heeft van minimaal 20 jaar:\n> indien zo, dan mag dit formulier inderdaad gebruikt worden;\n>> indien niet, dan dient het formulier 2 te worden gebruikt."]
[]
[]
[null,null,null,null,"Investering1","Investering2","Investering3","Investering4","Investering5","Investering6","Investering7","Investering8","Investering9","Investering10",null,null,null,"vrij te wijzigen volgens soort investering"]
[null,"Eenmalige investeringskost (eventueel bij verhuurder)",null,null,null,null,0,0,null,null,null,null,null,null,null,null,null,"in te vullen"]
[null,"kapitaalsubsidie uitbetaald gedurende bouwperiode",null,null,null,null,null,null,null,null,null,null,null,null,null,null,null,"in te vullen"]
[null,"totale BTW-recuperatie",null,null,null,null,null,null,null,null,null,null,null,null,null,null,null,"in te vullen"]
[null,"Totale netto investeringskost",null,null,{"$f":"E37-ABS(E38)-ABS(E39)","v":0},{"$f":"F37-ABS(F38)-ABS(F39)","v":0},{"$f":"G37-ABS(G38)-ABS(G39)","v":0},{"$f":"H37-ABS(H38)-ABS(H39)","v":0},{"$f":"I37-ABS(I38)-ABS(I39)","v":0},0,0,0,0,0,null,null,null,"wordt berekend"]
[null,"financieringskost",null,null,{"$f":"IFERROR(-PMT('Generieke input'!$D$56,E45,E40)*E45-E40,0)","v":0},{"$f":"IFERROR(-PMT('Generieke input'!$D$56,F45,F40)*F45-F40,0)","v":0},{"$f":"IFERROR(-PMT('Generieke input'!$D$56,G45,G40)*G45-G40,0)","v":0},{"$f":"IFERROR(-PMT('Generieke input'!$D$56,H45,H40)*H45-H40,0)","v":0},{"$f":"IFERROR(-PMT('Generieke input'!$D$56,I45,I40)*I45-I40,0)","v":0},{"$f":"IFERROR(-PMT('Generieke input'!$D$56,J45,J40)*J45-J40,0)","v":0},{"$f":"IFERROR(-PMT('Generieke input'!$D$56,K45,K40)*K45-K40,0)","v":0},{"$f":"IFERROR(-PMT('Generieke input'!$D$56,L45,L40)*L45-L40,0)","v":0},{"$f":"IFERROR(-PMT('Generieke input'!$D$56,M45,M40)*M45-M40,0)","v":0},{"$f":"IFERROR(-PMT('Generieke input'!$D$56,N45,N40)*N45-N40,0)","v":0},null,null,null,"wordt berekend"]
[null,"Investeringskost inclusief financieringskost",null,null,{"$f":"E40+E41","v":0},{"$f":"F40+F41","v":0},{"$f":"G40+G41","v":0},{"$f":"H40+H41","v":0},{"$f":"I40+I41","v":0},0,0,0,0,0,null,null,null,"wordt berekend"]
[null,"gespreide subsidie",null,null,null,null,null,null,null,null,null,null,null,null,null,null,null,"in te vullen"]
[null,"Netto investerings- en financieringskost",null,null,{"$f":"E42-E43","v":0},{"$f":"F42-F43","v":0},{"$f":"G42-G43","v":0},{"$f":"H42-H43","v":0},{"$f":"I42-I43","v":0},0,0,0,0,0,null,null,null,"wordt berekend"]
[null,"Afschrijvingsduur investeringkost (in jaren)",null,null,null,null,5,25,null,null,null,null,null,null,null,null,null,"vermeld de economische levensduur die past binnen de waarderingsregel van de entiteit",null,null,null,null,"kan eventueel gewijzigd worden bij afwijkende afschrijvingsduur"]
[null,{"$f":"B24","v":"aantal plaatsen prijsaanvraag"},null,null,{"$f":"'Generieke input'!G36","v":0},{"$f":"E46","v":0},{"$f":"F46","v":0},{"$f":"G46","v":0},{"$f":"H46","v":0},0,0,0,0,0,null,null,null,"wordt automatisch overgenomen uit het tabblad Generieke input, rubriek 3.1"]
[null,"Aantal dagen",null,null,{"$f":"E25","v":365},{"$f":"E47","v":365},{"$f":"F47","v":365},365,365,365,365,365,365,365,null,null,null,"ligt standaard vast"]
[null,"bezettingsgraad",null,null,{"$f":"bezettingsgraad_werken","v":0},{"$f":"E48","v":0},{"$f":"F48","v":0},{"$f":"G48","v":0},{"$f":"H48","v":0},0,0,0,0,0,null,null,null,"wordt automatisch bepaald op basis van de zorgvorm, confer tabblad \"Generieke input\", rubriek 3.2"]
[null,"investeringskost/periodieke vergoeding in dagprijs",null,null,{"$f":"IFERROR(ROUND(E44/E45/E47/E46/E48,2),0)","v":0},{"$f":"IFERROR(ROUND(F44/F45/F47/F46/F48,2),0)","v":0},{"$f":"IFERROR(ROUND(G44/G45/G47/G46/G48,2),0)","v":0},{"$f":"IFERROR(ROUND(H44/H45/H47/H46/H48,2),0)","v":0},{"$f":"IFERROR(ROUND(I44/I45/I47/I46/I48,2),0)","v":0},0,0,0,0,0]
[]
[null,"Nieuwe investeringskosten in dagprijs:",null,null,null,null,{"$f":"SUM(E49:N49)","v":0}]
[null,"Motivatie:",null,null,null,null,"voor de bouwkost werd gekozen voor hetzij (verwijder wat niet van toepassing is): eindafrekening / samenvattende vorderingsstaat/ geattesteerde afschrijvingstabel/  facturen/ gunningsbeslissing/ andere: ... \n"]
[]
[]
[null,"Toe te voegen bijlagen:",null,null,null,"Voeg tabblad met investeringsoverzicht met kostencomponenten en verantwoordingsstukken toe, of maak gebruik van het standaard voorziene tabblad \"bijlage investeringsoverzicht\". Hierna worden de verantwoordingsstukken steekproefgewijs opgevraagd."]
[]
[null,"Check op geoorloofd gebruik van formulier:"]
[null,null,null,"totaal investeringen >=20 jaar",null,{"$f":"SUMIFS(E37:N37,E45:N45,\">=20\")","v":0}]
[null,null,null,"totale investering",null,{"$f":"SUM(E37:N37)","v":0}]
[null,null,null,null,null,{"$f":"IFERROR(F58/F59,0)","v":0}]
[]
[null,"Besluit:",{"$f":"IF(F60>=50%, \"De nieuwe investeringen met een afschrijvingsduur van minimaal 20 jaar vertegenwoordigen minimaal 50% van de totale gefactureerde investeringskost. Het juiste formulier wordt gebruikt.\", \"De nieuwe investeringen met een afschrijvingsduur van minimaal 20 jaar vertegenwoordigen minder dan 50% van de totale gefactureerde investeringskost. Bijgevolg dient u het formulier 2, andere te gebruiken.\")","v":"De nieuwe investeringen met een afschrijvingsduur van minimaal 20 jaar vertegenwoordigen minder dan 50% van de totale gefactureerde investeringskost. Bijgevolg dient u het formulier 2, andere te gebruiken."}]
[]
[null,"1.3 Kosten van personeel in dienstverband na verrekening van de overheidstussenkomsten"]
[]
[null,"Deze rubriek heeft betrekking op alle personeel, inclusief het zelfstandige zorgpersoneel en uitzendpersoneel. Enkel de bestuurders worden onder diensten en diverse leveringen toegerekend. \nEnkel het personeel voor de niet-infrastructuurforfaitgerechtigde capaciteit mag hier worden ingevuld. In geval van uitbreiding van capaciteit zijn de VTE's, personeelskosten en bepaalde overheidstussenkomsten op kruissnelheid wanneer de volledige uitgebreide capaciteit wordt bereikt. Hierbij mag echter geen rekening gehouden worden met de inflatie, gezien die reeds bekomen wordt via de indexering van de dagprijs.\n\nVul hier per personeelscategorie op jaarbasis in: het aantal  VTE, personeelskost en overheidstussenkomst (=voor de laatste 2 is dit het totaalbedrag, niet het bedrag per verblijfsdag).\n\nPersoneelscategorieën:\n- zorgpersoneel = verpleegkundigen, zorgkundigen (verzorgenden), kinesitherapeuten, logopedisten, ergotherapeuten, personeel voor reactivatie;\n- administratief (inclusief directie), logistiek, technisch, poets- en keukenpersoneel: al het overige personeel dat niet tot de voorgaande categorie behoort\n\nPersoneelskost: is brutoloonkost inclusief werkgeversbijdrage. Verzekeringen en andere overheadkosten worden hier niet vermeld, maar onder rubriek 1.4.\n\nOverheidstussenkomsten:\nVul hier steeds het totaalbedrag en niet het bedrag per verblijfsdag in.\nDe basistegemoetkoming voor zorg die in mindering wordt gebracht, heeft ook betrekking op de tussenkomst voor niet-personeelskosten (de basistegemoetkoming voor zorg mag echter integraal in mindering gebracht worden op de personeelskosten, zodat dit niet meer moet versleuteld worden naar rubriek 1.4). \n\nOverheidstussenkomsten (zoals elementen sociale akkoorden) die betrekking hebben op verschillende personeelscategorieën probeert u toe te wijzen volgens de detailberekening of, indien niet mogelijk, via een logische verdeelsleutel. U dient uiteraard enkel de overheidstussenkomst in te vullen voor de personeelscategorieën waarop die betrekking heeft.\n\nBelangrijk is dat alle componenten van de overheidstussenkomst worden opgenomen: voor een checklist zie tabblad \"checklist overheidstussenkomst\""]
[]
[]
[null,null,null,null,"Aantal VTE","Personeelkost","Basistegemoetkoming zorg (*)","Eindeloopbaan (*)","Fondsen maribel (*)","Aanvullende\nfinanciering (*) ","IFIC","Andere (vb. OCVK, \nnomenclatuur, \njongdementie *)","Nettokost"]
[null,"Zorgpersoneel",null,null,0,0,0,0,0,0,0,0,{"$f":"F70-SUM(G70:L70)","v":0},"in te vullen, behalve in kolom M"]
[null,"Administratief, Logistiek, technisch,  poets- en keukenpersoneel",null,null,0,0,0,0,0,0,0,0,{"$f":"F71-SUM(G71:L71)","v":0},"in te vullen, behalve in kolom M"]
[null,"Totaal",null,null,null,null,null,null,null,null,null,null,{"$f":"SUM(M70:N71)","v":0},"in te vullen, behalve in kolom M"]
[null,"(*) Voor een opsomming van de componenten van de basistegemoetkoming voor zorg en de overige overheidstussenkomsten, volg deze link:",null,null,null,null,null,null,"checklist overheidstussenkomst"]
[null,"Totale netto-personeelskost",null,null,{"$f":"M72","v":0},"wordt berekend"]
[null,"Aantal verblijfsdagen",null,null,{"$f":"'Generieke input'!G36*E25*bezettingsgraad_werken","v":0},"wordt berekend"]
[]
[null,"Personeelskosten na overheidstussenkomst in dagprijs:",null,null,null,null,{"$f":"IFERROR(E74/E75,0)","v":0},null,null,"wordt berekend"]
[null,"Motivatie/bewijsstukken:",null,null,null,null,"eventuele toelichting sociale balans, extract resultatenrekening of businessplan"]
[]
[null,"1.4 Producten en diensten en diverse leveringen te verrekenen in dagprijs "]
[]
[null,"Vul hierna in kolom E de andere kosten voor producten en diensten en diverse leveringen in met betrekking tot de niet-forfaitgerechtigde bewoners. Hiervoor worden enkel die kosten opgenomen die niet eerder in de vorige rubrieken werden aangerekend.\nU vult daartoe in kolom E, waar van toepassing, de kosten op detailniveau in. Indien dit niet kan, mag u zich beperken tot de zwart omkaderde cellen/kaders. In sommige gevallen betekent dit dat u een automatisch berekend totaal zal overschrijven.\nHet totaal van de andere kosten voor producten en diensten en diverse leveringen wordt slechts verrekend in de dagprijs na aftrek van het deel dat reeds via een supplement werd doorgerekend. \nNaast \"supplementen en voorschotten\" vult u in kolom E het totaalbedrag aan supplementen en voorschotten in dat reeds door de bewoners wordt betaald en dus niet dient verrekend te worden in de dagprijs.\nIn kolom F wordt vervolgens de gemiddelde kost per verblijfsdag berekend"]
[]
[null,"Producten:",null,null,"Totaal (in te vullen volgens instructies in kolom G)","Kost per verblijfsdag (wordt berekend)"]
[null,null,"Totaal",null,{"$f":"SUM(E86:E93)","v":0},{"$f":"IFERROR(E85/$E$116,0)","v":0},"wordt berekend of wordt, indien voorkomend, ingevuld indien cellen met detailinformatie met groene commentaar niet worden ingevuld"]
[null,null,null,"Aankopen voeding",0,0,"facultatief in te vullen"]
[null,null,null,"Aankopen medisch, verzorgingsmateriaal",0,0,"facultatief in te vullen"]
[null,null,null,"Klein materiaal voor onderhoud",0,0,"facultatief in te vullen","in zoverre geen groot, eigenaarsonderhoud. Kost van vervanging van bv. lift, zit in economische afschrijving van de infrastructuur"]
[null,null,null,"Socioculturele activiteiten en ontspanning",0,0,"facultatief in te vullen"]
[null,null,null,"Bureel en  informatica",0,0,"facultatief in te vullen","software wordt hier opgenomen in zoverre niet opgenomen onder 1.2, klein kantoormaterieel (perforator, mappen, nietjesmachine)"]
[null,null,null,"Textiel en wasproducten",0,0,"facultatief in te vullen"]
[null,null,null,"Toilet en opschik",0,0,"facultatief in te vullen"]
[null,null,null,"Andere",0,0,"facultatief in te vullen"]
[]
[null,"Diensten en diverse leveringen:"]
[null,null,"Externe diensten",null,{"$f":"SUM(E97:E104)","v":0},{"$f":"IFERROR(E96/E116,0)","v":0},"wordt berekend of wordt, indien voorkomend, ingevuld indien cellen met detailinformatie met groene commentaar niet worden ingevuld"]
[null,null,null,"Sociaal secretariaat",0,{"$f":"IFERROR(E97/$E$116,0)","v":0},"facultatief in te vullen"]
[null,null,null,"Boekhouding/adm/zorgtoepassing",0,0,"facultatief in te vullen","externe accountant, bedrijfsrevisor, boekhouder in loondienst zit onder 1.3"]
[null,null,null,"Informatieverwerking",0,0,"facultatief in te vullen","informatieverwerking door derden, bvb. met betrekking tot sectoranalyses door derden, berekeningen personeelsinzet,…"]
[null,null,null,"Keuken",0,0,"facultatief in te vullen","externe keuken, interne keuken zit voor de invsteringen onder 1.2 andere investeringen en voor de personeelskosten onder 1.3"]
[null,null,null,"Was en linnen",0,0,"facultatief in te vullen"]
[null,null,null,"Onderhoud en schoonmaak",0,0,"facultatief in te vullen","enkel gebruikersonderhoud, geen groot onderhoud/verbouwing gezien gedekt door afschrijvingen"]
[null,null,null,"Vergoedingen en erelonen",0,0,"facultatief in te vullen","vergoedingen/erelonen advocaten, notarissen"]
[null,null,null,"Andere",0,0,"facultatief in te vullen"]
[null,null,"Onderhoud en herstellingen",null,0,0,"indien voorkomend, in te vullen"]
[null,null,"Verzekeringen",null,0,0,"indien voorkomend, in te vullen"]
[null,null,"Administratie",null,0,0,"indien voorkomend, in te vullen"]
[null,null,"Externe medische verzorging",null,0,0,"indien voorkomend, in te vullen"]
[null,null,"Bezoldiging bestuurders",null,0,0,"indien voorkomend, in te vullen"]
[null,null,"Aankopen energie",null,0,0,"indien voorkomend, in te vullen"]
[]
[]
[null,"Supplementen en voorschotten ten gunste van derden",null,null,0,{"$f":"IFERROR(E113/E116,0)","v":0},"gelieve het bedrag van supplementen en voorschotten in te vullen met betrekking tot voorgaande kostencategorieën"]
[null,null,null,null,null,null,"gelieve in bijlage het detail van de supplementen toe te lichten:",null,null,null,"bijlage supplement"]
[null,"Totale nettokosten diensten en diverse leveringen (na aftrek suppelementen en voorschotten)",null,null,{"$f":"E85+E96+SUM(E105:E110)-ABS(E113)","v":0},"wordt berekend"]
[null,"Aantal verblijfsdagen",null,null,{"$f":"E75","v":0},"wordt berekend"]
[]
[null,"Producten en diensten en diverse leveringen in dagprijs:",null,null,null,null,{"$f":"IFERROR(E115/E116,0)","v":0},null,null,"wordt berekend"]
[null,"Motivatie:",null,null,null,null,"voor bepaalde posten zullen bijkomende verantwoordingsstukken worden opgevraagd"]
[]
[]
["2. Evaluatie dagprijzen"]
[]
[null,"Verantwoorde prijs ",null,null,{"$f":"ROUND(E11,2)","v":0},"wordt berekend: som van 1.1 - 1.4"]
[]
[null,"2.1 Aangevraagde dagprijzen voor nieuwe bewoners"]
[]
[null,"Vermeld hier voor de kamers in de vernieuwde infrastructuur  de dagprijzen voor de niet-infrastructuurforfaitgerechtigde bewoners die u zou willen hanteren indien die capaciteit volledig bewoond zou zijn door nieuwe bewoners. Vermeld per kamertype de capaciteit (kolom E) en de gevraagde dagprijs (kolom F).\nHet totaal van de capaciteiten per kamertype moet overeenstemmen met de capaciteit \"zonder forfait\" in het tabblad \"Generieke input\", cel G36. \nDe gevraagde dagprijzen  worden slechts aanvaard indien het gemiddelde hiervan niet hoger ligt dan de verantwoorde prijs, cel E124"]
[]
[]
[]
[null,"in te vullen",null,null,"in te vullen","in te vullen"]
[null,"Kamertype/woon/verblijfseenheid in nieuwe infrastructuur",null,null,"Capaciteit waarvoor prijsaanvraag","Gevraagde dagprijs"]
[]
[null,null,null,null,null,0,"Eventuele foutmeldingen:",null,null,null,null,"alle kolommen in te vullen"]
[null,null,null,null,null,0,{"$f":"IF(E154<>'Generieke input'!G36,\"De totale capaciteit voor de vermelde dagprijzen stemt niet overeen met de capaciteit in de generieke input, cel G36\",\"\")","v":""}]
[null,null,null,null,null,0,{"$f":"IFERROR(IF(F154>E124, \"De gemiddelde prijs  ligt hoger dan de verantwoorde prijs .Pas de prijs van 1 of meerdere kamertypes aan.\",\"\"),\"\")","v":""}]
[null,null,null,null,null,0]
[null,null,null,null,null,0]
[null,null,null,null,null,0]
[null,null,null,null,null,0]
[null,null,null,null,null,0]
[null,null,null,null,null,0]
[null,null,null,null,null,0]
[null,null,null,null,null,0]
[null,null,null,null,null,0]
[null,null,null,null,null,0]
[null,null,null,null,null,0]
[null,null,null,null,null,0]
[null,null,null,null,null,0]
[null,null,null,null,null,0]
[null,null,null,null,null,0]
[null,null,null,null,null,0]
[null,"Gewogen gemiddelde",null,null,{"$f":"SUM(E135:E153)","v":0},{"$f":"SUM(E135:E153*F135:F153)/IF(E154>0,E154,1)","v":0}]
[]
[null,"2.2  Aangevraagde dagprijzen voor bestaande bewoners "]
[]
[null,"Vermeld hier per kamertype voor de bestaande bewoners die niet infrastructuurforfaitgerechtigd zijn: de  capaciteit waarvoor de prijs wordt aangevraagd (kolom E), de eventuele maximumprijs bij kennisname in de opnameoverenkomst (kolom F, vermeld hier 0 euro indien die maximumprijs niet werd opgenomen) en de gevraagde prijs in de nieuwe infrastructuur (G). Deze maximumprijs kan in tussentijd nog geïndexeerd worden indien de spilindex wordt overschreden sinds het moment van opname in de opnameovereenkomst.\nIndien er effectief bewoners kennis genomen hebben van de maximale prijs, dan dient  het bewijs van de start van de werken (via brief van de voorziening aan de aannemer) te worden toegevoegd. Via de ondertekening van het outputtabblad verklaren de gemachtigden naar eer en geweten dat het aantal bewoners met plafondprijs in de opnameovereenkomst effectief correct is.\nHet formulier toetst de prijzen dan automatisch af aan de evt. opgenomen prijs in de overeenkomst en geeft ook de aangepaste richtlijnen i.v.m. de evolutie van de stappen.\n"]
[]
[]
[]
[]
[null,"in te vullen",null,null,"in te vullen","in te vullen","in te vullen","Kolom H wordt berekend, kolom I wordt bepaald: niet overschrijven"]
[null,"Kamertype/woon/verblijfseenheid in oude infrastructuur voor bestaande bewoners",null,null,"Capaciteit waarvoor prijsaanvraag","Prijs in opnameovereenkomst? \n(indien niet =0 euro)","Aangevraagde prijs in nieuwe infrastructuur ","Goedgekeurde prijs ","Evolutie opstappen"]
[]
[null,null,null,null,null,0,0,{"$f":"IF(F166=0,G166,MIN(F166:G166))","v":0},{"$f":"IF(G166>0,IF(F166=0,\"De dagprijs stijgt niet in het eerste jaar en kan daarna elke 6 maand met max. \"& 'Parameters+keuzes'!$C$48 &\" euro worden verhoogd tot de goedgekeurde prijs bereikt is.\", \"De dagprijs kan  bij ingebruikname met max. \"& 'Parameters+keuzes'!$B$48&\" euro stijgen en kan daarna ten vroegste elke 6 maand met maximaal \"&  'Parameters+keuzes'!$B$48 & \" euro worden verhoogd tot de goedgekeurde prijs bereikt is.\"),\"\")","v":""},null,null,null,null,null,"Eventuele foutmeldingen:"]
[null,null,null,null,null,0,0,0,{"$f":"IF(G167>0,IF(F167=0,\"De dagprijs stijgt niet in het eerste jaar en kan daarna elke 6 maand met max. \"& 'Parameters+keuzes'!$C$48 &\" euro worden verhoogd tot de goedgekeurde prijs bereikt is.\", \"De dagprijs kan  bij ingebruikname met max. \"& 'Parameters+keuzes'!$B$48&\" euro stijgen en kan daarna ten vroegste elke 6 maand met maximaal \"&  'Parameters+keuzes'!$B$48 & \" euro worden verhoogd tot de goedgekeurde prijs bereikt is.\"),\"\")","v":""},null,null,null,null,null,{"$f":"IF(E185>erkende_plaatsen1,\"De capaciteit van de bestaande bewoners kan niet hoger zijn dan de capaciteit voor het forfait zoals vermeld in de generieke input\",\"\")","v":""}]
[null,null,null,null,null,0,0,0,{"$f":"IF(G168>0,IF(F168=0,\"De dagprijs stijgt niet in het eerste jaar en kan daarna elke 6 maand met max. \"& 'Parameters+keuzes'!$C$48 &\" euro worden verhoogd tot de goedgekeurde prijs bereikt is.\", \"De dagprijs kan  bij ingebruikname met max. \"& 'Parameters+keuzes'!$B$48&\" euro stijgen en kan daarna ten vroegste elke 6 maand met maximaal \"&  'Parameters+keuzes'!$B$48 & \" euro worden verhoogd tot de goedgekeurde prijs bereikt is.\"),\"\")","v":""},null,null,null,null,null,{"$f":"IFERROR(IF(H185>E124, \"De gemiddelde goedgekeurde prijs ligt hoger dan de verantwoorde prijs.Pas de prijs van 1 of meerdere kamertypes aan.\",\"\"),\"\")","v":""},null,null,null,null,null,null,null,null,null,null,"ja"]
[null,null,null,null,null,0,0,0,{"$f":"IF(G169>0,IF(F169=0,\"De dagprijs stijgt niet in het eerste jaar en kan daarna elke 6 maand met max. \"& 'Parameters+keuzes'!$C$48 &\" euro worden verhoogd tot de goedgekeurde prijs bereikt is.\", \"De dagprijs kan  bij ingebruikname met max. \"& 'Parameters+keuzes'!$B$48&\" euro stijgen en kan daarna ten vroegste elke 6 maand met maximaal \"&  'Parameters+keuzes'!$B$48 & \" euro worden verhoogd tot de goedgekeurde prijs bereikt is.\"),\"\")","v":""},null,null,null,null,null,null,null,null,null,null,null,null,null,null,null,null,"nee"]
[null,null,null,null,null,0,0,0,{"$f":"IF(G170>0,IF(F170=0,\"De dagprijs stijgt niet in het eerste jaar en kan daarna elke 6 maand met max. \"& 'Parameters+keuzes'!$C$48 &\" euro worden verhoogd tot de goedgekeurde prijs bereikt is.\", \"De dagprijs kan  bij ingebruikname met max. \"& 'Parameters+keuzes'!$B$48&\" euro stijgen en kan daarna ten vroegste elke 6 maand met maximaal \"&  'Parameters+keuzes'!$B$48 & \" euro worden verhoogd tot de goedgekeurde prijs bereikt is.\"),\"\")","v":""}]
[null,null,null,null,null,0,0,0,{"$f":"IF(G171>0,IF(F171=0,\"De dagprijs stijgt niet in het eerste jaar en kan daarna elke 6 maand met max. \"& 'Parameters+keuzes'!$C$48 &\" euro worden verhoogd tot de goedgekeurde prijs bereikt is.\", \"De dagprijs kan  bij ingebruikname met max. \"& 'Parameters+keuzes'!$B$48&\" euro stijgen en kan daarna ten vroegste elke 6 maand met maximaal \"&  'Parameters+keuzes'!$B$48 & \" euro worden verhoogd tot de goedgekeurde prijs bereikt is.\"),\"\")","v":""}]
[null,null,null,null,null,0,0,0,{"$f":"IF(G172>0,IF(F172=0,\"De dagprijs stijgt niet in het eerste jaar en kan daarna elke 6 maand met max. \"& 'Parameters+keuzes'!$C$48 &\" euro worden verhoogd tot de goedgekeurde prijs bereikt is.\", \"De dagprijs kan  bij ingebruikname met max. \"& 'Parameters+keuzes'!$B$48&\" euro stijgen en kan daarna ten vroegste elke 6 maand met maximaal \"&  'Parameters+keuzes'!$B$48 & \" euro worden verhoogd tot de goedgekeurde prijs bereikt is.\"),\"\")","v":""}]
[null,null,null,null,null,0,0,0,{"$f":"IF(G173>0,IF(F173=0,\"De dagprijs stijgt niet in het eerste jaar en kan daarna elke 6 maand met max. \"& 'Parameters+keuzes'!$C$48 &\" euro worden verhoogd tot de goedgekeurde prijs bereikt is.\", \"De dagprijs kan  bij ingebruikname met max. \"& 'Parameters+keuzes'!$B$48&\" euro stijgen en kan daarna ten vroegste elke 6 maand met maximaal \"&  'Parameters+keuzes'!$B$48 & \" euro worden verhoogd tot de goedgekeurde prijs bereikt is.\"),\"\")","v":""}]
[null,null,null,null,null,0,0,0,{"$f":"IF(G174>0,IF(F174=0,\"De dagprijs stijgt niet in het eerste jaar en kan daarna elke 6 maand met max. \"& 'Parameters+keuzes'!$C$48 &\" euro worden verhoogd tot de goedgekeurde prijs bereikt is.\", \"De dagprijs kan  bij ingebruikname met max. \"& 'Parameters+keuzes'!$B$48&\" euro stijgen en kan daarna ten vroegste elke 6 maand met maximaal \"&  'Parameters+keuzes'!$B$48 & \" euro worden verhoogd tot de goedgekeurde prijs bereikt is.\"),\"\")","v":""}]
[null,null,null,null,null,0,0,0,{"$f":"IF(G175>0,IF(F175=0,\"De dagprijs stijgt niet in het eerste jaar en kan daarna elke 6 maand met max. \"& 'Parameters+keuzes'!$C$48 &\" euro worden verhoogd tot de goedgekeurde prijs bereikt is.\", \"De dagprijs kan  bij ingebruikname met max. \"& 'Parameters+keuzes'!$B$48&\" euro stijgen en kan daarna ten vroegste elke 6 maand met maximaal \"&  'Parameters+keuzes'!$B$48 & \" euro worden verhoogd tot de goedgekeurde prijs bereikt is.\"),\"\")","v":""}]
[null,null,null,null,null,0,0,0,{"$f":"IF(G176>0,IF(F176=0,\"De dagprijs stijgt niet in het eerste jaar en kan daarna elke 6 maand met max. \"& 'Parameters+keuzes'!$C$48 &\" euro worden verhoogd tot de goedgekeurde prijs bereikt is.\", \"De dagprijs kan  bij ingebruikname met max. \"& 'Parameters+keuzes'!$B$48&\" euro stijgen en kan daarna ten vroegste elke 6 maand met maximaal \"&  'Parameters+keuzes'!$B$48 & \" euro worden verhoogd tot de goedgekeurde prijs bereikt is.\"),\"\")","v":""}]
[null,null,null,null,null,0,0,0,{"$f":"IF(G177>0,IF(F177=0,\"De dagprijs stijgt niet in het eerste jaar en kan daarna elke 6 maand met max. \"& 'Parameters+keuzes'!$C$48 &\" euro worden verhoogd tot de goedgekeurde prijs bereikt is.\", \"De dagprijs kan  bij ingebruikname met max. \"& 'Parameters+keuzes'!$B$48&\" euro stijgen en kan daarna ten vroegste elke 6 maand met maximaal \"&  'Parameters+keuzes'!$B$48 & \" euro worden verhoogd tot de goedgekeurde prijs bereikt is.\"),\"\")","v":""}]
[null,null,null,null,null,0,0,0,{"$f":"IF(G178>0,IF(F178=0,\"De dagprijs stijgt niet in het eerste jaar en kan daarna elke 6 maand met max. \"& 'Parameters+keuzes'!$C$48 &\" euro worden verhoogd tot de goedgekeurde prijs bereikt is.\", \"De dagprijs kan  bij ingebruikname met max. \"& 'Parameters+keuzes'!$B$48&\" euro stijgen en kan daarna ten vroegste elke 6 maand met maximaal \"&  'Parameters+keuzes'!$B$48 & \" euro worden verhoogd tot de goedgekeurde prijs bereikt is.\"),\"\")","v":""}]
[null,null,null,null,null,0,0,0,{"$f":"IF(G179>0,IF(F179=0,\"De dagprijs stijgt niet in het eerste jaar en kan daarna elke 6 maand met max. \"& 'Parameters+keuzes'!$C$48 &\" euro worden verhoogd tot de goedgekeurde prijs bereikt is.\", \"De dagprijs kan  bij ingebruikname met max. \"& 'Parameters+keuzes'!$B$48&\" euro stijgen en kan daarna ten vroegste elke 6 maand met maximaal \"&  'Parameters+keuzes'!$B$48 & \" euro worden verhoogd tot de goedgekeurde prijs bereikt is.\"),\"\")","v":""}]
[null,null,null,null,null,0,0,0,{"$f":"IF(G180>0,IF(F180=0,\"De dagprijs stijgt niet in het eerste jaar en kan daarna elke 6 maand met max. \"& 'Parameters+keuzes'!$C$48 &\" euro worden verhoogd tot de goedgekeurde prijs bereikt is.\", \"De dagprijs kan  bij ingebruikname met max. \"& 'Parameters+keuzes'!$B$48&\" euro stijgen en kan daarna ten vroegste elke 6 maand met maximaal \"&  'Parameters+keuzes'!$B$48 & \" euro worden verhoogd tot de goedgekeurde prijs bereikt is.\"),\"\")","v":""}]
[null,null,null,null,null,0,0,0,{"$f":"IF(G181>0,IF(F181=0,\"De dagprijs stijgt niet in het eerste jaar en kan daarna elke 6 maand met max. \"& 'Parameters+keuzes'!$C$48 &\" euro worden verhoogd tot de goedgekeurde prijs bereikt is.\", \"De dagprijs kan  bij ingebruikname met max. \"& 'Parameters+keuzes'!$B$48&\" euro stijgen en kan daarna ten vroegste elke 6 maand met maximaal \"&  'Parameters+keuzes'!$B$48 & \" euro worden verhoogd tot de goedgekeurde prijs bereikt is.\"),\"\")","v":""}]
[null,null,null,null,null,0,0,0,{"$f":"IF(G182>0,IF(F182=0,\"De dagprijs stijgt niet in het eerste jaar en kan daarna elke 6 maand met max. \"& 'Parameters+keuzes'!$C$48 &\" euro worden verhoogd tot de goedgekeurde prijs bereikt is.\", \"De dagprijs kan  bij ingebruikname met max. \"& 'Parameters+keuzes'!$B$48&\" euro stijgen en kan daarna ten vroegste elke 6 maand met maximaal \"&  'Parameters+keuzes'!$B$48 & \" euro worden verhoogd tot de goedgekeurde prijs bereikt is.\"),\"\")","v":""}]
[null,null,null,null,null,0,0,0,{"$f":"IF(G183>0,IF(F183=0,\"De dagprijs stijgt niet in het eerste jaar en kan daarna elke 6 maand met max. \"& 'Parameters+keuzes'!$C$48 &\" euro worden verhoogd tot de goedgekeurde prijs bereikt is.\", \"De dagprijs kan  bij ingebruikname met max. \"& 'Parameters+keuzes'!$B$48&\" euro stijgen en kan daarna ten vroegste elke 6 maand met maximaal \"&  'Parameters+keuzes'!$B$48 & \" euro worden verhoogd tot de goedgekeurde prijs bereikt is.\"),\"\")","v":""}]
[null,null,null,null,null,0,0,0,{"$f":"IF(G184>0,IF(F184=0,\"De dagprijs stijgt niet in het eerste jaar en kan daarna elke 6 maand met max. \"& 'Parameters+keuzes'!$C$48 &\" euro worden verhoogd tot de goedgekeurde prijs bereikt is.\", \"De dagprijs kan  bij ingebruikname met max. \"& 'Parameters+keuzes'!$B$48&\" euro stijgen en kan daarna ten vroegste elke 6 maand met maximaal \"&  'Parameters+keuzes'!$B$48 & \" euro worden verhoogd tot de goedgekeurde prijs bereikt is.\"),\"\")","v":""}]
[null,"Gewogen gemiddelde",null,null,{"$f":"SUM(E166:E184)","v":0},null,{"$f":"SUM(E166:E184*G166:G184)/IF(E185>0,E185,1)","v":0},{"$f":"SUM(E166:E184*H166:H184)/IF($E$185>0,$E$185,1)","v":0}]
[]
[null,"Motivatie opname prijs in overeenkomst via:",null,null,{"$f":"'1A-Infrastructuur met forfait'!E196","v":"door ondertekening van het outputtabblad wordt naar eer en geweten verklaard dat het aantal vermelde bewoners met opnameovereenkomst correct is"}]
[null,null,null,null,"bewijs van de datum van de start van de werken aan hand van een aanvangsbevel van de werken (brief voorziening aan de aannemer)"]

{"sheet":"Formulier 2","index":6,"n_rows":301,"n_cols":19,"rows_kept":301,"cut":false,"hidden":true,"merged":[[308,1,308,7],[308,8,308,9],[308,10,308,11],[309,1,309,7],[309,8,309,9],[309,10,309,11],[242,4,242,5],[305,1,305,7],[305,8,305,9],[305,10,305,11],[306,1,306,7],[306,8,306,9],[306,10,306,11],[307,1,307,7],[307,8,307,9],[307,10,307,11],[288,1,288,7],[289,1,289,7],[290,1,290,7],[291,1,291,7],[292,1,292,7],[297,1,297,11],[298,1,298,11],[304,1,304,7],[304,8,304,9],[304,10,304,11],[262,1,262,7],[262,8,262,9],[262,10,262,11],[262,12,262,13],[263,1,263,7],[263,8,263,9],[263,10,263,11],[263,12,263,13],[264,1,264,7],[264,8,264,9],[264,10,264,11],[264,12,264,13],[283,1,283,7],[284,1,284,7],[272,1,272,5],[273,1,273,13],[274,1,274,13],[275,1,275,13],[276,1,276,13],[277,1,277,13],[299,1,299,7],[299,8,299,9],[259,1,259,7],[259,8,259,9],[259,10,259,11],[259,12,259,13],[260,1,260,7],[260,8,260,9],[260,10,260,11],[260,12,260,13],[261,1,261,7],[261,8,261,9],[261,10,261,11],[261,12,261,13],[43,0,109,0],[44,1,47,14],[94,5,94,6],[112,1,116,14],[153,1,156,14],[246,1,246,14],[248,8,250,9],[248,10,250,11],[248,12,250,13],[54,5,54,6],[55,5,55,6],[56,5,56,6],[53,5,53,6],[57,5,57,6],[169,6,169,11],[170,1,170,3],[170,6,171,10],[171,1,171,3],[107,1,107,4],[107,5,107,13],[142,1,142,14],[159,1,159,16],[161,1,164,16],[136,1,136,5],[136,6,136,13],[137,1,137,13],[139,1,139,4],[151,1,151,14],[129,4,129,5],[129,6,129,8],[129,9,129,11],[129,12,129,13],[130,4,130,5],[130,6,130,8],[130,9,130,11],[130,12,130,13],[134,1,134,13],[135,1,135,5],[135,6,135,8],[132,9,132,11],[132,12,132,13],[139,5,139,16],[145,6,145,10],[145,11,145,13],[203,10,203,15],[217,1,217,3],[218,1,218,3],[216,1,216,3],[199,1,199,3],[207,1,207,3],[208,1,208,3],[215,1,215,3],[211,1,211,3],[212,1,212,3],[213,1,213,3],[204,1,204,3],[205,1,205,3],[205,10,206,16],[206,1,206,3],[201,1,201,3],[202,1,202,3],[203,1,203,3],[199,10,199,15],[200,1,200,3],[214,1,214,3],[208,10,210,13],[128,12,128,13],[125,4,125,5],[42,1,42,14],[133,4,133,5],[133,6,133,8],[133,9,133,11],[133,12,133,13],[110,1,110,14],[86,5,86,6],[92,5,92,6],[103,1,103,5],[103,6,103,8],[88,5,88,6],[91,5,91,6],[89,5,89,6],[131,4,131,5],[131,6,131,8],[131,9,131,11],[131,12,131,13],[132,4,132,5],[132,6,132,8],[48,14,109,14],[83,5,83,6],[84,5,84,6],[221,4,221,5],[176,1,176,3],[177,1,177,3],[177,6,179,8],[178,1,178,3],[209,1,209,3],[210,1,210,3],[128,4,128,5],[128,6,128,8],[197,7,198,7],[186,1,186,3],[187,1,187,3],[189,1,189,16],[180,1,180,3],[172,1,172,3],[172,6,172,10],[173,1,173,3],[144,1,144,5],[144,6,144,8],[145,1,145,5],[146,1,146,13],[148,1,148,4],[148,5,148,13],[128,9,128,11],[166,1,167,3],[179,1,179,3],[191,1,194,16],[197,1,198,3],[197,4,198,4],[197,5,198,5],[197,6,198,6],[197,9,198,9],[197,8,198,8],[181,1,181,3],[182,1,182,3],[183,1,183,3],[184,1,184,3],[185,1,185,3],[174,1,174,3],[174,6,175,11],[175,1,175,3],[168,1,168,3],[166,4,167,4],[166,5,167,5],[166,6,166,9],[168,6,168,8],[169,1,169,3],[74,5,74,6],[76,5,76,6],[77,5,77,6],[78,5,78,6],[51,5,51,6],[61,5,61,6],[67,5,67,6],[73,5,73,6],[80,5,80,6],[79,5,79,6],[98,5,98,6],[90,5,90,6],[95,5,95,6],[96,5,96,6],[97,5,97,6],[99,5,99,6],[101,5,101,6],[104,1,104,5],[104,6,104,13],[105,1,105,13],[120,4,120,5],[120,6,120,8],[120,9,120,11],[120,12,120,13],[125,6,125,8],[125,9,125,11],[125,12,125,13],[126,4,126,5],[126,6,126,8],[126,9,126,11],[126,12,126,13],[121,12,121,13],[122,4,122,5],[122,6,122,8],[122,9,122,11],[122,12,122,13],[108,5,108,13],[117,0,140,0],[118,4,118,5],[118,6,118,8],[118,9,118,11],[118,12,118,13],[123,4,123,5],[123,6,123,8],[123,9,123,11],[123,12,123,13],[124,4,124,5],[124,6,124,8],[124,9,124,11],[124,12,124,13],[121,4,121,5],[121,6,121,8],[121,9,121,11],[127,4,127,5],[127,6,127,8],[127,9,127,11],[127,12,127,13],[119,4,119,5],[119,6,119,8],[119,9,119,11],[119,12,119,13],[39,1,40,4],[39,5,39,13],[40,5,40,13],[36,1,36,4],[36,6,37,8],[36,9,37,11],[37,1,37,4],[33,1,33,4],[33,6,34,8],[33,9,34,11],[34,1,34,4],[35,1,35,4],[35,6,35,8],[35,9,35,11],[31,1,31,4],[31,6,31,8],[31,9,31,11],[32,1,32,4],[32,6,32,8],[32,9,32,11],[26,1,26,4],[26,6,28,8],[26,9,28,11],[27,1,27,4],[28,1,28,4],[29,6,29,8],[29,9,29,11],[29,1,29,4],[30,6,30,8],[30,9,30,11],[19,9,19,11],[25,1,25,4],[25,6,25,8],[25,9,25,11],[22,1,23,4],[22,6,23,8],[22,9,23,11],[24,6,24,8],[24,9,24,11],[20,1,20,4],[20,6,20,8],[20,9,20,11],[21,1,21,4],[21,6,21,8],[21,9,21,11],[19,1,19,4],[19,6,19,8],[299,10,299,11],[293,1,293,7],[285,1,285,7],[286,1,286,7],[287,1,287,7],[279,1,279,7],[280,1,280,7],[281,1,281,7],[282,1,282,7],[302,1,302,7],[302,8,302,9],[302,10,302,11],[303,1,303,7],[303,8,303,9],[303,10,303,11],[300,1,300,7],[300,8,300,9],[300,10,300,11],[301,1,301,7],[301,8,301,9],[301,10,301,11],[257,1,257,7],[257,8,257,9],[257,10,257,11],[257,12,257,13],[258,1,258,7],[258,8,258,9],[258,10,258,11],[258,12,258,13],[255,1,255,7],[255,8,255,9],[255,10,255,11],[255,12,255,13],[256,1,256,7],[256,8,256,9],[256,10,256,11],[256,12,256,13],[253,1,253,7],[253,8,253,9],[253,10,253,11],[253,12,253,13],[254,1,254,7],[254,8,254,9],[254,10,254,11],[254,12,254,13],[251,1,251,7],[251,8,251,9],[251,10,251,11],[251,12,251,13],[252,1,252,7],[252,8,252,9],[252,10,252,11],[252,12,252,13],[249,1,249,7],[250,1,250,7],[248,1,248,7],[1,0,5,0],[0,0,0,14],[245,1,245,7],[245,8,245,9],[245,10,245,11],[245,12,245,13],[3,1,5,14],[17,1,17,4],[17,6,17,8],[17,9,17,11],[18,1,18,4],[18,6,18,8],[18,9,18,11],[7,0,7,14],[14,1,15,4],[14,6,14,8],[14,9,14,11],[16,1,16,4],[16,6,16,8],[16,9,16,11],[9,1,10,14]]}
["Formulier 2: andere (geen drastische infrastructuurwerken of evolueren naar marge)"]
[null,"Klik hier indien terug naar generieke input"]
[null,"U kan de lichtblauw gekleurde cellen invullen (waar nodig)"]
[null,"Dit formulier wordt gebruikt voor alle zorgvormen  en voor volgende aanleidingen voor dagprijsverhoging: hetzij (a) investeringen waarvan minder dan 50% van de totale kost op factuur afgeschreven wordt op minimaal twintig jaar (rubriek 3) of hetzij (b)  een marge-evolutie (rubrieken 1 en 2).\nBeide (a) en (b) kunnen niet gelijktijdig worden ingevoerd. Tussen de indiening van (a) en (b) dient ook minimaal twee jaar verstreken te zijn. \nVerder kan dit formulier ook ingevuld worden voor verschuiving van supplement naar dagprijs (rubriek 4) of voor andere toeslagen (rubriek 6)."]
[]
[]
[]
["1. Resultatenrekening"]
[]
[null,"Indien u een dagprijsverhoging wenst omwille van marge-evolutie, dan vult u het laatst beschikbaar boekjaar in E13 in en dient u hierna de opbrengsten en kosten in te voeren van de laatste  2 beschikbare boekjaren. Indien u het formulier gebruikt voor niet-drastische investeringen, dan vult u rubrieken 1&2 niet in en vult u rubriek 3 in.  Vervolgens vult u in rubriek 2 de huidige gewogen gemiddelde dagprijs in.\nIndien u de dagprijsverhoging slechts aanvraagt voor een deel van de bewoners terwijl de opbrengsten en kosten betrekking hebben op de volledige voorziening, dan dient u de opbrengsten en kosten  te prorateren in functie van het aantal bewoners waarop de dagprijsverhoging zal worden toegepast.  De marge-evolutie zal immers berekend worden op basis van de ingevoerde opbrengsten en kosten vóór uitzonderlijk resultaat,  zodat die uiteraard in verhouding moeten staan tot het aantal bewoners waarop de dagprijsverhoging betrekking zal hebben. \nIndien de resultatenrekening niet direct op het niveau van de zorgvorm kan worden bezorgd, dient er vertrokken te worden van de resultatenrekening op hoger niveau (dit kan van de rechtspersoon zijn of een analytische resultatenrekening/beleidsveld voor verschillende zorgvormen samen). Op basis van redelijke verdeelsleutels wordt uit die geaggregeerde resultatenrekening, de resultatenrekening samengesteld van de zorgvorm waarvoor de prijsaanvraag wordt ingediend."]
[]
[]
[null,"Boekjaar van de laatst beschikbare jaarrekening?",null,null,2024,"<= vul hiernaast het jaartal van het laatste beschikbare boekjaar in"]
[]
[null,null,null,null,null,null,"jaarrekening ",null,null,"jaarrekening "]
[null,null,null,null,null,null,"jaar :",{"$f":"K16-1","v":2023},null,"jaar :",{"$f":"E13","v":2024}]
[null,"I Werkingsopbrengsten (70/74)",null,null,null,null,0,null,null,0,null,null,"gelieve in te vullen"]
[null,"II Bedrijfskosten (60/64)",null,null,null,null,{"$f":"SUM(G19:I22)","v":0},null,null,{"$f":"SUM(J19:L22)","v":0},null,null,"wordt berekend"]
[null,". Handelsgoederen, grond- en hulpstoffen, diensten en diverse leveringen (60/61)",null,null,null,null,0,null,null,0,null,null,"gelieve in te vullen"]
[null,". Personeelskosten (62)",null,null,null,null,0,null,null,0,null,null,"gelieve in te vullen"]
[null,". Afschrijvingen, waardeverminderingen en voorzieningen (63)",null,null,null,null,0,null,null,0,null,null,"gelieve in te vullen"]
[null,". Andere bedrijfskosten (64)",null,null,null,null,null,null,null,null,null,null,"gelieve in te vullen"]
[null,"III Nettobedrijfsresultaat (I - II)",null,null,null,null,{"$f":"G17-G18","v":0},null,null,{"$f":"J17-J18","v":0}]
[null,null,null,null,null,null,null,null,null,null,null,null,"wordt berekend"]
[null,"IV Financiële opbrengsten (75)",null,null,null,null,0,null,null,0,null,null,"gelieve in te vullen"]
[null,"V Financiële kosten (65)",null,null,null,null,0,null,null,0,null,null,"gelieve in te vullen"]
[null,"VI Winst/verlies uit gewone",null,null,null,null,{"$f":"G23+G25-G26","v":0},null,null,{"$f":"J23+J25-J26","v":0}]
[null,"uitbating vóór belasting"]
[null,"((totaal III + (IV-V))",null,null,null,null,null,null,null,null,null,null,"wordt berekend"]
[null,"Marge vóór uitzonderlijk resultaat",null,null,null,null,{"$f":"IFERROR(G27/G17,0%)","v":0},null,null,{"$f":"IFERROR(J27/J17,0%)","v":0},null,null,"wordt berekend"]
[null,"Marge < 2,5%",null,null,null,null,{"$f":"IF(G30<2.5%,\"JA\",\"NEEN\")","v":"JA"},null,null,{"$f":"IF(J30<2.5%,\"JA\",\"NEEN\")","v":"JA"},null,null,"wordt bepaald"]
[null,"VII Uitzonderlijke opbrengsten (76)",null,null,null,null,0,null,null,0,null,null,"gelieve in te vullen"]
[null,"VIII Uitzonderlijke kosten (66)",null,null,null,null,0,null,null,0,null,null,"gelieve in te vullen"]
[null,"IX Resultaat vóór belastingen",null,null,null,null,{"$f":"G27+G32-G33","v":0},null,null,{"$f":"J27+J32-J33","v":0}]
[null,"(totaal VI+ (VII-VIII)",null,null,null,null,null,null,null,null,null,null,"wordt berekend"]
[null,"X Belastingen (67/78)",null,null,null,null,null,null,null,null,null,null,"gelieve in te vullen"]
[null,"XI Winst / verlies boekjaar",null,null,null,null,{"$f":"G34-G36","v":0},null,null,{"$f":"J34-J36","v":0}]
[null,"na belastingen",null,null,null,null,null,null,null,null,null,null,"word berekend"]
[]
[null,"Eventuele bijkomende bewijsstukken: ",null,null,null,"Resultatenrekening (extracomptabel) van de betrokken zorgvorm (woonzorgcentrum en kortverblijf, DVC, GAW)"]
[null,null,null,null,null,"Indien ontbrekend, kan vertrokken worden van het hogere beschikbare niveau, waarop dan vervolgens een verdeelsleutel wordt toegepast."]
[]
["2.","Marge-evolutie"]
[]
[null,"Indien u een dagprijsverhoging voor marge-evolutie wenst, dan dient u naast de jaarrekening onder (1),  onder (2.1) voor het WZC inclusief kortverblijf en de GAW op rij 55 de huidige gewogen gemiddelde dagprijs van uw voorziening in te vullen.  \n\nIn het eerste luik (2.1) worden vervolgens de criteria getoetst. Basisvoorwaarde is dat de marge gedurende de 2 afgelopen boekjaren minder dan 2,5% bedroeg, wat door de excel wordt afgetoetst op basis van de resultatenrekening onder rubriek 1. Daarnaast zal (a) de gewogen gemiddelde dagprijs van uw voorziening (zoals bepaald in het kader van de bevraging van het departement zorg) worden vergeleken met (b) de gewogen gemiddelde dagprijs van de private sector voor de WZC en KV of een vaste referentieprijs voor de GAW. Indien (a) hoger ligt dan 125% van (b), dan wordt uw voorziening beschouwd als een voorziening met een bovengemiddelde dagprijs. Dit vereist dan een bijkomende toets van de evolutie van huurkost, afschrijvingen en intrest. Deze kosten mogen samen over de afgelopen 4 jaar niet sterker geëvolueerd zijn dan de afgevlakte gezondheidsindex.Indien dit toch het geval is, dient aangetoond te worden dat er  significante investeringen werden uitgevoerd.\n\nIn het tweede luik (2.2) wordt de dagprijsverhoging bepaald die nodig zou zijn om vertrekkend van het laatst beschikbare boekjaar, tot een marge van 2,5% te kunnen komen. \nTen eerste wordt daartoe de vereiste toename van de % marge  (B) berekend door het verschil te berekenen tussen 2,5% en de marge van het laatste beschikbare boekjaar (A).\nTen tweede wordt die vereiste margetoename (B) verrekend op de werkingsopbrengsten van het laatst beschikbare boekjaar om de extra benodigde werkingsopbrengsten (C) te berekenen: C=B x werkingsopbrengsten.\nTen derde worden de zo berekende extra benodigde werkingsopbrengsten vertaald in een dagprijstoename o.b.v. de bezettingsgraad  (D) zoals bepaald in \"Generieke Input\" en het aantal woongelegenheden (E) waarover die wordt gespreid. \nTen vierde wordt in geval van de onder 2.1 bepaalde voorziening met reeds een bovengemiddelde dagprijs, de dagprijsstijging afgetopt op een percentage van de gewogen gemiddelde dagprijs van de private sector + 25% (GGDP) of de referentieprijs voor de GAW. Het voornoemde percentage bedraagt 5% indien er in het laatste boekjaar een marge was tussen 0% en 2,5% (beperkt resultaat) en 10% indien het laatste boekjaar een negatieve marge toonde.\n"]
[]
[]
[]
[]
[null,"2.1 Toetsing criteria:"]
[null,"Klik sowieso in een willekeurige cel om de passende rijen te laten verschijnen (of te laten verdwijnen)!"]
[null,"marge gedurende 2 afgelopen boekjaren < 2,5%?",null,null,null,{"$f":"IF(AND(COUNTIF(G31:L31,\"JA\")=2,J17>0),\"JA\",\"NEEN\")","v":"NEEN"},null,"wordt bepaald"]
[]
[null,"bovengemiddelde dagprijs?",null,null,null,{"$f":"IF(OR(F52=\"NEEN\",'Generieke input'!AA48=\"CDV/CDO\"),\"NVT\", IF(F55>F57,\"JA\",\"NEEN\"))","v":"NVT"},null,"indien JA en indien volgende cellen niet verschijnen, gelieve dan in een willekeurige cel te klikken"]
[null,"huidige gewogen gemiddelde dagprijs van de voorziening (na aftrek infrastructuurforfait)",null,null,null,75,null," dient u in te vullen, zie: https://view.officeapps.live.com/op/view.aspx?src=https%3A%2F%2Fwww.zorg-en-gezondheid.be%2Fsites%2Fdefault%2Ffiles%2F2023-10%2FOverzicht_alle_dagprijzen_2023_-_eentweepers_-_Vlaanderen.xlsx&wdOrigin=BROWSELINK"]
[null,"gewogen gemiddelde dagprijs private sector o.b.v. laatste beschikbaar jaar",null,null,null,{"$f":"IF('Generieke input'!AA48=\"GAW\",'Parameters+keuzes'!D32,'Parameters+keuzes'!C32)","v":71.599999999999994},null,"wordt opgezocht bij  parameters"]
[null,"gewogen gemiddelde dagprijs private sector + 25%",null,null,null,{"$f":"1.25*F56","v":89.5},null,"word berekend"]
[null,"verantwoording evolutie huurkost, afschrijvingen en intrestlast",null,null,null,{"$f":"IF(OR(F52=\"NEEN\",J17=0,F54=\"NEEN\",F54=\"NVT\"),\"NIET VEREIST\",IF(OR(F80=\"JA\",F81=\"JA\"),\"VEREIST EN OK\",\"VEREIST EN NIET OK\"))","v":"NIET VEREIST"}]
[]
[null,"evolutie huurkost, afschrijvingen en intrestlast in orde?"]
[]
[null,"recente huurkost, afschrijvingen en intrestlast in",{"$f":"K16","v":2024},"wordt bepaald o.b.v. laatste jaarrekening",null,{"$f":"SUM(G64:G66)","v":120000},null,"wordt berekend"]
[null,"waarvan:"]
[null,"huurkost",null,null,null,null,120000,"vul hier in, bewijs via extract analytische boekhouding"]
[null,"afschrijvingen",null,null,null,null,0,"vul hier in, bewijs via extract analytische boekhouding"]
[null,"intrest",null,null,null,null,0,"vul hier in, bewijs via extract analytische boekhouding"]
[]
[null,"huurkost, afschrijvingen en intrest 4 jaar terug in",{"$f":"C62-4","v":2020},"wordt bepaald o.b.v. jaarrekening N-4",null,{"$f":"SUM(G70:G72)","v":110000}]
[null,"waarvan:"]
[null,"huurkost",null,null,null,null,110000,"vul hier in, bewijs via extract analytische boekhouding"]
[null,"afschrijvingen",null,null,null,null,0,"vul hier in, bewijs via extract analytische boekhouding"]
[null,"intrest",null,null,null,null,0,"vul hier in, bewijs via extract analytische boekhouding"]
[]
[null,"toename huurkost, afschrijvingen en intrest",null,null,null,{"$f":"IFERROR(F62/F68-1,100%)","v":9.0909090909090828E-2},null,"wordt berekend"]
[null,"toename afgevlakte gezondheidsindex",null,null,null,{"$f":"F78/F77-1","v":0.21073152617898239},null,"wordt berekend"]
[]
[null,"beginindex",{"$f":"C68","v":2020},"wordt bepaald",null,{"$f":"_xlfn.XLOOKUP(C77,'Parameters+keuzes'!A38:A44,'Parameters+keuzes'!B38:B44,0,0)","v":107.72},null,"wordt opgezocht bij parameters"]
[null,"eindindex",{"$f":"C77+4","v":2024},"wordt bepaald",null,{"$f":"_xlfn.XLOOKUP(C78,'Parameters+keuzes'!A38:A45,'Parameters+keuzes'!B38:B45,0,0)","v":130.41999999999999},null,"wordt opgezocht bij parameters"]
[]
[null,"Evolutie huurkost, afschrijvingen en intrestlast < afgevlakte gezondheidsindex",null,null,null,{"$f":"IF(F74<=F75,\"JA\",\"NEEN\")","v":"JA"},null,"wordt bepaald"]
[null,{"$f":"\"Verantwoording materiële investering in periode \" &C68&\"-\"&C62&\"?\"","v":"Verantwoording materiële investering in periode 2020-2024?"},null,null,null,"JA",null,{"$f":"IF(F80=\"NEEN\",\"Voeg bewijs materiële investering toe.\",\"\")","v":""}]
[]
[null,"2.2  berekening dagprijsverhoging"]
[null,"recente  marge",null,null,"A",{"$f":"J30","v":0},null,"zie laatste boekjaar"]
[null,"extra marge tot 2,5%",null,null,"B=max(0%;2,5%-A)",{"$f":"IF(F52=\"JA\",MAX(ROUND(2.5%-F84,4),0),0%)","v":0},null,"wordt berekend"]
[]
[null,"extra marge x werkingsopbrengsten (70/74)",null,null,"C=B x werkingsopbrengsten",{"$f":"F85*J17","v":0},null,"wordt berekend"]
[]
[null,"aantal dagen (berekend)",null,null,{"$f":"\"F=\" &E130& \"xDxE\"","v":"F=365xDxE"},{"$f":"PRODUCT(F90:G91,E130)","v":0},null,"wordt berekend"]
[null,"bezettingsgraad",null,null,"D",{"$f":"'Generieke input'!AA47","v":0},null,"zie \"Generieke input\""]
[null,"aantal woongelegenheden",null,null,"E",{"$f":"'Generieke input'!H36","v":0},null,"zie \"Generieke input\""]
[]
[null,"maximale prijsverhoging ifv marge",null,null,"G=C/F",{"$f":"ROUND(F87/F89,2)","v":{"$error":"#DIV/0!"}},null,"wordt berekend"]
[]
[null,"Aftopping bij bovengemiddelde woonzorgcentra"]
[null,"verstreksituatie",null,null,null,{"$f":"IF(J27>=0,\"Marge >=0%\",\"Marge <0%\")","v":"Marge >=0%"},null,"wordt bepaald op basis van resultaat laatste jaar",null,null,null,null,null,"te beveiligen"]
[null,"dagprijsstijging t.o.v. gewogen gemiddelde dagprijs private sector is max.",null,null,"H",{"$f":"IF(AND(F52=\"JA\",J37>=0),\"5%\",\"10%\")","v":"10%"},null,"in functie van resultaat vóór uitzonderlijk resultaat, in  laatste jaar. Indien verlies =10%, beperkt resultaat = 5%",null,null,null,null,null,"te beveiligen"]
[null,"gewogen gemiddelde dagprijs private sector o.b.v. laatste beschikbaar jaar",null,null,"I",{"$f":"F56","v":71.599999999999994},null,"wordt berekend",null,null,null,null,null,"te beveiligen"]
[null,"gewogen gemiddelde dagprijs private sector + 25%",null,null,"J= 1,25 x I",{"$f":"ROUND(1.25*F98,2)","v":89.5},null,"wordt berekend",null,null,null,null,null,"te beveiligen"]
[null,"maximale prijsverhoging i.f.v. gewogen gemiddelde dagprijs private sector",null,null,"K=H x J",{"$f":"ROUND(F97*F99,2)","v":8.9499999999999993},null,"wordt berekend",null,null,null,null,null,"te beveiligen"]
[]
[null,"afgetoetste dagprijsverhoging",null,null,{"$f":"IF(F58=\"NIET VEREIST\", \"G\",\"MIN (G,K)\")","v":"G"},{"$f":"IF(F58<>\"VEREIST EN NIET OK\",IF(OR(F54=\"NEEN\",F54=\"NVT\"),F93,MIN(F93,F100)),0)","v":{"$error":"#DIV/0!"}},null,"wordt bepaald"]
[]
[null,"Maximale prijsverhoging o.b.v. marge-evolutie:",null,null,null,null,{"$f":"F102","v":{"$error":"#DIV/0!"}}]
[]
[]
[]
[null,"Over te maken gegevens:",null,null,null,{"$f":"F40 & \". \" & F41","v":"Resultatenrekening (extracomptabel) van de betrokken zorgvorm (woonzorgcentrum en kortverblijf, DVC, GAW). Indien ontbrekend, kan vertrokken worden van het hogere beschikbare niveau, waarop dan vervolgens een verdeelsleutel wordt toegepast."}]
[null,null,null,null,null,"Het verslag van de efficiëntiemaatregelen: dit is een overzicht van de maatregelen die de voorziening in de voorbij 3 jaren heeft genomen en in de volgende jaren gaat nemen om het verlies weg te werken of te beperken."]
[]
["3.","Nieuwe investeringen (geen drastische investeringen)"]
[]
[null,"Deze rubriek dient u enkel te vervolledigen indien u een aanvraag voor investeringen wenst in te dienen. In dat geval dient u wel nog 2 jaar te wachten vooraleer u voor marge-evolutie een aanvraag kan indienen. Deze rubriek wordt ook enkel gehanteerd indien de investeringen voor minder dan de helft op minimaal twintig jaar worden afgeschreven. Indien de investeringen voor minimaal de helft op minimaal twintig jaar worden afgeschreven, kan het formulier 1 worden gehanteerd. Formulier 1 kan voor dezelfde bewoners echter niet gecombineerd worden met formulier 2 (voor marge-evolutie). Er zal dan ook twee jaar moeten verstreken zijn tussen beide formulieren.\nU kan hier vrij de afschrijvingstermijn bepalen in zoverre dat die in lijn ligt van de waarderingsregels. Indien de investering ter vervanging van een voorgaande investering geldt, dan dient de reeds eerder in de dagprijs opgenomen kost in mindering te worden gebracht."]
[]
[]
[]
[]
[]
[null,null,null,null,"Investeringscategorie I: …........",null,"Investeringscategorie II: ……….",null,null,"Investeringscategorie III: …....",null,null,"Investeringscategorie IV: ………",null,null,"U kan dit wijzigen in functie van de specifieke investeringstypes volgens afschrijvingstermijn"]
[null,"Eenmalige investeringskost",null,null,0,null,0,null,null,0,null,null,0,null,null,"(verplicht in te vullen)"]
[null,"totaal kapitaalsubsidie",null,null,null,null,null,null,null,null,null,null,null,null,null,"(verplicht in te vullen)"]
[null,"totale BTW-recuperatie",null,null,null,null,null,null,null,null,null,null,null,null,null,"(verplicht in te vullen)"]
[null,"Totale netto investeringskost",null,null,{"$f":"E120-E121-E122","v":0},null,{"$f":"G120-G121-G122","v":0},null,null,{"$f":"J120-J121-J122","v":0},null,null,{"$f":"M120-M121-M122","v":0},null,null,"wordt berekend"]
[null,"financieringskost",null,null,{"$f":"IFERROR(-PMT('Generieke input'!D56,E128,E123)*E128-E123,0)","v":0},null,{"$f":"IFERROR(-PMT('Generieke input'!D56,G128,G123)*G128-G123,0)","v":0},null,null,{"$f":"IFERROR(-PMT('Generieke input'!D56,J128,J123)*J128-J123,0)","v":0},null,null,{"$f":"IFERROR(-PMT('Generieke input'!D56,M128,M123)*M128-M123,0)","v":0},null,null,"wordt berekend o.b.v. OLO in Generieke Input"]
[null,"Investeringskost inclusief financieringskost",null,null,{"$f":"E123+E124","v":0},null,{"$f":"G123+G124","v":0},null,null,{"$f":"J123+J124","v":0},null,null,{"$f":"M123+M124","v":0},null,null,"wordt berekend"]
[null,"intrestsubsidie",null,null,0,null,null,null,null,null,null,null,null,null,null,"in te vullen, indien voorkomend"]
[null,"Netto investerings- en financieringskost",null,null,{"$f":"E125-E126","v":0},null,{"$f":"G125-G126","v":0},null,null,{"$f":"J125-J126","v":0},null,null,{"$f":"M125-M126","v":0},null,null,"wordt berekend"]
[null,"Afschrijvingsduur eenmalige investeringkost (in jaren):",null,null,10,null,null,null,null,15,null,null,null,null,null,"in te vullen, gebaseerd op de waarderingsregels"]
[null,"Aantal erkende capaciteit",null,null,{"$f":"'Generieke input'!H36","v":0},null,{"$f":"E129","v":0},null,null,{"$f":"G129","v":0},null,null,{"$f":"J129","v":0},null,null,"wordt overgenomen uit Generieke input"]
[null,"Aantal dagen",null,null,{"$f":"IF('Generieke input'!$V$36=4,250,365)","v":365},null,{"$f":"E130","v":365},null,null,{"$f":"G130","v":365},null,null,{"$f":"J130","v":365},null,null,"zie Gregoriaanse kalender"]
[null,"bezettingsgraad",null,null,{"$f":"'Generieke input'!AA47","v":0},null,{"$f":"E131","v":0},null,null,{"$f":"G131","v":0},null,null,{"$f":"J131","v":0},null,null,"wordt overgenomen uit Generieke input"]
[null,"maximale bruto dagprijsverhoging",null,null,{"$f":"IFERROR(ROUND(E127/E128/E130/E129/E131,2),0)","v":0},null,{"$f":"IFERROR(ROUND(G127/G128/G130/G129/G131,2),0)","v":0},null,null,{"$f":"IFERROR(ROUND(J127/J128/J130/J129/J131,2),0)","v":0},null,null,{"$f":"IFERROR(ROUND(M127/M128/M130/M129/M131,2),0)","v":0},null,null,"wordt berekend"]
[null,"Reeds opgenomen bedrag in dagprijs in geval van vervanging",null,null,null,null,null,null,null,null,null,null,null,null,null,"in te vullen"]
[null,"maximale netto dagprijsverhoging",null,null,{"$f":"E132-E133","v":0},null,{"$f":"G132-G133","v":0},null,null,{"$f":"J132-J133","v":0},null,null,{"$f":"M132-M133","v":0},null,null,"wordt berekend"]
[]
[null,"Voorstel van prijsverhoging:",null,null,null,null,{"$f":"E134+G134+J134+M134","v":0},null,null,"wordt berekend"]
[null,null,null,null,null,null,"Belangrijk: de verantwoordingsstukken mogen niet ouder dan twee jaar zijn."]
[]
[]
[null,"Toe te voegen bijlagen:",null,null,null,"Voeg tabblad met investeringsoverzicht met kostencomponenten en verantwoordingsstukken toe, of maak gebruik van het standaard voorziene tabblad. Hierna  worden de verantwoordingsstukken steekproefgewijs opgevraagd."]
[]
[]
["4.","Verschuiving van supplement naar dagprijs"]
[]
[null,"Voorstel van prijsverhoging:",null,null,null,null,0]
[null,"Motivatie:"]
[]
[]
[null,"Over te maken gegevens:",null,null,null,"Bewijs van reële kosten die aanleiding geven tot de gevraagde dagprijsverhoging"]
[]
[]
["5.","Evaluatie dagprijzen"]
[]
[null,"Vul onder 5.1 en 5.2 per kamertype de capaciteiten en de gevraagde dagprijzen in. \n\nIn rubriek 5.3 wordt de plafondprijs voor de nieuwe en bestaande bewoners bepaald.\nVoor de nieuwe bewoners wordt de gemiddelde dagprijs enkel afgetopt op basis van de verantwoorde kost.\nVoor de bestaande bewoners is er een aftopping op 10% van de huidige gemiddelde dagprijs (na eventuele aftrek van het infrastructuurforfait).\n\nIn rubriek 5.4 worden de opstappen bepaald.\n In geval van een marge-evolutie waarbij het laatste jaar een positieve marge laat zien, worden de opstappen bovendien beperkt tot 5% het eerste jaar (met opstappen van 6 euro per 6 maand) en vanaf de 13e maand maximaal 10%.\nIndien het laatste jaar echter een negatieve marge laat zien, verlopen de opstappen volgens maximaal 6 euro per 6 maand met een maximum van 10%. \nVoor de andere aanleidingen dan marge-evolutie gelden altijd de opstappen van 6 euro per 6 maand."]
[]
[]
[]
[]
[]
[null,"5.1 Aangevraagde dagprijzen per kamertype voor nieuwe bewoners"]
[]
[null,"Vermeld hier  de dagprijzen indien de capaciteit volledig bewoond zou zijn door nieuwe bewoners. Vermeld per kamertype de capaciteit en de gevraagde dagprijs. Indien er eerder een infrastructuurforfait werd toegekend, is de gevraagde dagprijs na aftrek van dit infrastructuurforfait. Het gemiddelde van die dagprijs mag de verantwoorde kost niet overstijgen. U vindt die terug in rubriek 5.3, onder goedgekeurde maximale gemiddelde dagprijs."]
[]
[]
[]
[null,"in te vullen",null,null,"in te vullen","in te vullen"]
[null,"Kamertype/woon/verblijfseenheid in nieuwe infrastructuur",null,null,"Capaciteit waarvoor prijsaanvraag","Gevraagde dagprijs  (na evt. infrastructuurforfait)"]
[]
[null,null,null,null,null,0,"Eventuele foutmeldingen:",null,null,null,null,"kolommen B, E, F zijn in te vullen"]
[null,null,null,null,null,0,{"$f":"IF(E188<>'Generieke input'!H36,\"De totale capaciteit voor de vermelde dagprijzen stemt niet overeen met de capaciteit in het tabblad 'Generieke input', cel H36\",\"\")","v":""}]
[null,null,null,null,null,0,{"$f":"IFERROR(IF(F188>F236, \"De gemiddelde prijs  ligt hoger dan de maximale gemiddelde prijs van \" & F236&\" euro zoals berekend onder 5.3. Pas de prijs van 1 of meerdere kamertypes aan.\",\"\"),\"\")","v":""}]
[null,null,null,null,null,0]
[null,null,null,null,null,0]
[null,null,null,null,null,0]
[null,null,null,null,null,0]
[null,null,null,null,null,0]
[null,null,null,null,null,0]
[null,null,null,null,null,0]
[null,null,null,null,null,0]
[null,null,null,null,null,0]
[null,null,null,null,null,0]
[null,null,null,null,null,0]
[null,null,null,null,null,0]
[null,null,null,null,null,0]
[null,null,null,null,null,0]
[null,null,null,null,null,0]
[null,null,null,null,null,0]
[null,"Gewogen gemiddelde",null,null,{"$f":"SUM(E169:E187)","v":0},{"$f":"SUM(E169:E187*F169:F187)/IF(E188>0,E188,1)","v":0},{"$f":"\" Ter info: dit gewogen gemiddelde wordt vergeleken met de goedgekeurde maximale gemiddelde dagprijs van \" &F236& \" euro.\"","v":{"$error":"#DIV/0!"}}]
[]
[null,"5.2 Aangevraagde dagprijzen bestaande bewoners (vertrekbasis = dagprijs per kamertype in de oude voorziening)"]
[]
[null,"Vermeld hier per kamertype (in kolom B) voor de bestaande bewoners: de capaciteit (kolom E), de huidige dagprijs in de oude infrastructuur (kolom F) en de gevraagde prijs in de nieuwe infrastructuur (= kolom G).\nHet programma berekent dan de plafondprijs (kolom H), de maximale prijs in jaar 1 (kolom I) en de maximale prijs vanaf jaar 2 (kolom J).\nDe plafondprijs wordt bepaald onder 5.3 in de kolom bestaande bewoners. Deze is het minimum van de effectieve doorrekenbare kost en 110% van de huidige gemiddelde dagprijs (na eventuele aftrek van het infrastructuurforfait).  De opstappen worden bepaald onder rubriek 5.4.\nIn geval van een marge-evolutie onderscheiden we volgende groeiritmes voor de opstappen:\n Indien in het laatste boekjaar een positieve marge of beperkt resultaat wordt gerealiseerd, zullen de opstappen beperkt blijven tot maximaal 5% ten opzichte van de dagprijs van het kamertype in het eerste jaar (met stappen van 6 euro per 6 maand).\n Indien in het laatste boekjaar een negatieve marge wordt gerealiseerd, mogen de opstappen 6 euro per 6 maand bedragen.\nVoor de niet-drastische investeringen gelden steeds de opstappen van 6 euro per 6 maand."]
[]
[]
[]
[]
[null,null,null,null,"in te vullen","in te vullen","in te vullen","wordt berekend","wordt berekend","wordt berekend"]
[null,"Kamertype/woon/verblijfseenheid in oude infrastructuur voor bestaande bewoners",null,null,"Capaciteit waarvoor prijsaanvraag","Huidige nettodagprijs\n (na evt. infrastructuurforfait)","Aangevraagde nettodagprijs (na evt.  infrastructuurforfait)","Goedgekeurde nettodagprijs (na evt.infrastructuurforfait)","max.nettodagprijs jaar1 (na evt. infrastructuurforfait)","max. nettodagprijs (na evt. infrastructuurforfait)"]
[null,null,null,null,null,null,null,null,null,null,null,null,null,null,null,null,null,null,"kolommen E-G zijn in te vullen, H-I zijn te beveiligen"]
[null,null,null,null,null,0,0,{"$f":"MIN(G200,IFERROR(ROUND(F200*(1+$E$238),2),0))","v":0},{"$f":"MIN(G200,IFERROR(ROUND($F200*(1+E$245),2),0))","v":0},{"$f":"H200","v":0},"Eventuele foutmeldingen:"]
[null,null,null,null,null,0,0,{"$f":"MIN(G201,IFERROR(ROUND(F201*(1+$E$238),2),0))","v":0},{"$f":"MIN(G201,IFERROR(ROUND($F201*(1+E$245),2),0))","v":0},{"$f":"H201","v":0},{"$f":"IF(E219>F91,\"De capaciteit van de bestaande bewoners kan niet hoger zijn dan de capaciteit voor de prijsaanvraag\",\"\")","v":""}]
[null,null,null,null,null,0,0,0,0,0]
[null,null,null,null,null,0,0,0,0,0]
[null,null,null,null,null,0,0,0,0,0]
[null,null,null,null,null,0,0,0,0,0]
[null,null,null,null,null,0,0,0,0,0]
[null,null,null,null,null,0,0,0,0,0]
[null,null,null,null,null,0,0,0,0,0]
[null,null,null,null,null,0,0,0,0,0]
[null,null,null,null,null,0,0,0,0,0]
[null,null,null,null,null,0,0,0,0,0]
[null,null,null,null,null,0,0,0,0,0]
[null,null,null,null,null,0,0,0,0,0]
[null,null,null,null,null,0,0,0,0,0]
[null,null,null,null,null,0,0,0,0,0]
[null,null,null,null,null,0,0,0,0,0]
[null,null,null,null,null,0,0,0,0,0]
[null,null,null,null,null,0,0,0,0,0]
[null,"Gewogen gemiddelde",null,null,{"$f":"SUM(E200:E218)","v":0},{"$f":"IFERROR(SUMPRODUCT(F200:F218,E200:E218)/MAX(SUM(E219),),0)","v":0},{"$f":"IFERROR(SUMPRODUCT(G200:G218,E200:E218)/MAX(SUM(E219),),0)","v":0},{"$f":"SUMPRODUCT($E$200:$E$218,H200:H218)/MAX(SUM($E$200:$E$218),1)","v":0},{"$f":"SUMPRODUCT($E$200:$E$218,I200:I218)/MAX(SUM($E$200:$E$218),1)","v":0},0,"naast de aangevraagde prijs, vindt u hier de plafondprijs (kolom H), de maximumprijs in jaar 1 (kolom I) en de maximumprijs waarnaar u in de periode na jaar 1 evolueert"]
[null,null,null,null,null,null,null,{"$f":"IFERROR(H219/F219-1,0)","v":0},{"$f":"I219-$F$219","v":0},{"$f":"J219-I219","v":0},"hier worden de opstappen berekend"]
[]
[null,"5.3  Goedgekeurde maximale gemiddelde prijs",null,null,"maximale gemiddelde prijs",null,"wordt volledig berekend"]
[null,null,null,null,"bestaande bewoners","nieuwe bewoners"]
[null,"Huidige gemiddelde dagprijs (na eventuele aftrek van het infrastructuurforfait)",null,{"$f":"F219","v":0},{"$f":"D224","v":0},{"$f":"D224","v":0}]
[]
[null,"toegelaten prijsstijging",null,0.1]
[null,{"$f":"\"plafonnering  \"& D226*100& \"% gemiddelde dagprijs\"","v":"plafonnering  10% gemiddelde dagprijs"},null,{"$f":"ROUND(D226*D224,2)","v":0}]
[]
[null,"Verantwoorde kost op basis van marge",null,{"$f":"G104","v":{"$error":"#DIV/0!"}},null,{"$f":"D229","v":{"$error":"#DIV/0!"}}]
[null,{"$f":"\"Voor bestaande bewoners geplafonneerd tot \" & D226*100 &\"% van de gemiddelde dagprijs\"","v":"Voor bestaande bewoners geplafonneerd tot 10% van de gemiddelde dagprijs"},null,{"$f":"MIN(D226*D224,D229)","v":{"$error":"#DIV/0!"}},{"$f":"D230","v":{"$error":"#DIV/0!"}}]
[]
[null,"Verantwoorde kost op basis van andere kosten:"]
[null,"Effectieve kosten/dag",null,{"$f":"G136+G145","v":0},null,{"$f":"D233","v":0}]
[null,"Voor bestaande bewoners geplafonneerd tot 10% van de gemiddelde dagprijs",null,{"$f":"MIN(D227-D230,D233)","v":{"$error":"#DIV/0!"}},{"$f":"D234","v":{"$error":"#DIV/0!"}}]
[]
[null,"goedgekeurde maximale gemiddelde dagprijs (na eventuele aftrek van het infrastructuurforfait)",null,null,{"$f":"SUM(E224:E235)","v":{"$error":"#DIV/0!"}},{"$f":"SUM(F224:F235)","v":{"$error":"#DIV/0!"}}]
[]
[null,"Max. % toename per kamertype (marge + andere kosten) t.o.v. gemiddelde prijs bestaande bewoners",null,null,{"$f":"IFERROR(ROUND(E236/E224-1,4),0)","v":0}]
[]
[null,"5.4 Opstappen bestaande bewoners"]
[]
[null,null,null,null,"jaar1","jaar2 e.v.","wordt volledig berekend",null,"\nHuidige",null,"\nAangevraagd",null,"\nVerhoging"]
[null,{"$f":"IF(F52=\"JA\",\"In geval van marge-evolutie, laatste jaar =\",\"\")","v":""},null,null,{"$f":"IF(B243<>\"\",F96,\"\")","v":""},null,{"$f":"IF(E243<>\"\",IF(E243=\"Marge >=0%\",\"Opstap eerste jaar beperkt tot 5%, opstappen van 6 euro per 6 maand\",\"Opstap tot max. 10%, beperkt tot 6 euro per 6 maand\"),\"\")","v":""}]
[null,"opstappen (steeds t.o.v. huidige dagprijs na eventuele aftrek van het infrastructuurforfait)",null,null,{"$f":"MIN(F97*E224,12,D230+D234)","v":{"$error":"#DIV/0!"}},{"$f":"(D230+D234)-E244","v":{"$error":"#DIV/0!"}}]
[null,"procentueel",null,null,{"$f":"IFERROR(ROUND(E244/E224,4),0)","v":0},{"$f":"IFERROR(F244/E224,0)","v":0}]
[]
["6. ","Andere toeslagen"]
[]
[null,null,null,null,null,null,null,null,"\nHuidige",null,"\nAangevraagd",null,"\nVerhoging"]
[null,"A. Toeslagen gevraagd bovenop de dagprijzen (*)"]
[]
[null,null,null,null,null,null,null,null,0,null,0,null,{"$f":"(K252-I252)/I252","v":{"$error":"#DIV/0!"}}]
[null,null,null,null,null,null,null,null,null,null,null,null,{"$error":"#DIV/0!"}]
[null,null,null,null,null,null,null,null,null,null,null,null,{"$error":"#DIV/0!"}]
[null,null,null,null,null,null,null,null,null,null,null,null,{"$error":"#DIV/0!"}]
[null,null,null,null,null,null,null,null,null,null,null,null,{"$error":"#DIV/0!"}]
[null,null,null,null,null,null,null,null,null,null,null,null,{"$error":"#DIV/0!"}]
[null,null,null,null,null,null,null,null,null,null,null,null,{"$error":"#DIV/0!"}]
[null,null,null,null,null,null,null,null,null,null,null,null,{"$error":"#DIV/0!"}]
[null,null,null,null,null,null,null,null,null,null,null,null,{"$error":"#DIV/0!"}]
[null,null,null,null,null,null,null,null,null,null,null,null,{"$error":"#DIV/0!"}]
[null,null,null,null,null,null,null,null,null,null,null,null,{"$error":"#DIV/0!"}]
[null,null,null,null,null,null,null,null,null,null,null,null,{"$error":"#DIV/0!"}]
[null,null,null,null,null,null,null,null,null,null,null,null,{"$error":"#DIV/0!"}]
[null,null,null,null,null,null,null,null,null,null,null,null,{"$error":"#DIV/0!"}]
[]
[null,"belangrijke opmerkingen:"]
[null,"- (*) de posten die hier niet worden vermeld, worden onherroepelijk beschouwd als zijnde inbegrepen in de dagprijzen;"]
[null,"- de verhoging van bestaande toeslagen en de facturatie als toeslag van producten of diensten die voorheen inbegrepen"]
[null,"waren in de dagprijzen, moeten voorafgaandelijk worden aangevraagd."]
[]
[]
[null,"Motivatie voor de verhoging van het (de) supplement(en):",null,null,null,null,"Verplicht in te vullen!",null,"De hieronder ingevulde tekst moet volledig zichtbaar zijn!"]
[]
[]
[]
[]
[]
[]
[null,"B. Beschrijving toeslagen  die bovenop de dagprijzen "]
[null,"aangerekend worden als voorgeschoten kosten"]
[null,"(= zonder marge van de voorziening)"]
[]
[]
[]
[]
[]
[]
[]
[]
[]
[]
[]
[]
[]
[]
[]
[null,"C. Opsomming van alle kortingen die gegeven worden (aangeven onder welke voorwaarden deze gegeven worden, welk bedrag of"]
[null,"      percentage en voor welke periode)"]
[null,"Korting voor :",null,null,null,null,null,null,"Huidige",null,"Aangevraagd "]
[null,null,null,null,null,null,null,null,0,null,0]

{"sheet":"Bijlage investeringsoverzicht","index":7,"n_rows":250,"n_cols":7,"rows_kept":250,"cut":false,"hidden":false,"merged":[[5,0,5,3],[36,0,36,3],[0,0,2,9],[4,0,4,4],[202,0,202,4],[229,0,229,4],[235,2,235,3],[235,4,237,4],[25,0,25,2],[29,2,29,3],[30,2,30,6],[33,2,33,6],[28,2,28,9],[198,0,198,2],[208,3,208,4],[208,5,210,5],[35,0,35,6]]}
["Dit is een hulpblad voor de detaillering van de investeringskosten in hetzij formulier 1 of 2. \nOnder stap 1 voert u de investeringssoorten en hun  afschrijvingsduur in.\nOnder stap 2 vermeldt u de detaillijnen voor de kosten met per detaillijn de omschrijving, het referentienummer van het verantwoordingsstuk, het bedrag en het toewijzingspercentage\nOnder stap 3 kan u de investeringskosten toewijzen volgens de combinatie van investeringssoort en afschrijvingsduur (3a) of enkel volgens afschrijvingsduur (3b)"]
[]
[]
[]
["Stap 1: voer hier de investeringssoorten en hun afschrijvingsduur in"]
["Belangrijk: de geevens hieronder zijn enkel bedoeld als voorbeeld, gelieve de reële gegevens in te vullen. Gelieve de reeds ingevulde gegevens te overschrijven."]
["in te vullen","in te vullen"]
["Kies uit de investeringssoort:","afschrijvingsduur"]
["Gebouw",25]
["Meubilair (los)",10]
["domotica",3]
["gordijnen",5]
["hardware",10]
["software",5]
["Investering5",20]
["Investering6"]
["Investering7"]
["Investering8"]
["Investering9"]
["Investering10"]
["Investering11"]
["Investering12"]
["Investering13"]
["Investering14"]
[]
["Stap 2:  voer de kostencomponenten in"]
[]
["Per detaillijn vermeldt u:"]
[null,"kolom A","investeringssoort, door het selecteren van de uitvallijst. Die uitvallijst wordt bepaald op basis van de rubrieken die in stap 1 werden opgenomen"]
[null,"kolom B","de omschrijving van de werken of aankoop"]
[null,"kolom C","het referentienummer van het verantwoordingsstuk, op basis waarvan dit door de administratie kan worden opgevraagd"]
[null,"kolom D","kostprijs exclusief BTW"]
[null,"kolom E","kostprijs inclusief BTW"]
[null,"kolom F","toewijzingspercentage: het deel van de investeringskost dat voor de prijsaanvraag kan worden meegerekend"]
[]
["Belangrijk: er zijn tot rij197 lijnen voor invoer. U kan deze sheet nog bewerken en verder aanvullen met bijkomende invoerlijnen"]
["De gegevens hieronder zijn enkel bedoeld als voorbeeld. Gelieve die te overtypen met uw gegevens met betrekking tot de investeringskost."]
["geel= te selecteren","oranje wordt berekend"]
["groen= in te vullen"]
[]
["in te vullen","in te vullen","in te vullen","in te vullen","in te vullen","in te vullen","wordt berekend"]
["Investeringssoort in formulier","Omschrijving","Verantwoordingsstuk","Referentie","Kostprijs (incl. niet-aftrekbare BTW)","toewijzings%","toe te rekenen"]
["Gebouw","studie architect","contract","2023-contract-1",null,1,{"$f":"F43*E43","v":0}]
["Gebouw","omgevingsaanleg","gunningsbeslissing","2024-GB1",null,1,{"$f":"F44*E44","v":0}]
["Gebouw","ruwbouw","gunningsbeslissing","2024-GB2",null,1,0]
["Gebouw","technieken en afwerking","gunningsbeslissing","2024-GB3",null,1,0]
["Gebouw","vast meubilair","gunningsbeslissing","2024-GB4",null,1,0]
["Gebouw","herzieningen","vorderingstaat","VS-18",null,1,0]
["Meubilair (los)","nachttafels + tafels + bedden","factuur","AF18",null,1,0]
["Meubilair (los)","kasten","offerte","bestelbon_Furniture",null,1,0]
["domotica","oproepsysteem","offerte","bestelbon_CallMe",null,1,0]
["gordijnen","gordijnen","factuur","AF27",null,1,0]
["hardware","computers","factuur","AF36",null,1,0]
["software","licenties","factuur","AF39",null,1,0]
["Investering5","keuken","factuur","AF99",null,1,0]
["Kies uit de investeringscomponent:",null,null,null,null,1,0]
["Kies uit de investeringscomponent:",null,null,null,null,1,0]
["Kies uit de investeringscomponent:",null,null,null,null,1,0]
["Kies uit de investeringscomponent:",null,null,null,null,1,0]
["Kies uit de investeringscomponent:",null,null,null,null,1,0]
["Kies uit de investeringscomponent:",null,null,null,null,1,0]
["Kies uit de investeringscomponent:",null,null,null,null,1,0]
["Kies uit de investeringscomponent:",null,null,null,null,1,0]
["Kies uit de investeringscomponent:",null,null,null,null,1,0]
["Kies uit de investeringscomponent:",null,null,null,null,1,0]
["Kies uit de investeringscomponent:",null,null,null,null,1,0]
["Kies uit de investeringscomponent:",null,null,null,null,1,0]
["Kies uit de investeringscomponent:",null,null,null,null,1,0]
["Kies uit de investeringscomponent:",null,null,null,null,1,0]
["Kies uit de investeringscomponent:",null,null,null,null,1,0]
["Kies uit de investeringscomponent:",null,null,null,null,1,0]
["Kies uit de investeringscomponent:",null,null,null,null,1,0]
["Kies uit de investeringscomponent:",null,null,null,null,1,0]
["Kies uit de investeringscomponent:",null,null,null,null,1,0]
["Kies uit de investeringscomponent:",null,null,null,null,1,0]
["Kies uit de investeringscomponent:",null,null,null,null,1,0]
["Kies uit de investeringscomponent:",null,null,null,null,1,0]
["Kies uit de investeringscomponent:",null,null,null,null,1,0]
["Kies uit de investeringscomponent:",null,null,null,null,1,0]
["Kies uit de investeringscomponent:",null,null,null,null,1,0]
["Kies uit de investeringscomponent:",null,null,null,null,1,0]
["Kies uit de investeringscomponent:",null,null,null,null,1,0]
["Kies uit de investeringscomponent:",null,null,null,null,1,0]
["Kies uit de investeringscomponent:",null,null,null,null,1,0]
["Kies uit de investeringscomponent:",null,null,null,null,1,0]
["Kies uit de investeringscomponent:",null,null,null,null,1,0]
["Kies uit de investeringscomponent:",null,null,null,null,1,0]
["Kies uit de investeringscomponent:",null,null,null,null,1,0]
["Kies uit de investeringscomponent:",null,null,null,null,1,0]
["Kies uit de investeringscomponent:",null,null,null,null,1,0]
["Kies uit de investeringscomponent:",null,null,null,null,1,0]
["Kies uit de investeringscomponent:",null,null,null,null,1,0]
["Kies uit de investeringscomponent:",null,null,null,null,1,0]
["Kies uit de investeringscomponent:",null,null,null,null,1,0]
["Kies uit de investeringscomponent:",null,null,null,null,1,0]
["Kies uit de investeringscomponent:",null,null,null,null,1,0]
["Kies uit de investeringscomponent:",null,null,null,null,1,0]
["Kies uit de investeringscomponent:",null,null,null,null,1,0]
["Kies uit de investeringscomponent:",null,null,null,null,1,0]
["Kies uit de investeringscomponent:",null,null,null,null,1,0]
["Kies uit de investeringscomponent:",null,null,null,null,1,0]
["Kies uit de investeringscomponent:",null,null,null,null,1,0]
["Kies uit de investeringscomponent:",null,null,null,null,1,0]
["Kies uit de investeringscomponent:",null,null,null,null,1,0]
["Kies uit de investeringscomponent:",null,null,null,null,1,0]
["Kies uit de investeringscomponent:",null,null,null,null,1,0]
["Kies uit de investeringscomponent:",null,null,null,null,1,0]
["Kies uit de investeringscomponent:",null,null,null,null,1,0]
["Kies uit de investeringscomponent:",null,null,null,null,1,0]
["Kies uit de investeringscomponent:",null,null,null,null,1,0]
["Kies uit de investeringscomponent:",null,null,null,null,1,0]
["Kies uit de investeringscomponent:",null,null,null,null,1,0]
["Kies uit de investeringscomponent:",null,null,null,null,1,0]
["Kies uit de investeringscomponent:",null,null,null,null,1,0]
["Kies uit de investeringscomponent:",null,null,null,null,1,{"$f":"F115*E115","v":0}]
["Kies uit de investeringscomponent:",null,null,null,null,1,0]
["Kies uit de investeringscomponent:",null,null,null,null,1,0]
["Kies uit de investeringscomponent:",null,null,null,null,1,0]
["Kies uit de investeringscomponent:",null,null,null,null,1,0]
["Kies uit de investeringscomponent:",null,null,null,null,1,0]
["Kies uit de investeringscomponent:",null,null,null,null,1,0]
["Kies uit de investeringscomponent:",null,null,null,null,1,0]
["Kies uit de investeringscomponent:",null,null,null,null,1,0]
["Kies uit de investeringscomponent:",null,null,null,null,1,0]
["Kies uit de investeringscomponent:",null,null,null,null,1,0]
["Kies uit de investeringscomponent:",null,null,null,null,1,0]
["Kies uit de investeringscomponent:",null,null,null,null,1,0]
["Kies uit de investeringscomponent:",null,null,null,null,1,0]
["Kies uit de investeringscomponent:",null,null,null,null,1,0]
["Kies uit de investeringscomponent:",null,null,null,null,1,0]
["Kies uit de investeringscomponent:",null,null,null,null,1,0]
["Kies uit de investeringscomponent:",null,null,null,null,1,0]
["Kies uit de investeringscomponent:",null,null,null,null,1,0]
["Kies uit de investeringscomponent:",null,null,null,null,1,0]
["Kies uit de investeringscomponent:",null,null,null,null,1,0]
["Kies uit de investeringscomponent:",null,null,null,null,1,0]
["Kies uit de investeringscomponent:",null,null,null,null,1,0]
["Kies uit de investeringscomponent:",null,null,null,null,1,0]
["Kies uit de investeringscomponent:",null,null,null,null,1,0]
["Kies uit de investeringscomponent:",null,null,null,null,1,0]
["Kies uit de investeringscomponent:",null,null,null,null,1,0]
["Kies uit de investeringscomponent:",null,null,null,null,1,0]
["Kies uit de investeringscomponent:",null,null,null,null,1,0]
["Kies uit de investeringscomponent:",null,null,null,null,1,0]
["Kies uit de investeringscomponent:",null,null,null,null,1,0]
["Kies uit de investeringscomponent:",null,null,null,null,1,0]
["Kies uit de investeringscomponent:",null,null,null,null,1,0]
["Kies uit de investeringscomponent:",null,null,null,null,1,0]
["Kies uit de investeringscomponent:",null,null,null,null,1,0]
["Kies uit de investeringscomponent:",null,null,null,null,1,0]
["Kies uit de investeringscomponent:",null,null,null,null,1,{"$f":"F151*E151","v":0}]
["Kies uit de investeringscomponent:",null,null,null,null,1,0]
["Kies uit de investeringscomponent:",null,null,null,null,1,0]
["Kies uit de investeringscomponent:",null,null,null,null,1,0]
["Kies uit de investeringscomponent:",null,null,null,null,1,0]
["Kies uit de investeringscomponent:",null,null,null,null,1,0]
["Kies uit de investeringscomponent:",null,null,null,null,1,0]
["Kies uit de investeringscomponent:",null,null,null,null,1,0]
["Kies uit de investeringscomponent:",null,null,null,null,1,0]
["Kies uit de investeringscomponent:",null,null,null,null,1,0]
["Kies uit de investeringscomponent:",null,null,null,null,1,0]
["Kies uit de investeringscomponent:",null,null,null,null,1,0]
["Kies uit de investeringscomponent:",null,null,null,null,1,0]
["Kies uit de investeringscomponent:",null,null,null,null,1,0]
["Kies uit de investeringscomponent:",null,null,null,null,1,0]
["Kies uit de investeringscomponent:",null,null,null,null,1,0]
["Kies uit de investeringscomponent:",null,null,null,null,1,0]
["Kies uit de investeringscomponent:",null,null,null,null,1,0]
["Kies uit de investeringscomponent:",null,null,null,null,1,0]
["Kies uit de investeringscomponent:",null,null,null,null,1,0]
["Kies uit de investeringscomponent:",null,null,null,null,1,0]
["Kies uit de investeringscomponent:",null,null,null,null,1,0]
["Kies uit de investeringscomponent:",null,null,null,null,1,0]
["Kies uit de investeringscomponent:",null,null,null,null,1,0]
["Kies uit de investeringscomponent:",null,null,null,null,1,0]
["Kies uit de investeringscomponent:",null,null,null,null,1,0]
["Kies uit de investeringscomponent:",null,null,null,null,1,0]
["Kies uit de investeringscomponent:",null,null,null,null,1,0]
["Kies uit de investeringscomponent:",null,null,null,null,1,0]
["Kies uit de investeringscomponent:",null,null,null,null,1,0]
["Kies uit de investeringscomponent:",null,null,null,null,1,0]
["Kies uit de investeringscomponent:",null,null,null,null,1,0]
["Kies uit de investeringscomponent:",null,null,null,null,1,0]
["Kies uit de investeringscomponent:",null,null,null,null,1,0]
["Kies uit de investeringscomponent:",null,null,null,null,1,0]
["Kies uit de investeringscomponent:",null,null,null,null,1,0]
["Kies uit de investeringscomponent:",null,null,null,null,1,0]
["Kies uit de investeringscomponent:",null,null,null,null,1,0]
["Kies uit de investeringscomponent:",null,null,null,null,1,0]
["Kies uit de investeringscomponent:",null,null,null,null,1,0]
["Kies uit de investeringscomponent:",null,null,null,null,1,0]
["Kies uit de investeringscomponent:",null,null,null,null,1,0]
["Kies uit de investeringscomponent:",null,null,null,null,1,0]
["Kies uit de investeringscomponent:",null,null,null,null,1,0]
["Kies uit de investeringscomponent:",null,null,null,null,1,0]
["Kies uit de investeringscomponent:",null,null,null,null,1,0]
["Kies uit de investeringscomponent:",null,null,null,null,1,0]
[]
["Stap 3: toewijzing kosten"]
[]
["Er zijn 2 allocatietabellen waarvan de per categorie toegewezen bedragen naar keuze kunnen worden overgenomen in de kostentabbladen."]
[]
["3a: toewijzing per investeringssoort-afschrijvingsduur:"]
[]
["In kolom C wordt per eerder gekozen investeringssoort (kolom A) en afschrijvingsduur (kolom B), het investeringsbedrag toegewezen"]
["U kan dit bedrag uit kolom  C toewijzen aan/verdelen over kolommen D-F."]
[]
[null,null,null,"in te vullen","in te vullen","in te vullen"]
[null,null,null,"Formulier 1",null,"Formulier 2"]
["overgenomen","overgenomen","wordt berekend","met IFF","zonder IFF"]
["Kies uit de investeringssoort:","afschrijvingsduur","kost (in euro):","formulier 1A","formulier 1B"]
[{"$f":"A9","v":"Gebouw"},25,{"$f":"SUMIF($A$43:$A$197,A212,$G$43:$G$197)","v":0},{"$f":"C212","v":0}]
["Meubilair (los)",10,0,{"$f":"C213","v":0}]
["domotica",3,0,0]
["gordijnen",5,0,0]
["hardware",10,0,0]
["software",5,0,0]
["Investering5",20,0,0]
["Investering6",0,0,0]
["Investering7",0,0,0]
["Investering8",0,0,0]
["Investering9",0,0,0]
["Investering10",0,0,0]
["Investering11",0,0,0]
["Investering12",0,0,{"$f":"C225","v":0}]
["Investering13",0,0,0]
["Investering14",0,0,0]
[null,null,{"$f":"SUM(C212:C227)","v":0},{"$f":"SUM(D212:D227)","v":0},{"$f":"SUM(E212:E227)","v":0},0]
[]
["3b: toewijzing per afschrijvingstermijn"]
[]
["U kan meteen ook de investeringskost per afschrijvingstermijn ingeven"]
["De cijfers in kolommen A en B worden weer overgenomen, in kolommen C-E kan u opnieuw toewijzen aan/verdelen  over de formulieren"]
[]
[null,null,"in te vullen","in te vullen","in te vullen"]
[null,null,"Formulier 1",null,"Formulier 2"]
["overgenomen","overgenomen","met IFF","zonder IFF"]
["afschrijvingstermijnen","bedragen","formulier 1A","formulier 1B"]
[3,{"$f":"SUMIF($B$212:$B$227,A239,$C$212:$C$227)","v":0},{"$f":"B239","v":0}]
[5,{"$f":"SUMIF($B$212:$B$227,A240,$C$212:$C$227)","v":0},{"$f":"B240","v":0}]
[10,0,0]
[15,0,0]
[20,0,0]
[25,0,0]
[30,0,0]
[35,0,0]
[40,0,0]
[null,0,0]
[null,0,0]
[null,{"$f":"SUM(B239:B249)","v":0},{"$f":"SUM(C239:C249)","v":0},0,0]

{"sheet":"Bijlage extra vergoedingen","index":8,"n_rows":249,"n_cols":12,"rows_kept":249,"cut":false,"hidden":true,"merged":[]}
["Bijlage extra vergoedingen","totaalbedrag in euro"]
[]
["Detailleer het totaalbedrag conform onderstaande rubrieken:"]
[]
["sondevoeding: het surplus op de gebruikelijke voedingskost, na aftrek van de door het RIZIV terugbetaalde tegemoetkoming:"]
["dokterskosten, paramedische kosten en medicatie:"]
["kapper:"]
["abonnement op kabeldistributie:"]
["telefoonkosten:"]
["reiniging van persoonlijke kleding:"]
["kamerbediening (buiten medische redenen)"]
[]
["bron: https://www.zorg-en-gezondheid.be/wat-is-in-de-dagprijs-van-een-woonzorgcentrum-inbegrepen"]
[]
[]
[]
[]
[]
[]
[]
[]
[]
[]
[]
[]
[]
[]
[]
[]
[]
[]
[]
[]
[]
[]
[]
[]
[]
[]
[]
[]
[]
[]
[]
[]
[]
[]
[]
[]
[]
[]
[]
[]
[]
[]
[]
[]
[]
[]
[]
[]
[]
[]
[]
[]
[]
[]
[]
[]
[]
[]
[]
[]
[]
[]
[]
[]
[]
[]
[]
[]
[]
[]
[]
[]
[]
[]
[]
[]
[]
[]
[]
[]
[]
[]
[]
[]
[]
[]
[]
[]
[]
[]
[]
[]
[]
[]
[]
[]
[]
[]
[]
[]
[]
[]
[]
[]
[]
[]
[]
[]
[]
[]
[]
[]
[]
[]
[]
[]
[]
[]
[]
[]
[]
[]
[]
[]
[]
[]
[]
[]
[]
[]
[]
[]
[]
[]
[]
[]
[]
[]
[]
[]
[]
[]
[]
[]
[]
[]
[]
[]
[]
[]
[]
[]
[]
[]
[]
[]
[]
[]
[]
[]
[]
[]
[]
[]
[]
[]
[]
[]
[]
[]
[]
[]
[]
[]
[]
[]
[]
[]
[]
[]
[]
[]
[]
[]
[]
[]
[]
[]
[]
[]
[]
[]
[]
[]
[null,null,null,null,null,null,null,"brutodagprijs\n- forfait 5,11 euro\n= nettodagprijs (= prijs na aftrek forfait)"]
[]
[]
[]
[]
[]
[]
[]
[]
[]
[]
[]
[]
[]
[]
[]
[]
[]
[]
[]
[]
[]
[null,null,null,null,null,null,null,{"$f":"MIN(IF(F230<$F$38,1.15*$F$38,1.15*F230),G230)","v":0}]
[]
[]
[]
[]
[]
[]
[]
[]
[null,null,null,null,null,null,null,null,null,null,null,{"$f":"J228 &\n\" (kolom J)\n- forfait 5,11 euro\n= Nettodagprijs na bescherming (kolom H)\"","v":" (kolom J)\n- forfait 5,11 euro\n= Nettodagprijs na bescherming (kolom H)"}]
[]
[]
[]
[]
[]
[null,null,null,null,null,null,null,null,null,null,null,"- vervolgens wordt hierop het forfait van 5,11 euro in mindering gebracht"]
[]
[]
[null,null,null,null,null,null,null,null,null,null,null,"bij ingebruikname: nettodagprijs = huidige dagprijs (HDP) + max. 5 euro opstap bruto - 5,11 euro forfait"]
[null,null,null,null,null,null,null,null,null,null,null,"ten vroegste 6 maand na ingebruikname: nettoprijs = HDP + 2 x max. 5 euro opstap bruto - 5,11 euro forfait"]

{"sheet":"Checklist overheidstussenkomst","index":9,"n_rows":231,"n_cols":14,"rows_kept":231,"cut":false,"hidden":false,"merged":[[3,1,36,20],[0,7,0,9]]}
[null,"Checklist componenten overheidstussenkomsten",null,null,null,null,null,"Navigatie:","Navigatie:",null,"Terug naar algemene richtlijnen","Generieke input",null,"IFIC"]
[]
["In geval van een woonzorgcentrum/CVK:"]
[null,"1) Basistegemoetkoming voor zorg van jaar voor de aanvraag \nPersoneelskosten\n• Zorgpersoneel: verpleegkundigen, zorgkundigen, kinesitherapeuten, logopedisten, ergotherapeuten, personeel voor reactivering (delen A1,A2, A3, B1, B2, C, E1, E2, E3, E4, F, H, M)\n• Financiering van coördinerend arts in het woonzorgcentrum met bijkomende erkenning  \n• Financiering ondersteunend personeel (deel K)\n\nOm versleutelingsproblemen te vermijden mag op niveau van het personeel ook inbegrepen zijn:\n•  Financiering van verzorgingsmateriaal       \n•  Financiering van opleiding  \n\nNaast de pure basistegemoetkoming zorg:\n- tegemoetkoming incontinentiemateriaal\n- tegemoetkoming OCVK           \n\n2) tegemoetkoming vrijstelling van arbeidsprestaties en eindeloopbaan: vergoeding premie voor sommige werknemers die kiezen voor behoud de arbeidsprestaties vanaf de leeftijd van 45 jaar of voor de vervangers als die werknemers kiezen voor vermindering van de arbeidsprestaties. Laatst gekende rechtenbedrag = 4 voorschotten + bedrag afrekening van de volgende referentieperiode \n3) Fonds Sociale Maribel: laatst ontvangen inkomsten \n4) Aanvullende financiering (niet voor nieuwe voorzieningen of voor extra capaciteit)\n• Bovennorm zorg: laatst gekende rechtenbedrag \n• Ondersteunend personeel: laatst gekende rechtenbedrag \n5) Loonsverhoging VIA5+VIA6: 6,96% van de personeelskost, dit zit verwerkt in IFIC\n6)  DAC- en Gesco-tussenkomsten cfr. uitbetaald bedrag voor het jaar voorafgaand aan het jaar waarin de aanvraag wordt ingediend (niet voor nieuwe voorzieningen of voor extra capaciteit)\n7) Andere: \n• Nomenclatuur-inkomsten (bvb. kiné-ROB)\n• Financiering bijkomende erkenning oriënterend centrum voor kortverblijf \n• Financiering bijzondere erkenning voor de zorg en ondersteuning van personen met jongdementie\n• Syndicale premie\n\n\n\n"]
[]
[]
[]
[]
[]
[]
[]
[]
[]
[]
[]
[]
[]
[]
[]
[]
[]
[]
[]
[]
[]
[]
[]
[]
[]
[]
[]
[]
[]
[]
[]
[]
[]
[]
["In geval van een centrum voor dagverzorging (CDV):"]
[]
[null,"basistegemoetkoming zorg"]
[null,"tegemoetkoming reiskosten"]
[null,"werkingssubsidies CDV"]
[]
[]
[]
[]
[]
[]
[]
[]
[]
[]
[]
[]
[]
[]
[]
[]
[]
[]
[]
[]
[]
[]
[]
[]
[]
[]
[]
[]
[]
[]
[]
[]
[]
[]
[]
[]
[]
[]
[]
[]
[]
[]
[]
[]
[]
[]
[]
[]
[]
[]
[]
[]
[]
[]
[]
[]
[]
[]
[]
[]
[]
[]
[]
[]
[]
[]
[]
[]
[]
[]
[]
[]
[]
[]
[]
[]
[]
[]
[]
[]
[]
[]
[]
[]
[]
[]
[]
[]
[]
[]
[]
[]
[]
[]
[]
[]
[]
[]
[]
[]
[]
[]
[]
[]
[]
[]
[]
[]
[]
[]
[]
[]
[]
[]
[]
[]
[]
[]
[]
[]
[]
[]
[]
[]
[]
[]
[]
[]
[]
[]
[]
[]
[]
[]
[]
[]
[]
[]
[]
[]
[]
[]
[]
[]
[]
[]
[]
[]
[]
[]
[]
[]
[]
[]
[]
[]
[]
[]
[]
[]
[]
[]
[]
[]
[]
[null,null,null,null,null,null,null,"brutodagprijs\n- forfait 5,11 euro\n= nettodagprijs (= prijs na aftrek forfait)"]
[]
[]
[]
[]
[]
[]
[]
[]
[]
[]
[]
[]
[]
[]
[]
[]
[]
[]
[]
[]
[]
[null,null,null,null,null,null,null,{"$f":"MIN(IF(F231<$F$39,1.15*$F$39,1.15*F231),G231)","v":0}]

{"sheet":"Checklist_prijsaanvraag","index":10,"n_rows":97,"n_cols":6,"rows_kept":97,"cut":false,"hidden":false,"merged":[[61,0,62,2]]}
[]
["Checks ",null,null,null,"Check","Vereiste actie:"]
[]
["A. Invoer"]
["Generieke input:"]
[]
["1. Datum aanvraag ingevuld?",null,null,null,{"$f":"IF('Generieke input'!C4<>\"\", \"OK\",\"NIET OK\")","v":"OK"},{"$f":"IF(E7=\"NIET OK\", \"Gelieve de aanvraagdatum in te vullen\",\"\")","v":""}]
[]
["2. Identifcatie volledig?",null,null,null,{"$f":"IF('Generieke input'!W19>1,\"NIET OK\",\"Ok\")","v":"Ok"},{"$f":"IF(E9=\"NIET OK\", 'Generieke input'!W19& \" gegevens werd niet ingevuld. Gelieve aan te vullen.\",\"\")","v":""}]
[]
["3.1 Capaciteiten volgens aanleiding prijsaanvraag:"]
["Kloppen de capaciteiten (deelcapaciteiten niet hoger dan totaal)?",null,null,null,{"$f":"'Generieke input'!H39","v":"OK"},{"$f":"IF(E12=\"NIET OK\", \"Ga na of de capaciteiten in hetzij formulier 1, hetzij formulier 2 niet hoger liggen dan de totale capaciteit van de zorgvorm\",\"\")","v":""}]
["Geen combinatie van CDV of GAW met andere zorgvormen?",null,null,null,{"$f":"'Generieke input'!H41","v":"OK"},{"$f":"IF(E13=\"NIET OK\", \"Ga na of er geen combinatie is tussen de zorgvormen CDV of GAW met de andere zorgvormen.Indien toch, dan zal er een aparte prijsaanvraag moeten worden ingediend\",\"\")","v":""}]
[]
["4. Werd jaar van het aanvangsbevel ingevuld?",null,null,null,{"$f":"IF('Generieke input'!D55>0,\"OK\",\"NIET OK\")","v":"OK"},{"$f":"IF(E15=\"NIET OK\", \"Gelieve het jaar van aanvangsbevel in te vullen\",\"\")","v":""}]
[]
["Formulier 1A: Infrastructuur met forfait"]
[]
["Werd deze kosteninvoer  gekozen onder generieke input?",null,null,null,{"$f":"IF(capforfait>0,\"JA\",\"NEEN\")","v":"NEEN"}]
[]
["Indien ja, werden volgende gegevens ingevuld:"]
[]
["1.1 kamergerelateerde investeringen",null,null,null,{"$f":"IF(E19<>\"JA\", \"NVT\", IF(AND('1A-Infrastructuur met forfait'!bouwkost_werken>0,'1A-Infrastructuur met forfait'!bouwkost_meubilair>0),\"OK\",\"NIET OK\"))","v":"NVT"},{"$f":"IF(E23=\"NIET OK\",\"Gelieve de kosten in te voeren voor \"&A23,\"\")","v":""}]
["1.2 andere investeringen",null,null,null,{"$f":"IF(E19<>\"JA\",\"NVT\",IF(SUM('1A-Infrastructuur met forfait'!E51:Q51)=0,\"Te bekijken\",\"OK\"))","v":"NVT"},{"$f":"IF(E24=\"Te bekijken\",\"Gelieve, indien van toepassing, de kosten in te voeren voor \"&A24,\"\")","v":""}]
["1.3 personeelskosten",null,null,null,{"$f":"IF(E19<>\"JA\",\"NVT\",IF('1A-Infrastructuur met forfait'!G85>0,\"OK\",\"NIET OK\"))","v":"NVT"},{"$f":"IF(E25=\"NIET OK\",\"Gelieve, indien van toepassing, de kosten in te voeren of te wijzigen voor \"&A25,\"\")","v":""}]
["1.4 producten en diensten en diverse leveringen",null,null,null,{"$f":"IF(E19<>\"JA\",\"NVT\",IF('1A-Infrastructuur met forfait'!G126>0,\"OK\",\"NIET OK\"))","v":"NVT"},{"$f":"IF(E26=\"NIET OK\",\"Gelieve, indien van toepassing, de kosten in te voeren voor \"&A26,\"\")","v":""}]
[]
["2.1 evaluatie dagprijzen:  nieuwe bewoners: capaciteiten",null,null,null,{"$f":"IF(E19<>\"JA\",\"NVT\",IF('1A-Infrastructuur met forfait'!H145<>\"\",\"NIET OK\",\"OK\"))","v":"NVT"},{"$f":"IF(E28=\"NIET OK\", \"Gelieve de capaciteiten te wijzigen. \" &'1A-Infrastructuur met forfait'!H145, \"\")","v":""}]
["2.1 evaluatie dagprijzen: nieuwe bewoners: dagprijs in nieuwe infrastructuur na aftrek forfait",null,null,null,{"$f":"IF(E19<>\"JA\",\"NVT\",IF('1A-Infrastructuur met forfait'!H146<>\"\",\"NIET OK\",\"OK\"))","v":"NVT"},{"$f":"IF(E29=\"NIET OK\",'1A-Infrastructuur met forfait'!H146, \"\")","v":""}]
["2.1 evaluatie dagprijzen: dagprijzen ingevuld?",null,null,null,{"$f":"IF(E19<>\"JA\",\"NVT\",IF('1A-Infrastructuur met forfait'!F163=0,\"NIET OK\",\"OK\"))","v":"NVT"},{"$f":"IF(E30=\"NIET OK\",\"U dient minimaal voor de nieuwe bewoners capaciteiten én prijzen in te vullen\", \"\")","v":""}]
[]
["2.2 evaluatie dagprijzen: bestaande bewoners: capaciteiten",null,null,null,{"$f":"IF(E19<>\"JA\",\"NVT\",IF('1A-Infrastructuur met forfait'!Q176<>\"\",\"NIET OK\",\"OK\"))","v":"NVT"},{"$f":"IF(E32=\"NIET OK\", \"Gelieve de capaciteiten te wijzigen. \" &'1A-Infrastructuur met forfait'!Q176,\"\")","v":""}]
["2.2 evaluatie dagprijzen: bestaande bewoners: dagprijs in nieuwe infrastructuur na aftrek forfait",null,null,null,{"$f":"IF(E19<>\"JA\",\"NVT\",IF('1A-Infrastructuur met forfait'!Q177<>\"\",\"NIET OK\",\"OK\"))","v":"NVT"},{"$f":"IF(E33=\"NIET OK\",'1A-Infrastructuur met forfait'!Q177,\"\")","v":""}]
[]
["Formulier 1B: Infrastructuur zonder forfait"]
[]
["Werd deze kosteninvoer  gekozen onder generieke input?",null,null,null,{"$f":"IF(capzoforfait>0,\"JA\",\"NEEN\")","v":"NEEN"}]
[]
["Indien ja, werden volgende gegevens ingevuld:"]
[]
["1.1 lopende infrastructuurkost in dagprijs",null,null,null,{"$f":"IF(E37<>\"JA\", \"NVT\",IF('1B-Infra zonder forfait'!E23>0,\"OK\",\"Te bekijken\"))","v":"NVT"},{"$f":"IF(E41=\"Te bekijken\",\"Gelieve ook de lopende infrastructuurkosten in te voeren, indien voorkomend\",\"\")","v":""}]
["1.2 nieuwe investeringen in dagprijs: aanwezig?",null,null,null,{"$f":"IF(E37<>\"JA\", \"NVT\",IF('1B-Infra zonder forfait'!G51>0,\"OK\",\"NIET OK\"))","v":"NVT"},{"$f":"IF(E42=\"NIET OK\",\"U gebruikt dit formulier maar er werden geen investeringskosten ingevoerd? Gelieve te checken.\",\"\")","v":""}]
["1.2 nieuwe investeringen in dagprijs: terecht gebruik van dit formulier?",null,null,null,{"$f":"IFERROR(IF(E37<>\"JA\", \"NVT\",IF('1B-Infra zonder forfait'!F60>=50%,\"OK\",\"NIET OK\")), \"NVT\")","v":"NVT"},{"$f":"IF(E43=\"NIET OK\",'1B-Infra zonder forfait'!C62,\"\")","v":""}]
["1.3 personeelskosten",null,null,null,{"$f":"IFERROR(IF(E37<>\"JA\", \"NVT\",IF('1B-Infra zonder forfait'!G77>0,\"OK\",\"NIET OK\")),\"NVT\")","v":"NVT"},{"$f":"IF(E44=\"NIET OK\",\"Gelieve de kosten in te voeren voor \"&A44,\"\")","v":""}]
["1.4 producten en diensten en diverse leveringen",null,null,null,{"$f":"IF(E37<>\"JA\", \"NVT\",IF('1B-Infra zonder forfait'!G118>0,\"OK\",\"NIET OK\"))","v":"NVT"},{"$f":"IF(E45=\"NIET OK\",\"Gelieve de kosten in te voeren voor \"&A45,\"\")","v":""}]
[]
["2.1 evaluatie dagprijzen: nieuwe bewoners: capaciteiten",null,null,null,{"$f":"IF(E37<>\"JA\", \"NVT\",IF('1B-Infra zonder forfait'!G136<>\"\",\"NIET OK\",\"OK\"))","v":"NVT"},{"$f":"IF(E47=\"NIET OK\", \"Gelieve de capaciteiten te wijzigen. \" &'1B-Infra zonder forfait'!G136,\"\")","v":""}]
["2.1 evaluatie dagprijzen: nieuwe bewoners: dagprijs in nieuwe infrastructuur",null,null,null,{"$f":"IF(E37<>\"JA\", \"NVT\",IF('1B-Infra zonder forfait'!G137<>\"\",\"NIET OK\",\"OK\"))","v":"NVT"},{"$f":"IF(E48=\"NIET OK\",'1B-Infra zonder forfait'!G137, \"\")","v":""}]
["2.1 evaluatie dagprijzen: dagprijzen ingevuld?",null,null,null,{"$f":"IF(E37<>\"JA\", \"NVT\",IF('1B-Infra zonder forfait'!F154=0,\"NIET OK\",\"OK\"))","v":"NVT"},{"$f":"IF(E49=\"NIET OK\",\"U dient minimaal voor de nieuwe bewoners capaciteiten én prijzen in te vullen.\", \"\")","v":""}]
[]
["2.2 evaluatie dagprijzen: bestaande bewoners: capaciteiten",null,null,null,{"$f":"IF(E37<>\"JA\", \"NVT\",IF('1B-Infra zonder forfait'!O167<>\"\",\"NIET OK\",\"OK\"))","v":"NVT"},{"$f":"IF(E51=\"NIET OK\", \"Gelieve de capaciteiten te wijzigen. \" &'1B-Infra zonder forfait'!O167,\"\")","v":""}]
["2.2 evaluatie dagprijzen: bestaande bewoners: dagprijs in nieuwe infrastructuur",null,null,null,{"$f":"IF(E37<>\"JA\", \"NVT\",IF('1B-Infra zonder forfait'!O168<>\"\",\"NIET OK\",\"OK\"))","v":"NVT"},{"$f":"IF(E52=\"NIET OK\",'1B-Infra zonder forfait'!O168,\"\")","v":""}]
[]
["Formulier 2: formulier andere:  alle zorgvormen"]
[]
["Werd deze kosteninvoer  gekozen onder generieke input?",null,null,null,{"$f":"IF(capexgaw>0,\"JA\",\"NEEN\")","v":"NEEN"}]
[]
["Werden investeringskosten ingevuld onder rubriek 3:",null,null,null,{"$f":"IF(E56<>\"JA\",\"NVT\",IF(E56<>\"JA\",\"NVT\",IF('Formulier 2'!G136>0,\"JA\",\"NEEN\")))","v":"NVT"}]
[]
["Indien investeringskosten werden ingevuld onder rubriek 3,  kan er geen prijsaanvraag worden gevraagd voor marge-evolutie:",null,null,null,{"$f":"IF(E56<>\"JA\",\"NVT\",IF(E58=\"NEEN\", \"OK\",IF('Formulier 2'!G104=0,\"OK\",\"NIET OK\")))","v":"NVT"},{"$f":"IF(E60=\"NIET OK\", \"Voor dezelfde bewoners kan er niet simultaan een prijsaanvraag voor marge-evolutie en investeringskost worden ingediend.\",\"\")","v":""}]
[]
["Indien neen en als voor deze kosteninvoer werd gekozen, werden dan de nodige gegevens ingevuld voor marge-evolutie:"]
[]
[]
["1. Resultatenrekening: werd het jaartal van het laatst beschikbare boekjaar ingevuld?",null,null,null,{"$f":"IF(OR(E56<>\"JA\",E58=\"JA\"),\"NVT\",IF(AND(E58=\"NEEN\",'Formulier 2'!E13>0),\"OK\",\"NIET OK\"))","v":"NVT"},{"$f":"IF(E65=\"NIET OK\",\"Vul het jaartal van het laatst beschikbare boekjaar in\",\"\")","v":""}]
["1. Resultatenrekening: werden de kosten en opbrengsten van de laatste 2 jaar  ingevuld?",null,null,null,{"$f":"IF(OR(E56<>\"JA\",E58=\"JA\"),\"NVT\",IF(AND(E58=\"NEEN\",'Formulier 2'!G17>0,'Formulier 2'!J17>0),\"OK\",\"NIET OK\"))","v":"NVT"},{"$f":"IF(E66=\"NIET OK\", \"U heeft geen of onvolledige invoer voor marge-evolutie\",\"\")","v":""}]
["2.1 Marge-evolutie - toetsing criteria: werd de gewogen gemiddelde dagprijs van de voorziening ingevuld?",null,null,null,{"$f":"IF(OR(E56<>\"JA\",E58=\"JA\"),\"NVT\",IF(AND('Formulier 2'!F55>0,Checklist_prijsaanvraag!E58=\"NEEN\"),\"OK\",\"NIET OK\"))","v":"NVT"}]
[]
["5.1 evaluatie dagprijzen: nieuwe bewoners: capaciteiten",null,null,null,{"$f":"IF(E56<>\"JA\",\"NVT\",IF('Formulier 2'!G170<>\"\",\"NIET OK\",\"OK\"))","v":"NVT"},{"$f":"IF(E69=\"NIET OK\",'Formulier 2'!G170 &\". Pas de capaciteiten aan.\",\"\")","v":""}]
["5.1 evaluatie dagprijzen: nieuwe bewoners: dagprijs in nieuwe infrastructuur",null,null,null,{"$f":"IF(E56<>\"JA\",\"NVT\",IF('Formulier 2'!G171<>\"\",\"NIET OK\",\"OK\"))","v":"NVT"},{"$f":"IF(E70=\"NIET OK\",'Formulier 2'!G171,\"\")","v":""}]
[]
["5.2 evaluatie dagprijzen: bestaande bewoners: capaciteiten",null,null,null,{"$f":"IF(E56<>\"JA\",\"NVT\",IF('Formulier 2'!K201<>\"\",\"NIET OK\",\"OK\"))","v":"NVT"}]
["5.2 evaluatie dagprijzen: bestaande bewoners: huidige dagprijs",null,null,null,{"$f":"IF(E56<>\"JA\",\"NVT\",IF(AND('Formulier 2'!E219>0,'Formulier 2'!F219=0), \"NIET OK\",\"OK\"))","v":"NVT"},{"$f":"IF(E73=\"NIET OK\", \"U heeft capaciteiten ingevuld voor de bestaande bewoners, maar geen huidige dagprijzen\",\"\")","v":""}]
["5.2 evaluatie dagprijzen: bestaande bewoners: dagprijs in nieuwe infrastructuur",null,null,null,{"$f":"IF(E56<>\"JA\",\"NVT\",IF(AND('Formulier 2'!E219>0,'Formulier 2'!G219=0),\"NIET OK\",\"OK\"))","v":"NVT"},{"$f":"IF(E74=\"NIET OK\", \"U heeft capaciteiten ingevuld voor de bestaande bewoners, maar geen dagprijzen.\",\"\")","v":""}]
[]
[]
["B. Documenten"]
[]
["Bij alle aanvragen voegt u een verslag van de gebruikersraad."]
["Daarnaast zijn er er nog volgende specifieke documenten per prijsaanvraag:"]
[]
["1A-Infrastructuur met forfait"]
["Exceloverzicht van alle investeringskosten met vermelding van het bedrag, het verantwoordingsstuk en daarnaast de referentie voor het verantwoordingsstuk. Gebruik best een apart tabblad en evt. het standaard voorziene tabblad \"Bijlage investeringsoverzicht\""]
[{"$f":"IF(SUM('1A-Infrastructuur met forfait'!G175:G193)>0, \"U heeft voor 1 of meerdere bewoners een plafondprijs opgenomen in de overeenkomst. Gelieve volgende verantwoording te bezorgen: \",\"\")","v":""}]
[{"$f":"IF(A84<>\"\",\"a)\" &'1A-Infrastructuur met forfait'!E196 & \" en b) \" & '1A-Infrastructuur met forfait'!E197,\"\")","v":""}]
[]
["1B-Infrastructuur zonder forfait"]
[{"$f":"A83","v":"Exceloverzicht van alle investeringskosten met vermelding van het bedrag, het verantwoordingsstuk en daarnaast de referentie voor het verantwoordingsstuk. Gebruik best een apart tabblad en evt. het standaard voorziene tabblad \"Bijlage investeringsoverzicht\""}]
[{"$f":"IF(SUM('1B-Infra zonder forfait'!F166:F184)>0, \"U heeft voor 1 of meerdere bewoners een plafondprijs opgenomen in de overeenkomst. Gelieve volgende verantwoording te bezorgen: \",\"\")","v":""}]
[{"$f":"IF(A89<>\"\",\"a)\" &'1B-Infra zonder forfait'!E187 & \" en b) \" & '1B-Infra zonder forfait'!E188,\"\")","v":""}]
[]
["Formulier 2:  andere: alle zorgvormen"]
[{"$f":"\"Indien aanvraag voor investeringskost: \"&A83","v":"Indien aanvraag voor investeringskost: Exceloverzicht van alle investeringskosten met vermelding van het bedrag, het verantwoordingsstuk en daarnaast de referentie voor het verantwoordingsstuk. Gebruik best een apart tabblad en evt. het standaard voorziene tabblad \"Bijlage investeringsoverzicht\""}]
[]
["Indien aanvraag voor marge-evolutie, gelieve aan te leveren:"]
[{"$f":"'Formulier 2'!F108","v":"Resultatenrekening (extracomptabel) van de betrokken zorgvorm (woonzorgcentrum en kortverblijf, DVC, GAW). Indien ontbrekend, kan vertrokken worden van het hogere beschikbare niveau, waarop dan vervolgens een verdeelsleutel wordt toegepast."}]
["Het verslag van de efficiëntiemaatregelen: dit is een overzicht van de maatregelen die de voorziening in de voorbij 3 jaren heeft genomen en in de volgende jaren gaat nemen om het verlies weg te werken of te beperken."]

{"sheet":"Output","index":11,"n_rows":220,"n_cols":8,"rows_kept":220,"cut":false,"hidden":false,"merged":[[17,1,17,5],[18,1,18,5],[8,1,8,5],[9,1,9,5],[10,1,10,5],[11,1,11,5],[12,1,12,5],[13,1,13,5],[14,1,14,5],[15,1,15,5],[16,1,16,5],[57,0,57,3],[58,0,58,3],[101,0,101,1],[102,0,102,1],[103,0,103,1],[104,0,104,1],[49,0,49,3],[50,0,50,3],[51,0,51,3],[59,0,59,3],[60,0,60,3],[61,0,61,3],[52,0,52,3],[53,0,53,3],[54,0,54,3],[55,0,55,3],[56,0,56,3],[70,0,70,3],[71,0,71,3],[72,0,72,3],[73,0,73,3],[74,0,74,3],[62,0,62,3],[63,0,63,3],[47,0,47,3],[48,0,48,3],[24,0,24,2],[25,0,25,2],[26,0,26,2],[27,0,27,2],[28,0,28,2],[29,0,29,2],[30,0,30,2],[31,0,31,2],[32,0,32,2],[33,0,33,2],[34,0,34,2],[35,0,35,2],[36,0,36,2],[37,0,37,2],[38,0,38,2],[39,0,39,2],[40,0,40,2],[41,0,41,2],[42,0,42,2],[43,0,43,2],[64,0,64,3],[65,0,65,3],[66,0,66,3],[80,0,80,3],[81,0,81,3],[82,0,82,3],[83,0,83,3],[84,0,84,3],[75,0,75,3],[76,0,76,3],[77,0,77,3],[78,0,78,3],[79,0,79,3],[85,0,85,3],[86,0,86,3],[129,0,129,2],[130,0,130,2],[87,0,87,3],[88,0,88,3],[89,0,89,3],[96,0,96,1],[97,0,97,1],[98,0,98,1],[99,0,99,1],[100,0,100,1],[118,0,119,5],[120,0,121,5],[110,0,110,1],[111,0,111,1],[112,0,112,1],[113,0,113,1],[105,0,105,1],[106,0,106,1],[107,0,107,1],[108,0,108,1],[109,0,109,1],[114,0,114,1],[127,0,127,2],[128,0,128,2],[115,0,115,1],[141,0,141,2],[142,0,142,2],[143,0,143,2],[144,0,144,2],[145,0,145,2],[136,0,136,2],[137,0,137,2],[138,0,138,2],[139,0,139,2],[140,0,140,2],[214,4,215,5],[217,4,218,5],[214,1,214,2],[215,1,215,2],[217,1,217,2],[218,1,218,2],[170,0,170,1],[171,0,171,1],[172,0,172,1],[173,0,173,1],[174,0,174,1],[178,0,178,4],[179,0,179,4],[180,0,180,4],[181,0,181,4],[182,0,182,4],[183,0,183,4],[184,0,184,4],[185,0,185,4],[186,0,186,4],[187,0,187,4],[188,0,188,4],[189,0,189,4],[190,0,190,4],[1,0,2,5],[165,0,165,1],[166,0,166,1],[167,0,167,1],[168,0,168,1],[169,0,169,1],[160,0,160,1],[161,0,161,1],[162,0,162,1],[163,0,163,1],[164,0,164,1],[155,0,155,1],[156,0,156,1],[157,0,157,1],[158,0,158,1],[159,0,159,1],[148,0,149,5],[150,0,151,5],[131,0,131,2],[132,0,132,2],[133,0,133,2],[134,0,134,2],[135,0,135,2],[126,0,126,2],[207,0,208,5],[202,0,202,4],[203,0,203,4],[204,0,204,4],[205,0,205,4],[191,0,191,4],[192,0,192,4],[195,0,195,4],[196,0,196,4],[197,0,197,4],[198,0,198,4],[199,0,199,4],[200,0,200,4],[201,0,201,4]]}
[null,null,null,null,null,null,null,"Aandachtspunten:"]
["Dagprijsaanvraag: samenvatting"]
[null,null,null,null,null,null,1,"HEEL BELANGRIJK: ga na of de prijzen verschijnen. Indien dit niet het geval is, gelieve dan de macrobeveiliging  in te schakelen. Voor meer uitleg: zie word-documenten \"Technische nota prijsaanvraagformulier\""]
[null,null,null,null,null,null,1,"Het merendeel van gegevens voor de output wordt overgenomen uit de andere tabbladen. Enkel onderaan dienen de gemachtigden hun naam te vermelden en te handtekenen."]
["1. Datum aanvraag",null,{"$f":"'Generieke input'!C4","v":"2025-06-19"},null,null,null,1,"De getekende versie van dit tabblad wordt als pdf meegestuurd. Via bestand>afdrukken kan u de layout nog wijzigen."]
[null,null,null,null,null,null,1]
["2. Identificatie",null,null,null,null,null,1]
[null,null,null,null,null,null,1]
["Naam inrichtende macht :",{"$f":"'Generieke input'!F8","v":"Naam inrichtende macht"},null,null,null,null,1]
["Rechtsvorm",{"$f":"'Generieke input'!F9","v":"rechtsvorm:"},null,null,null,null,1]
["Indien andere rechtsvorm:",{"$f":"'Generieke input'!F10","v":0},null,null,null,null,1]
["Adres inrichtende macht:",{"$f":"'Generieke input'!F11","v":"straat +nr, postcode + gemeente"},null,null,null,null,1]
["Naam voorziening:",{"$f":"'Generieke input'!F12","v":"naam voorziening"},null,null,null,null,1]
["Adres voorziening:",{"$f":"'Generieke input'!F13","v":"straat +nr, postcode + gemeente"},null,null,null,null,1]
["Telefoonummer :",{"$f":"'Generieke input'!F14","v":"xxxx/xx xx xx"},null,null,null,null,1]
["Email:",{"$f":"'Generieke input'!F15","v":"naam@extensie.be"},null,null,null,null,1]
["Dossiernr ZG",{"$f":"'Generieke input'!F16","v":"gelieve hier uw dossiernummer bij Zorg en Gezondheid in te vullen"},null,null,null,null,1]
["Ondernemingsnummer",{"$f":"'Generieke input'!F17","v":"geliever hier  uw ondernemingsnummer in te vullen"},null,null,null,null,1]
["Contactpersoon:",{"$f":"'Generieke input'!F18","v":"voornaam + naam"},null,null,null,null,1]
[null,null,null,null,null,null,1]
["3.1 Nieuwe bewoners",null,null,null,null,null,{"$f":"IF(OR(G26=1,G49=1,G72=1),1,0)","v":0}]
[null,null,null,null,null,null,{"$f":"G21","v":0}]
["Formulier 1 met forfait",null,null,null,null,null,{"$f":"IF(SUM(E26:E44)>0,1,0)","v":0}]
[null,null,null,null,null,null,{"$f":"G23","v":0}]
["Kamertype",null,null,"aantal","dagprijs na aftrek forfait","brutoprijs\n (vóór aftrek forfait)",{"$f":"G26","v":0}]
[{"$f":"'1A-Infrastructuur met forfait'!B144","v":0},null,null,{"$f":"'1A-Infrastructuur met forfait'!E144","v":0},{"$f":"'1A-Infrastructuur met forfait'!F144","v":0},{"$f":"'1A-Infrastructuur met forfait'!G144","v":0},{"$f":"IF(E26>0,1,0)","v":0}]
[{"$f":"'1A-Infrastructuur met forfait'!B145","v":0},null,null,{"$f":"'1A-Infrastructuur met forfait'!E145","v":0},{"$f":"'1A-Infrastructuur met forfait'!F145","v":0},{"$f":"'1A-Infrastructuur met forfait'!G145","v":0},{"$f":"IF(E27>0,1,0)","v":0}]
[{"$f":"'1A-Infrastructuur met forfait'!B146","v":0},null,null,{"$f":"'1A-Infrastructuur met forfait'!E146","v":0},{"$f":"'1A-Infrastructuur met forfait'!F146","v":0},{"$f":"'1A-Infrastructuur met forfait'!G146","v":0},0]
[{"$f":"'1A-Infrastructuur met forfait'!B147","v":0},null,null,{"$f":"'1A-Infrastructuur met forfait'!E147","v":0},{"$f":"'1A-Infrastructuur met forfait'!F147","v":0},{"$f":"'1A-Infrastructuur met forfait'!G147","v":0},0]
[{"$f":"'1A-Infrastructuur met forfait'!B148","v":0},null,null,{"$f":"'1A-Infrastructuur met forfait'!E148","v":0},{"$f":"'1A-Infrastructuur met forfait'!F148","v":0},{"$f":"'1A-Infrastructuur met forfait'!G148","v":0},0]
[{"$f":"'1A-Infrastructuur met forfait'!B149","v":0},null,null,{"$f":"'1A-Infrastructuur met forfait'!E149","v":0},{"$f":"'1A-Infrastructuur met forfait'!F149","v":0},{"$f":"'1A-Infrastructuur met forfait'!G149","v":0},0]
[{"$f":"'1A-Infrastructuur met forfait'!B150","v":0},null,null,{"$f":"'1A-Infrastructuur met forfait'!E150","v":0},{"$f":"'1A-Infrastructuur met forfait'!F150","v":0},{"$f":"'1A-Infrastructuur met forfait'!G150","v":0},0]
[{"$f":"'1A-Infrastructuur met forfait'!B151","v":0},null,null,{"$f":"'1A-Infrastructuur met forfait'!E151","v":0},{"$f":"'1A-Infrastructuur met forfait'!F151","v":0},{"$f":"'1A-Infrastructuur met forfait'!G151","v":0},0]
[{"$f":"'1A-Infrastructuur met forfait'!B152","v":0},null,null,{"$f":"'1A-Infrastructuur met forfait'!E152","v":0},{"$f":"'1A-Infrastructuur met forfait'!F152","v":0},{"$f":"'1A-Infrastructuur met forfait'!G152","v":0},0]
[{"$f":"'1A-Infrastructuur met forfait'!B153","v":0},null,null,{"$f":"'1A-Infrastructuur met forfait'!E153","v":0},{"$f":"'1A-Infrastructuur met forfait'!F153","v":0},{"$f":"'1A-Infrastructuur met forfait'!G153","v":0},0]
[{"$f":"'1A-Infrastructuur met forfait'!B154","v":0},null,null,{"$f":"'1A-Infrastructuur met forfait'!E154","v":0},{"$f":"'1A-Infrastructuur met forfait'!F154","v":0},{"$f":"'1A-Infrastructuur met forfait'!G154","v":0},0]
[{"$f":"'1A-Infrastructuur met forfait'!B155","v":0},null,null,{"$f":"'1A-Infrastructuur met forfait'!E155","v":0},{"$f":"'1A-Infrastructuur met forfait'!F155","v":0},{"$f":"'1A-Infrastructuur met forfait'!G155","v":0},0]
[{"$f":"'1A-Infrastructuur met forfait'!B156","v":0},null,null,{"$f":"'1A-Infrastructuur met forfait'!E156","v":0},{"$f":"'1A-Infrastructuur met forfait'!F156","v":0},{"$f":"'1A-Infrastructuur met forfait'!G156","v":0},0]
[{"$f":"'1A-Infrastructuur met forfait'!B157","v":0},null,null,{"$f":"'1A-Infrastructuur met forfait'!E157","v":0},{"$f":"'1A-Infrastructuur met forfait'!F157","v":0},{"$f":"'1A-Infrastructuur met forfait'!G157","v":0},0]
[{"$f":"'1A-Infrastructuur met forfait'!B158","v":0},null,null,{"$f":"'1A-Infrastructuur met forfait'!E158","v":0},{"$f":"'1A-Infrastructuur met forfait'!F158","v":0},{"$f":"'1A-Infrastructuur met forfait'!G158","v":0},0]
[{"$f":"'1A-Infrastructuur met forfait'!B159","v":0},null,null,{"$f":"'1A-Infrastructuur met forfait'!E159","v":0},{"$f":"'1A-Infrastructuur met forfait'!F159","v":0},{"$f":"'1A-Infrastructuur met forfait'!G159","v":0},0]
[{"$f":"'1A-Infrastructuur met forfait'!B160","v":0},null,null,{"$f":"'1A-Infrastructuur met forfait'!E160","v":0},{"$f":"'1A-Infrastructuur met forfait'!F160","v":0},{"$f":"'1A-Infrastructuur met forfait'!G160","v":0},0]
[{"$f":"'1A-Infrastructuur met forfait'!B161","v":0},null,null,{"$f":"'1A-Infrastructuur met forfait'!E161","v":0},{"$f":"'1A-Infrastructuur met forfait'!F161","v":0},{"$f":"'1A-Infrastructuur met forfait'!G161","v":0},0]
[{"$f":"'1A-Infrastructuur met forfait'!B162","v":0},null,null,{"$f":"'1A-Infrastructuur met forfait'!E162","v":0},{"$f":"'1A-Infrastructuur met forfait'!F162","v":0},{"$f":"'1A-Infrastructuur met forfait'!G162","v":0},0]
[null,null,null,null,null,null,{"$f":"G26","v":0}]
["Formulier 1 zonder forfait",null,null,null,null,null,{"$f":"IF(SUM(F49:F67)>0,1,0)","v":0}]
[null,null,null,null,null,null,{"$f":"G46","v":0}]
["Kamertype",null,null,null,"aantal","dagprijs",{"$f":"G49","v":0}]
[{"$f":"'1B-Infra zonder forfait'!B135","v":0},null,null,null,{"$f":"'1B-Infra zonder forfait'!E135","v":0},{"$f":"'1B-Infra zonder forfait'!F135","v":0},{"$f":"IF(F49>0,1,0)","v":0}]
[{"$f":"'1B-Infra zonder forfait'!B136","v":0},null,null,null,{"$f":"'1B-Infra zonder forfait'!E136","v":0},{"$f":"'1B-Infra zonder forfait'!F136","v":0},{"$f":"IF(F50>0,1,0)","v":0}]
[{"$f":"'1B-Infra zonder forfait'!B137","v":0},null,null,null,{"$f":"'1B-Infra zonder forfait'!E137","v":0},{"$f":"'1B-Infra zonder forfait'!F137","v":0},0]
[{"$f":"'1B-Infra zonder forfait'!B138","v":0},null,null,null,{"$f":"'1B-Infra zonder forfait'!E138","v":0},{"$f":"'1B-Infra zonder forfait'!F138","v":0},0]
[{"$f":"'1B-Infra zonder forfait'!B139","v":0},null,null,null,{"$f":"'1B-Infra zonder forfait'!E139","v":0},{"$f":"'1B-Infra zonder forfait'!F139","v":0},0]
[{"$f":"'1B-Infra zonder forfait'!B140","v":0},null,null,null,{"$f":"'1B-Infra zonder forfait'!E140","v":0},{"$f":"'1B-Infra zonder forfait'!F140","v":0},0]
[{"$f":"'1B-Infra zonder forfait'!B141","v":0},null,null,null,{"$f":"'1B-Infra zonder forfait'!E141","v":0},{"$f":"'1B-Infra zonder forfait'!F141","v":0},0]
[{"$f":"'1B-Infra zonder forfait'!B142","v":0},null,null,null,{"$f":"'1B-Infra zonder forfait'!E142","v":0},{"$f":"'1B-Infra zonder forfait'!F142","v":0},0]
[{"$f":"'1B-Infra zonder forfait'!B143","v":0},null,null,null,{"$f":"'1B-Infra zonder forfait'!E143","v":0},{"$f":"'1B-Infra zonder forfait'!F143","v":0},0]
[{"$f":"'1B-Infra zonder forfait'!B144","v":0},null,null,null,{"$f":"'1B-Infra zonder forfait'!E144","v":0},{"$f":"'1B-Infra zonder forfait'!F144","v":0},0]
[{"$f":"'1B-Infra zonder forfait'!B145","v":0},null,null,null,{"$f":"'1B-Infra zonder forfait'!E145","v":0},{"$f":"'1B-Infra zonder forfait'!F145","v":0},0]
[{"$f":"'1B-Infra zonder forfait'!B146","v":0},null,null,null,{"$f":"'1B-Infra zonder forfait'!E146","v":0},{"$f":"'1B-Infra zonder forfait'!F146","v":0},0]
[{"$f":"'1B-Infra zonder forfait'!B147","v":0},null,null,null,{"$f":"'1B-Infra zonder forfait'!E147","v":0},{"$f":"'1B-Infra zonder forfait'!F147","v":0},0]
[{"$f":"'1B-Infra zonder forfait'!B148","v":0},null,null,null,{"$f":"'1B-Infra zonder forfait'!E148","v":0},{"$f":"'1B-Infra zonder forfait'!F148","v":0},0]
[{"$f":"'1B-Infra zonder forfait'!B149","v":0},null,null,null,{"$f":"'1B-Infra zonder forfait'!E149","v":0},{"$f":"'1B-Infra zonder forfait'!F149","v":0},0]
[{"$f":"'1B-Infra zonder forfait'!B150","v":0},null,null,null,{"$f":"'1B-Infra zonder forfait'!E150","v":0},{"$f":"'1B-Infra zonder forfait'!F150","v":0},0]
[{"$f":"'1B-Infra zonder forfait'!B151","v":0},null,null,null,{"$f":"'1B-Infra zonder forfait'!E151","v":0},{"$f":"'1B-Infra zonder forfait'!F151","v":0},0]
[{"$f":"'1B-Infra zonder forfait'!B152","v":0},null,null,null,{"$f":"'1B-Infra zonder forfait'!E152","v":0},{"$f":"'1B-Infra zonder forfait'!F152","v":0},0]
[{"$f":"'1B-Infra zonder forfait'!B153","v":0},null,null,null,{"$f":"'1B-Infra zonder forfait'!E153","v":0},{"$f":"'1B-Infra zonder forfait'!F153","v":0},0]
[null,null,null,null,null,null,{"$f":"G49","v":0}]
["Formulier 2 alle zorgvormen",null,null,null,null,null,{"$f":"IF(SUM(F72:F90)>0,1,0)","v":0}]
[null,null,null,null,null,null,{"$f":"G69","v":0}]
["Kamertype",null,null,null,"aantal","nettodagprijs (*)",{"$f":"G72","v":0}]
[{"$f":"'Formulier 2'!B169","v":0},null,null,null,{"$f":"'Formulier 2'!E169","v":0},{"$f":"'Formulier 2'!F169","v":0},{"$f":"IF(F72>0,1,0)","v":0}]
[{"$f":"'Formulier 2'!B170","v":0},null,null,null,{"$f":"'Formulier 2'!E170","v":0},{"$f":"'Formulier 2'!F170","v":0},{"$f":"IF(F73>0,1,0)","v":0}]
[{"$f":"'Formulier 2'!B171","v":0},null,null,null,{"$f":"'Formulier 2'!E171","v":0},{"$f":"'Formulier 2'!F171","v":0},0]
[{"$f":"'Formulier 2'!B172","v":0},null,null,null,{"$f":"'Formulier 2'!E172","v":0},{"$f":"'Formulier 2'!F172","v":0},0]
[{"$f":"'Formulier 2'!B173","v":0},null,null,null,{"$f":"'Formulier 2'!E173","v":0},{"$f":"'Formulier 2'!F173","v":0},0]
[{"$f":"'Formulier 2'!B174","v":0},null,null,null,{"$f":"'Formulier 2'!E174","v":0},{"$f":"'Formulier 2'!F174","v":0},0]
[{"$f":"'Formulier 2'!B175","v":0},null,null,null,{"$f":"'Formulier 2'!E175","v":0},{"$f":"'Formulier 2'!F175","v":0},0]
[{"$f":"'Formulier 2'!B176","v":0},null,null,null,{"$f":"'Formulier 2'!E176","v":0},{"$f":"'Formulier 2'!F176","v":0},0]
[{"$f":"'Formulier 2'!B177","v":0},null,null,null,{"$f":"'Formulier 2'!E177","v":0},{"$f":"'Formulier 2'!F177","v":0},0]
[{"$f":"'Formulier 2'!B178","v":0},null,null,null,{"$f":"'Formulier 2'!E178","v":0},{"$f":"'Formulier 2'!F178","v":0},0]
[{"$f":"'Formulier 2'!B179","v":0},null,null,null,{"$f":"'Formulier 2'!E179","v":0},{"$f":"'Formulier 2'!F179","v":0},0]
[{"$f":"'Formulier 2'!B180","v":0},null,null,null,{"$f":"'Formulier 2'!E180","v":0},{"$f":"'Formulier 2'!F180","v":0},0]
[{"$f":"'Formulier 2'!B181","v":0},null,null,null,{"$f":"'Formulier 2'!E181","v":0},{"$f":"'Formulier 2'!F181","v":0},0]
[{"$f":"'Formulier 2'!B182","v":0},null,null,null,{"$f":"'Formulier 2'!E182","v":0},{"$f":"'Formulier 2'!F182","v":0},0]
[{"$f":"'Formulier 2'!B183","v":0},null,null,null,{"$f":"'Formulier 2'!E183","v":0},{"$f":"'Formulier 2'!F183","v":0},0]
[{"$f":"'Formulier 2'!B184","v":0},null,null,null,{"$f":"'Formulier 2'!E184","v":0},{"$f":"'Formulier 2'!F184","v":0},0]
[{"$f":"'Formulier 2'!B185","v":0},null,null,null,{"$f":"'Formulier 2'!E185","v":0},{"$f":"'Formulier 2'!F185","v":0},0]
[{"$f":"'Formulier 2'!B186","v":0},null,null,null,{"$f":"'Formulier 2'!E186","v":0},{"$f":"'Formulier 2'!F186","v":0},0]
[{"$f":"'Formulier 2'!B187","v":0},null,null,null,{"$f":"'Formulier 2'!E187","v":0},{"$f":"'Formulier 2'!F187","v":0},0]
["(*) dagprijs na  eventuele aftrek van infrastructuurforfait (indien voorkomend)",null,null,null,null,null,{"$f":"G72","v":0}]
[null,null,null,null,null,null,{"$f":"G91","v":0}]
["3.2 Bestaande bewoners",null,null,null,null,null,{"$f":"IF(OR(G98=1,G128=1,G157=1),1,0)","v":0}]
[null,null,null,null,null,null,{"$f":"G93","v":0}]
["Formulier 1 met forfait",null,null,null,null,null,{"$f":"IF(SUM(D98:D116)>0,1,0)","v":0}]
[null,null,null,null,null,null,{"$f":"G95","v":0}]
["Kamertype",null,"aantal","dagprijs na forfait","brutodagprijs (vóór aftrek forfait)","prijs in opnameovereen-komst vermeld? (*)",{"$f":"G98","v":0}]
[{"$f":"'1A-Infrastructuur met forfait'!B175","v":0},null,{"$f":"'1A-Infrastructuur met forfait'!E175","v":0},{"$f":"'1A-Infrastructuur met forfait'!I175","v":0},{"$f":"'1A-Infrastructuur met forfait'!J175","v":0},{"$f":"IF(C98>0,IF('1A-Infrastructuur met forfait'!G175=0,1,2),\"\")","v":""},{"$f":"IF(D98>0,1,0)","v":0}]
[{"$f":"'1A-Infrastructuur met forfait'!B176","v":0},null,{"$f":"'1A-Infrastructuur met forfait'!E176","v":0},{"$f":"'1A-Infrastructuur met forfait'!I176","v":0},{"$f":"'1A-Infrastructuur met forfait'!J176","v":0},{"$f":"IF(C99>0,IF('1A-Infrastructuur met forfait'!G176=0,1,2),\"\")","v":""},{"$f":"IF(D99>0,1,0)","v":0}]
[{"$f":"'1A-Infrastructuur met forfait'!B177","v":0},null,{"$f":"'1A-Infrastructuur met forfait'!E177","v":0},{"$f":"'1A-Infrastructuur met forfait'!I177","v":0},{"$f":"'1A-Infrastructuur met forfait'!J177","v":0},{"$f":"IF(C100>0,IF('1A-Infrastructuur met forfait'!G177=0,1,2),\"\")","v":""},0]
[{"$f":"'1A-Infrastructuur met forfait'!B178","v":0},null,{"$f":"'1A-Infrastructuur met forfait'!E178","v":0},{"$f":"'1A-Infrastructuur met forfait'!I178","v":0},{"$f":"'1A-Infrastructuur met forfait'!J178","v":0},{"$f":"IF(C101>0,IF('1A-Infrastructuur met forfait'!G178=0,1,2),\"\")","v":""},0]
[{"$f":"'1A-Infrastructuur met forfait'!B179","v":0},null,{"$f":"'1A-Infrastructuur met forfait'!E179","v":0},{"$f":"'1A-Infrastructuur met forfait'!I179","v":0},{"$f":"'1A-Infrastructuur met forfait'!J179","v":0},{"$f":"IF(C102>0,IF('1A-Infrastructuur met forfait'!G179=0,1,2),\"\")","v":""},0]
[{"$f":"'1A-Infrastructuur met forfait'!B180","v":0},null,{"$f":"'1A-Infrastructuur met forfait'!E180","v":0},{"$f":"'1A-Infrastructuur met forfait'!I180","v":0},{"$f":"'1A-Infrastructuur met forfait'!J180","v":0},{"$f":"IF(C103>0,IF('1A-Infrastructuur met forfait'!G180=0,1,2),\"\")","v":""},0]
[{"$f":"'1A-Infrastructuur met forfait'!B181","v":0},null,{"$f":"'1A-Infrastructuur met forfait'!E181","v":0},{"$f":"'1A-Infrastructuur met forfait'!I181","v":0},{"$f":"'1A-Infrastructuur met forfait'!J181","v":0},{"$f":"IF(C104>0,IF('1A-Infrastructuur met forfait'!G181=0,1,2),\"\")","v":""},0]
[{"$f":"'1A-Infrastructuur met forfait'!B182","v":0},null,{"$f":"'1A-Infrastructuur met forfait'!E182","v":0},{"$f":"'1A-Infrastructuur met forfait'!I182","v":0},{"$f":"'1A-Infrastructuur met forfait'!J182","v":0},{"$f":"IF(C105>0,IF('1A-Infrastructuur met forfait'!G182=0,1,2),\"\")","v":""},0]
[{"$f":"'1A-Infrastructuur met forfait'!B183","v":0},null,{"$f":"'1A-Infrastructuur met forfait'!E183","v":0},{"$f":"'1A-Infrastructuur met forfait'!I183","v":0},{"$f":"'1A-Infrastructuur met forfait'!J183","v":0},{"$f":"IF(C106>0,IF('1A-Infrastructuur met forfait'!G183=0,1,2),\"\")","v":""},0]
[{"$f":"'1A-Infrastructuur met forfait'!B184","v":0},null,{"$f":"'1A-Infrastructuur met forfait'!E184","v":0},{"$f":"'1A-Infrastructuur met forfait'!I184","v":0},{"$f":"'1A-Infrastructuur met forfait'!J184","v":0},{"$f":"IF(C107>0,IF('1A-Infrastructuur met forfait'!G184=0,1,2),\"\")","v":""},0]
[{"$f":"'1A-Infrastructuur met forfait'!B185","v":0},null,{"$f":"'1A-Infrastructuur met forfait'!E185","v":0},{"$f":"'1A-Infrastructuur met forfait'!I185","v":0},{"$f":"'1A-Infrastructuur met forfait'!J185","v":0},{"$f":"IF(C108>0,IF('1A-Infrastructuur met forfait'!G185=0,1,2),\"\")","v":""},0]
[{"$f":"'1A-Infrastructuur met forfait'!B186","v":0},null,{"$f":"'1A-Infrastructuur met forfait'!E186","v":0},{"$f":"'1A-Infrastructuur met forfait'!I186","v":0},{"$f":"'1A-Infrastructuur met forfait'!J186","v":0},{"$f":"IF(C109>0,IF('1A-Infrastructuur met forfait'!G186=0,1,2),\"\")","v":""},0]
[{"$f":"'1A-Infrastructuur met forfait'!B187","v":0},null,{"$f":"'1A-Infrastructuur met forfait'!E187","v":0},{"$f":"'1A-Infrastructuur met forfait'!I187","v":0},{"$f":"'1A-Infrastructuur met forfait'!J187","v":0},{"$f":"IF(C110>0,IF('1A-Infrastructuur met forfait'!G187=0,1,2),\"\")","v":""},0]
[{"$f":"'1A-Infrastructuur met forfait'!B188","v":0},null,{"$f":"'1A-Infrastructuur met forfait'!E188","v":0},{"$f":"'1A-Infrastructuur met forfait'!I188","v":0},{"$f":"'1A-Infrastructuur met forfait'!J188","v":0},{"$f":"IF(C111>0,IF('1A-Infrastructuur met forfait'!G188=0,1,2),\"\")","v":""},0]
[{"$f":"'1A-Infrastructuur met forfait'!B189","v":0},null,{"$f":"'1A-Infrastructuur met forfait'!E189","v":0},{"$f":"'1A-Infrastructuur met forfait'!I189","v":0},{"$f":"'1A-Infrastructuur met forfait'!J189","v":0},{"$f":"IF(C112>0,IF('1A-Infrastructuur met forfait'!G189=0,1,2),\"\")","v":""},0]
[{"$f":"'1A-Infrastructuur met forfait'!B190","v":0},null,{"$f":"'1A-Infrastructuur met forfait'!E190","v":0},{"$f":"'1A-Infrastructuur met forfait'!I190","v":0},{"$f":"'1A-Infrastructuur met forfait'!J190","v":0},{"$f":"IF(C113>0,IF('1A-Infrastructuur met forfait'!G190=0,1,2),\"\")","v":""},0]
[{"$f":"'1A-Infrastructuur met forfait'!B191","v":0},null,{"$f":"'1A-Infrastructuur met forfait'!E191","v":0},{"$f":"'1A-Infrastructuur met forfait'!I191","v":0},{"$f":"'1A-Infrastructuur met forfait'!J191","v":0},{"$f":"IF(C114>0,IF('1A-Infrastructuur met forfait'!G191=0,1,2),\"\")","v":""},0]
[{"$f":"'1A-Infrastructuur met forfait'!B192","v":0},null,{"$f":"'1A-Infrastructuur met forfait'!E192","v":0},{"$f":"'1A-Infrastructuur met forfait'!I192","v":0},{"$f":"'1A-Infrastructuur met forfait'!J192","v":0},{"$f":"IF(C115>0,IF('1A-Infrastructuur met forfait'!G192=0,1,2),\"\")","v":""},0]
[{"$f":"'1A-Infrastructuur met forfait'!B193","v":0},null,{"$f":"'1A-Infrastructuur met forfait'!E193","v":0},{"$f":"'1A-Infrastructuur met forfait'!I193","v":0},{"$f":"'1A-Infrastructuur met forfait'!J193","v":0},{"$f":"IF(C116>0,IF('1A-Infrastructuur met forfait'!G193=0,1,2),\"\")","v":""},0]
[null,null,null,null,null,null,{"$f":"G98","v":0}]
["(*) het cijfer in de laatste kolom duidt het onderscheid tussen:",null,null,null,null,null,{"$f":"G117","v":0}]
["(1) Geen plafondprijs in opnameovereenkomst: De dagprijs na forfait stijgt niet in het eerste jaar en kan daarna elke 6 maand met max. 3 euro worden verhoogd tot de goedgekeurde prijs bereikt is.",null,null,null,null,null,{"$f":"G117","v":0}]
[null,null,null,null,null,null,0]
["(2) Plafondprijs in opnameovereenkomst: de dagprijs na forfait kan  bij ingebruikname met max. 6 euro stijgen en kan daarna ten vroegste elke 6 maand met maximaal 6 euro worden verhoogd tot de goedgekeurde prijs bereikt is.",null,null,null,null,null,0]
[null,null,null,null,null,null,0]
[null,null,null,null,null,null,0]
[null,null,null,null,null,null,1]
["Formulier 1 zonder forfait",null,null,null,null,null,{"$f":"G128","v":0}]
[null,null,null,null,null,null,{"$f":"G127","v":0}]
["Kamertype",null,null,"aantal","dagprijs",{"$f":"F97","v":"prijs in opnameovereen-komst vermeld? (*)"},{"$f":"G125","v":0}]
[{"$f":"'1B-Infra zonder forfait'!B166","v":0},null,null,{"$f":"'1B-Infra zonder forfait'!E166","v":0},{"$f":"'1B-Infra zonder forfait'!H166","v":0},{"$f":"IF(D128>0,IF('1B-Infra zonder forfait'!F166=0,1,2),\"\")","v":""},{"$f":"IF(E128>0,1,0)","v":0}]
[{"$f":"'1B-Infra zonder forfait'!B167","v":0},null,null,{"$f":"'1B-Infra zonder forfait'!E167","v":0},{"$f":"'1B-Infra zonder forfait'!H167","v":0},{"$f":"IF(D129>0,IF('1B-Infra zonder forfait'!F167=0,1,2),\"\")","v":""},{"$f":"IF(E129>0,1,0)","v":0}]
[{"$f":"'1B-Infra zonder forfait'!B168","v":0},null,null,{"$f":"'1B-Infra zonder forfait'!E168","v":0},{"$f":"'1B-Infra zonder forfait'!H168","v":0},{"$f":"IF(D130>0,IF('1B-Infra zonder forfait'!F168=0,1,2),\"\")","v":""},0]
[{"$f":"'1B-Infra zonder forfait'!B169","v":0},null,null,{"$f":"'1B-Infra zonder forfait'!E169","v":0},{"$f":"'1B-Infra zonder forfait'!H169","v":0},{"$f":"IF(D131>0,IF('1B-Infra zonder forfait'!F169=0,1,2),\"\")","v":""},0]
[{"$f":"'1B-Infra zonder forfait'!B170","v":0},null,null,{"$f":"'1B-Infra zonder forfait'!E170","v":0},{"$f":"'1B-Infra zonder forfait'!H170","v":0},{"$f":"IF(D132>0,IF('1B-Infra zonder forfait'!F170=0,1,2),\"\")","v":""},0]
[{"$f":"'1B-Infra zonder forfait'!B171","v":0},null,null,{"$f":"'1B-Infra zonder forfait'!E171","v":0},{"$f":"'1B-Infra zonder forfait'!H171","v":0},{"$f":"IF(D133>0,IF('1B-Infra zonder forfait'!F171=0,1,2),\"\")","v":""},0]
[{"$f":"'1B-Infra zonder forfait'!B172","v":0},null,null,{"$f":"'1B-Infra zonder forfait'!E172","v":0},{"$f":"'1B-Infra zonder forfait'!H172","v":0},{"$f":"IF(D134>0,IF('1B-Infra zonder forfait'!F172=0,1,2),\"\")","v":""},0]
[{"$f":"'1B-Infra zonder forfait'!B173","v":0},null,null,{"$f":"'1B-Infra zonder forfait'!E173","v":0},{"$f":"'1B-Infra zonder forfait'!H173","v":0},{"$f":"IF(D135>0,IF('1B-Infra zonder forfait'!F173=0,1,2),\"\")","v":""},0]
[{"$f":"'1B-Infra zonder forfait'!B174","v":0},null,null,{"$f":"'1B-Infra zonder forfait'!E174","v":0},{"$f":"'1B-Infra zonder forfait'!H174","v":0},{"$f":"IF(D136>0,IF('1B-Infra zonder forfait'!F174=0,1,2),\"\")","v":""},0]
[{"$f":"'1B-Infra zonder forfait'!B175","v":0},null,null,{"$f":"'1B-Infra zonder forfait'!E175","v":0},{"$f":"'1B-Infra zonder forfait'!H175","v":0},{"$f":"IF(D137>0,IF('1B-Infra zonder forfait'!F175=0,1,2),\"\")","v":""},0]
[{"$f":"'1B-Infra zonder forfait'!B176","v":0},null,null,{"$f":"'1B-Infra zonder forfait'!E176","v":0},{"$f":"'1B-Infra zonder forfait'!H176","v":0},{"$f":"IF(D138>0,IF('1B-Infra zonder forfait'!F176=0,1,2),\"\")","v":""},0]
[{"$f":"'1B-Infra zonder forfait'!B177","v":0},null,null,{"$f":"'1B-Infra zonder forfait'!E177","v":0},{"$f":"'1B-Infra zonder forfait'!H177","v":0},{"$f":"IF(D139>0,IF('1B-Infra zonder forfait'!F177=0,1,2),\"\")","v":""},0]
[{"$f":"'1B-Infra zonder forfait'!B178","v":0},null,null,{"$f":"'1B-Infra zonder forfait'!E178","v":0},{"$f":"'1B-Infra zonder forfait'!H178","v":0},{"$f":"IF(D140>0,IF('1B-Infra zonder forfait'!F178=0,1,2),\"\")","v":""},0]
[{"$f":"'1B-Infra zonder forfait'!B179","v":0},null,null,{"$f":"'1B-Infra zonder forfait'!E179","v":0},{"$f":"'1B-Infra zonder forfait'!H179","v":0},{"$f":"IF(D141>0,IF('1B-Infra zonder forfait'!F179=0,1,2),\"\")","v":""},0]
[{"$f":"'1B-Infra zonder forfait'!B180","v":0},null,null,{"$f":"'1B-Infra zonder forfait'!E180","v":0},{"$f":"'1B-Infra zonder forfait'!H180","v":0},{"$f":"IF(D142>0,IF('1B-Infra zonder forfait'!F180=0,1,2),\"\")","v":""},0]
[{"$f":"'1B-Infra zonder forfait'!B181","v":0},null,null,{"$f":"'1B-Infra zonder forfait'!E181","v":0},{"$f":"'1B-Infra zonder forfait'!H181","v":0},{"$f":"IF(D143>0,IF('1B-Infra zonder forfait'!F181=0,1,2),\"\")","v":""},0]
[{"$f":"'1B-Infra zonder forfait'!B182","v":0},null,null,{"$f":"'1B-Infra zonder forfait'!E182","v":0},{"$f":"'1B-Infra zonder forfait'!H182","v":0},{"$f":"IF(D144>0,IF('1B-Infra zonder forfait'!F182=0,1,2),\"\")","v":""},0]
[{"$f":"'1B-Infra zonder forfait'!B183","v":0},null,null,{"$f":"'1B-Infra zonder forfait'!E183","v":0},{"$f":"'1B-Infra zonder forfait'!H183","v":0},{"$f":"IF(D145>0,IF('1B-Infra zonder forfait'!F183=0,1,2),\"\")","v":""},0]
[{"$f":"'1B-Infra zonder forfait'!B184","v":0},null,null,{"$f":"'1B-Infra zonder forfait'!E184","v":0},{"$f":"'1B-Infra zonder forfait'!H184","v":0},{"$f":"IF(D146>0,IF('1B-Infra zonder forfait'!F184=0,1,2),\"\")","v":""},0]
[null,null,null,null,null,null,{"$f":"G128","v":0}]
[{"$f":"A118","v":"(*) het cijfer in de laatste kolom duidt het onderscheid tussen:"},null,null,null,null,null,{"$f":"G147","v":0}]
[{"$f":"A119","v":"(1) Geen plafondprijs in opnameovereenkomst: De dagprijs na forfait stijgt niet in het eerste jaar en kan daarna elke 6 maand met max. 3 euro worden verhoogd tot de goedgekeurde prijs bereikt is."},null,null,null,null,null,{"$f":"G147","v":0}]
[null,null,null,null,null,null,0]
[{"$f":"A121","v":"(2) Plafondprijs in opnameovereenkomst: de dagprijs na forfait kan  bij ingebruikname met max. 6 euro stijgen en kan daarna ten vroegste elke 6 maand met maximaal 6 euro worden verhoogd tot de goedgekeurde prijs bereikt is."},null,null,null,null,null,0]
[null,null,null,null,null,null,0]
[null,null,null,null,null,null,0]
["Formulier 2: alle zorgvormen",null,null,null,null,null,{"$f":"G157","v":0}]
[null,null,null,null,null,null,{"$f":"G154","v":0}]
["Kamertype",null,"aantal","goedgekeurde nettodagprijs (*)","max. 1 jaar (*)","max. nettoprijs (*)",{"$f":"G154","v":0}]
[{"$f":"'Formulier 2'!B200","v":0},null,{"$f":"'Formulier 2'!E200","v":0},{"$f":"'Formulier 2'!H200","v":0},{"$f":"'Formulier 2'!I200","v":0},{"$f":"'Formulier 2'!J200","v":0},{"$f":"IF(D157>0,1,0)","v":0}]
[{"$f":"'Formulier 2'!B201","v":0},null,{"$f":"'Formulier 2'!E201","v":0},{"$f":"'Formulier 2'!H201","v":0},{"$f":"'Formulier 2'!I201","v":0},{"$f":"'Formulier 2'!J201","v":0},0]
[{"$f":"'Formulier 2'!B202","v":0},null,{"$f":"'Formulier 2'!E202","v":0},{"$f":"'Formulier 2'!H202","v":0},{"$f":"'Formulier 2'!I202","v":0},{"$f":"'Formulier 2'!J202","v":0},0]
[{"$f":"'Formulier 2'!B203","v":0},null,{"$f":"'Formulier 2'!E203","v":0},{"$f":"'Formulier 2'!H203","v":0},{"$f":"'Formulier 2'!I203","v":0},{"$f":"'Formulier 2'!J203","v":0},0]
[{"$f":"'Formulier 2'!B204","v":0},null,{"$f":"'Formulier 2'!E204","v":0},{"$f":"'Formulier 2'!H204","v":0},{"$f":"'Formulier 2'!I204","v":0},{"$f":"'Formulier 2'!J204","v":0},0]
[{"$f":"'Formulier 2'!B205","v":0},null,{"$f":"'Formulier 2'!E205","v":0},{"$f":"'Formulier 2'!H205","v":0},{"$f":"'Formulier 2'!I205","v":0},{"$f":"'Formulier 2'!J205","v":0},0]
[{"$f":"'Formulier 2'!B206","v":0},null,{"$f":"'Formulier 2'!E206","v":0},{"$f":"'Formulier 2'!H206","v":0},{"$f":"'Formulier 2'!I206","v":0},{"$f":"'Formulier 2'!J206","v":0},0]
[{"$f":"'Formulier 2'!B207","v":0},null,{"$f":"'Formulier 2'!E207","v":0},{"$f":"'Formulier 2'!H207","v":0},{"$f":"'Formulier 2'!I207","v":0},{"$f":"'Formulier 2'!J207","v":0},0]
[{"$f":"'Formulier 2'!B208","v":0},null,{"$f":"'Formulier 2'!E208","v":0},{"$f":"'Formulier 2'!H208","v":0},{"$f":"'Formulier 2'!I208","v":0},{"$f":"'Formulier 2'!J208","v":0},0]
[{"$f":"'Formulier 2'!B209","v":0},null,{"$f":"'Formulier 2'!E209","v":0},{"$f":"'Formulier 2'!H209","v":0},{"$f":"'Formulier 2'!I209","v":0},{"$f":"'Formulier 2'!J209","v":0},0]
[{"$f":"'Formulier 2'!B210","v":0},null,{"$f":"'Formulier 2'!E210","v":0},{"$f":"'Formulier 2'!H210","v":0},{"$f":"'Formulier 2'!I210","v":0},{"$f":"'Formulier 2'!J210","v":0},0]
[{"$f":"'Formulier 2'!B211","v":0},null,{"$f":"'Formulier 2'!E211","v":0},{"$f":"'Formulier 2'!H211","v":0},{"$f":"'Formulier 2'!I211","v":0},{"$f":"'Formulier 2'!J211","v":0},0]
[{"$f":"'Formulier 2'!B212","v":0},null,{"$f":"'Formulier 2'!E212","v":0},{"$f":"'Formulier 2'!H212","v":0},{"$f":"'Formulier 2'!I212","v":0},{"$f":"'Formulier 2'!J212","v":0},0]
[{"$f":"'Formulier 2'!B213","v":0},null,{"$f":"'Formulier 2'!E213","v":0},{"$f":"'Formulier 2'!H213","v":0},{"$f":"'Formulier 2'!I213","v":0},{"$f":"'Formulier 2'!J213","v":0},0]
[{"$f":"'Formulier 2'!B214","v":0},null,{"$f":"'Formulier 2'!E214","v":0},{"$f":"'Formulier 2'!H214","v":0},{"$f":"'Formulier 2'!I214","v":0},{"$f":"'Formulier 2'!J214","v":0},0]
[{"$f":"'Formulier 2'!B215","v":0},null,{"$f":"'Formulier 2'!E215","v":0},{"$f":"'Formulier 2'!H215","v":0},{"$f":"'Formulier 2'!I215","v":0},{"$f":"'Formulier 2'!J215","v":0},0]
[{"$f":"'Formulier 2'!B216","v":0},null,{"$f":"'Formulier 2'!E216","v":0},{"$f":"'Formulier 2'!H216","v":0},{"$f":"'Formulier 2'!I216","v":0},{"$f":"'Formulier 2'!J216","v":0},0]
[{"$f":"'Formulier 2'!B217","v":0},null,{"$f":"'Formulier 2'!E217","v":0},{"$f":"'Formulier 2'!H217","v":0},{"$f":"'Formulier 2'!I217","v":0},{"$f":"'Formulier 2'!J217","v":0},0]
[{"$f":"'Formulier 2'!B218","v":0},null,{"$f":"'Formulier 2'!E218","v":0},{"$f":"'Formulier 2'!H218","v":0},{"$f":"'Formulier 2'!I218","v":0},{"$f":"'Formulier 2'!J218","v":0},0]
["(*) prijzen na eventueel infrastructuurforfait indien voorkomend",null,null,null,null,null,{"$f":"G157","v":0}]
[null,null,null,null,null,null,{"$f":"G180","v":0}]
["4. Andere toeslagen",null,null,null,null,null,{"$f":"$G$180","v":0}]
["omschrijving",null,null,null,null,"aangevraagd",{"$f":"$G$180","v":0}]
[{"$f":"'Formulier 2'!B252","v":0},null,null,null,null,{"$f":"'Formulier 2'!K252","v":0},{"$f":"IF(F180>0,1,0)","v":0}]
[{"$f":"'Formulier 2'!B253","v":0},null,null,null,null,{"$f":"'Formulier 2'!K253","v":0},{"$f":"IF(F181>0,1,0)","v":0}]
[{"$f":"'Formulier 2'!B254","v":0},null,null,null,null,{"$f":"'Formulier 2'!K254","v":0},0]
[{"$f":"'Formulier 2'!B255","v":0},null,null,null,null,{"$f":"'Formulier 2'!K255","v":0},0]
[{"$f":"'Formulier 2'!B256","v":0},null,null,null,null,{"$f":"'Formulier 2'!K256","v":0},0]
[{"$f":"'Formulier 2'!B257","v":0},null,null,null,null,{"$f":"'Formulier 2'!K257","v":0},0]
[{"$f":"'Formulier 2'!B258","v":0},null,null,null,null,{"$f":"'Formulier 2'!K258","v":0},0]
[{"$f":"'Formulier 2'!B259","v":0},null,null,null,null,{"$f":"'Formulier 2'!K259","v":0},0]
[{"$f":"'Formulier 2'!B260","v":0},null,null,null,null,{"$f":"'Formulier 2'!K260","v":0},0]
[{"$f":"'Formulier 2'!B261","v":0},null,null,null,null,{"$f":"'Formulier 2'!K261","v":0},0]
[{"$f":"'Formulier 2'!B262","v":0},null,null,null,null,{"$f":"'Formulier 2'!K262","v":0},0]
[{"$f":"'Formulier 2'!B263","v":0},null,null,null,null,{"$f":"'Formulier 2'!K263","v":0},0]
[{"$f":"'Formulier 2'!B264","v":0},null,null,null,null,{"$f":"'Formulier 2'!K264","v":0},0]
[{"$f":"'Formulier 2'!B265","v":0},null,null,null,null,{"$f":"'Formulier 2'!K265","v":0},0]
[null,null,null,null,null,null,{"$f":"G180","v":0}]
["5. Kortingen",null,null,null,null,null,{"$f":"$G$197","v":0}]
["omschrijving",null,null,null,null,"aangevraagd",{"$f":"$G$197","v":0}]
[{"$f":"'Formulier 2'!B301","v":0},null,null,null,null,{"$f":"'Formulier 2'!K301","v":0},{"$f":"IF(F197>0,1,0)","v":0}]
[{"$f":"'Formulier 2'!B302","v":0},null,null,null,null,{"$f":"'Formulier 2'!K302","v":0},{"$f":"IF(F198>0,1,0)","v":0}]
[{"$f":"'Formulier 2'!B303","v":0},null,null,null,null,{"$f":"'Formulier 2'!K303","v":0},0]
[{"$f":"'Formulier 2'!B304","v":0},null,null,null,null,{"$f":"'Formulier 2'!K304","v":0},0]
[{"$f":"'Formulier 2'!B305","v":0},null,null,null,null,{"$f":"'Formulier 2'!K305","v":0},0]
[{"$f":"'Formulier 2'!B306","v":0},null,null,null,null,{"$f":"'Formulier 2'!K306","v":0},0]
[{"$f":"'Formulier 2'!B307","v":0},null,null,null,null,{"$f":"'Formulier 2'!K307","v":0},0]
[{"$f":"'Formulier 2'!B308","v":0},null,null,null,null,{"$f":"'Formulier 2'!K308","v":0},0]
[{"$f":"'Formulier 2'!B309","v":0},null,null,null,null,{"$f":"'Formulier 2'!K309","v":0},0]
[{"$f":"'Formulier 2'!B310","v":0},null,null,null,null,{"$f":"'Formulier 2'!K310","v":0},0]
[null,null,null,null,null,null,{"$f":"G197","v":0}]
[{"$f":"\"Ik verklaar op eer dat de gegevens ingevuld in het aanvraagformulier correct en volledig zijn.\nEr kan onder meer achteraf worden nagegaan of de opgegeven aantallen kloppen\" & IF(AND((G98+G99)=0,(G128+G129)=0),\".\",\", meer bepaald met betrekking tot het aantal bewoners met kennisname van de plafondprijs in de opnameovereenkomst.\")","v":"Ik verklaar op eer dat de gegevens ingevuld in het aanvraagformulier correct en volledig zijn.\nEr kan onder meer achteraf worden nagegaan of de opgegeven aantallen kloppen."},null,null,null,null,null,1]
[null,null,null,null,null,null,1]
[null,null,null,null,null,null,1]
["Naam en functie van de ondertekenaar(s) :",null,null,null,"handtekening :",null,1]
[null,null,null,null,null,null,1]
[null,null,null,null,null,null,1]
[null,null,null,null,null,null,1]
["Naam:","P. Resident",null,null,null,null,1]
["Functie:","voorzitter",null,null,null,null,1]
[null,null,null,null,null,null,1]
["Naam:","C. Hauffeur",null,null,null,null,{"$f":"G216","v":1}]
["Functie:","bestuurder1",null,null,null,null,1]
[null,null,null,null,null,null,1]